Workbook

Sheet Break
A1: Employee | B1: Lunch | C1: Normal Break | D1: Feedback | E1: Training | F1: Meeting | G1: Unwanted Break | H1: Other Work | I1: Total Break Taken
A2: Mum_Abdul Hamid (1008512) | B2: 00:36:49 | C2: 00:30:24 | D2: 00:00:00 | E2: 00:00:00 | F2: 00:00:00 | G2: 00:00:00 | H2: 00:00:00 | I2: 01:08:42
A3: Mum_Afzal Husain (1008513) | B3: 00:39:56 | C3: 00:29:55 | D3: 00:00:00 | E3: 00:00:00 | F3: 00:00:00 | G3: 00:00:00 | H3: 00:00:00 | I3: 01:09:59
A4: Mum_Anamika Gupta (1008514) | B4: 00:39:49 | C4: 00:29:49 | D4: 00:00:00 | E4: 00:00:00 | F4: 00:00:00 | G4: 00:04:09 | H4: 00:00:00 | I4: 01:13:54
A5: Mum_Anikuttan (1008515) | B5: 00:39:17 | C5: 00:22:20 | D5: 01:10:58 | E5: 00:00:00 | F5: 00:00:00 | G5: 00:00:00 | H5: 00:00:00 | I5: 02:19:02
A6: Mum_Anil Kumar (1008516) | B6: 00:00:00 | C6: 00:29:44 | D6: 00:00:00 | E6: 00:00:00 | F6: 00:29:31 | G6: 00:00:00 | H6: 02:05:20 | I6: 03:04:58
A7: Mum_Anita Dixit (1008517) | B7: 00:00:00 | C7: 00:14:56 | D7: 00:00:00 | E7: 00:00:00 | F7: 00:00:00 | G7: 00:10:12 | H7: 00:00:00 | I7: 00:27:07
A8: Mum_Anita Ghore (1008518) | B8: 00:39:59 | C8: 00:29:58 | D8: 00:00:00 | E8: 00:00:00 | F8: 00:00:00 | G8: 00:00:00 | H8: 01:31:35 | I8: 02:41:42
A9: Mum_Anjali Deoram (1008519) | B9: 00:40:23 | C9: 00:29:26 | D9: 00:00:00 | E9: 00:00:00 | F9: 00:00:00 | G9: 00:00:00 | H9: 00:00:00 | I9: 01:13:10
A10: Mum_Anjali Sahay (1008520) | B10: 00:39:55 | C10: 00:24:49 | D10: 00:00:00 | E10: 00:00:00 | F10: 00:00:00 | G10: 00:00:00 | H10: 00:00:00 | I10: 01:06:39
A11: Mum_Annu Latika (1008521) | B11: 00:39:51 | C11: 00:29:59 | D11: 00:00:00 | E11: 00:00:00 | F11: 00:00:00 | G11: 00:00:00 | H11: 00:00:00 | I11: 01:09:57
A12: Mum_Anoop Narayan (1008522) | B12: 00:39:41 | C12: 00:29:25 | D12: 00:00:00 | E12: 00:00:00 | F12: 00:00:00 | G12: 00:00:00 | H12: 00:00:00 | I12: 01:09:15
A13: Mum_Anoop Raj (1008523) | B13: 00:39:05 | C13: 00:29:59 | D13: 00:00:00 | E13: 01:05:04 | F13: 00:30:24 | G13: 00:12:32 | H13: 00:00:00 | I13: 03:01:18
A14: Mum_Anubhuti Gupta (1008524) | B14: 00:39:06 | C14: 00:25:25 | D14: 00:00:00 | E14: 01:01:32 | F14: 00:00:00 | G14: 00:00:00 | H14: 00:00:00 | I14: 02:06:41
A15: Mum_Arun Kumar (1008525) | B15: 00:43:00 | C15: 00:27:13 | D15: 00:00:00 | E15: 00:00:00 | F15: 00:00:00 | G15: 00:00:00 | H15: 00:00:00 | I15: 01:10:34
A16: Mum_Ashish Kumar (1008526) | B16: 00:37:37 | C16: 00:29:49 | D16: 00:00:00 | E16: 00:00:00 | F16: 00:00:00 | G16: 00:08:43 | H16: 00:00:00 | I16: 01:16:59
A17: Mum_Ashok Kumar (1008527) | B17: 00:42:06 | C17: 00:15:56 | D17: 01:25:31 | E17: 00:00:00 | F17: 00:00:00 | G17: 00:00:00 | H17: 00:00:00 | I17: 02:24:20
A18: Hyd_Ashok Kumar (1008528) | B18: 00:39:10 | C18: 00:13:03 | D18: 00:00:00 | E18: 00:00:00 | F18: 00:00:00 | G18: 00:00:00 | H18: 00:00:00 | I18: 00:56:29
A19: Hyd_Ashok Kumar (1008529) | B19: 00:39:57 | C19: 00:29:58 | D19: 00:00:00 | E19: 00:00:00 | F19: 00:00:00 | G19: 00:00:00 | H19: 00:00:00 | I19: 01:10:07
A20: Hyd_Ashok Kumar (1008530) | B20: 00:39:11 | C20: 00:27:21 | D20: 00:00:00 | E20: 00:59:58 | F20: 00:31:07 | G20: 00:00:00 | H20: 00:00:00 | I20: 02:40:10
A21: Hyd_Ashok Mahto (1008531) | B21: 00:40:20 | C21: 00:30:39 | D21: 00:00:00 | E21: 00:00:00 | F21: 00:00:00 | G21: 00:01:30 | H21: 00:00:00 | I21: 01:14:30
A22: Hyd_Atul Kumar (1008532) | B22: 00:39:29 | C22: 00:27:03 | D22: 00:00:00 | E22: 00:00:00 | F22: 00:00:00 | G22: 00:00:00 | H22: 00:00:00 | I22: 01:06:59
A23: Hyd_Azam (1008533) | B23: 00:39:37 | C23: 00:29:04 | D23: 00:00:00 | E23: 00:00:00 | F23: 00:00:00 | G23: 00:00:00 | H23: 00:00:00 | I23: 01:09:47
A24: Hyd_Bhagwat Singh (1008534) | B24: 00:40:00 | C24: 00:30:03 | D24: 00:59:16 | E24: 00:00:00 | F24: 00:00:00 | G24: 00:00:00 | H24: 00:00:00 | I24: 02:10:18
A25: Hyd_Bindu Nair (1008535) | B25: 00:39:50 | C25: 00:30:09 | D25: 00:00:00 | E25: 01:01:05 | F25: 00:00:00 | G25: 00:00:00 | H25: 00:00:00 | I25: 02:11:17
A26: Hyd_Daleep Singh (1008536) | B26: 00:39:28 | C26: 00:26:22 | D26: 00:00:00 | E26: 00:00:00 | F26: 00:00:00 | G26: 00:00:00 | H26: 00:00:00 | I26: 01:12:54
A27: Hyd_Deepak Kumar (1008537) | B27: 00:00:00 | C27: 00:28:49 | D27: 00:00:00 | E27: 00:00:00 | F27: 00:00:00 | G27: 00:00:00 | H27: 00:00:00 | I27: 00:30:30
A28: Hyd_Deepika Nigam (1008538) | B28: 00:39:54 | C28: 00:29:57 | D28: 00:00:00 | E28: 00:00:00 | F28: 00:00:00 | G28: 00:00:00 | H28: 00:00:00 | I28: 01:11:40
A29: Hyd_Dinesh Kumar (1008539) | B29: 00:40:10 | C29: 00:29:29 | D29: 00:00:00 | E29: 00:00:00 | F29: 00:00:00 | G29: 00:00:00 | H29: 00:00:00 | I29: 01:10:03
A30: Hyd_Hari Kumar (1008540) | B30: 00:40:56 | C30: 00:31:30 | D30: 00:00:00 | E30: 00:59:59 | F30: 00:31:59 | G30: 00:00:00 | H30: 00:00:00 | I30: 02:44:52
A31: Hyd_Heeramani Choudhary (1008541) | B31: 00:00:00 | C31: 00:30:00 | D31: 00:00:00 | E31: 00:00:00 | F31: 00:25:55 | G31: 00:08:29 | H31: 00:00:00 | I31: 01:20:20
A32: Hyd_Indra Pal (1008542) | B32: 00:39:50 | C32: 00:29:16 | D32: 00:00:00 | E32: 00:00:00 | F32: 00:00:00 | G32: 00:00:00 | H32: 00:00:00 | I32: 01:09:15
A33: Hyd_Indra Singh (1008543) | B33: 00:39:19 | C33: 00:28:23 | D33: 00:00:00 | E33: 01:01:07 | F33: 00:00:00 | G33: 00:00:00 | H33: 00:00:00 | I33: 02:09:14
A34: Hyd_Jagdish Chandra (1008544) | B34: 00:42:06 | C34: 00:26:41 | D34: 00:00:00 | E34: 00:00:00 | F34: 00:00:00 | G34: 00:00:00 | H34: 00:00:00 | I34: 01:09:03
A35: Hyd_Jairaj Vatham (1008545) | B35: 00:39:09 | C35: 00:29:05 | D35: 00:00:00 | E35: 00:00:00 | F35: 00:00:00 | G35: 00:00:00 | H35: 00:00:00 | I35: 01:09:56
A36: Hyd_Janardan Mishra (1008546) | B36: 00:00:00 | C36: 00:25:16 | D36: 00:59:55 | E36: 00:00:00 | F36: 00:00:00 | G36: 00:00:00 | H36: 00:00:00 | I36: 01:28:09
A37: Hyd_Jitendra Kumar (1008547) | B37: 00:39:30 | C37: 00:29:15 | D37: 00:00:00 | E37: 00:57:43 | F37: 00:28:19 | G37: 00:00:00 | H37: 00:00:00 | I37: 02:35:12
A38: Hyd_John D'Costa (1008548) | B38: 00:39:48 | C38: 00:29:36 | D38: 00:00:00 | E38: 00:00:00 | F38: 00:00:00 | G38: 00:00:00 | H38: 00:00:00 | I38: 01:09:36
A39: Hyd_Julie S (1008549) | B39: 00:39:56 | C39: 00:29:49 | D39: 00:00:00 | E39: 00:00:00 | F39: 00:00:00 | G39: 00:00:00 | H39: 00:00:00 | I39: 01:10:44
A40: Hyd_Jyoti Tulsani (1008550) | B40: 00:39:45 | C40: 00:29:47 | D40: 00:00:00 | E40: 00:00:00 | F40: 00:00:00 | G40: 00:00:00 | H40: 00:00:00 | I40: 01:10:27
A41: Hyd_Kahkasha Parveen (1008551) | B41: 00:41:56 | C41: 00:28:08 | D41: 00:00:00 | E41: 00:00:00 | F41: 00:00:00 | G41: 00:00:00 | H41: 00:00:00 | I41: 01:10:12
A42: Hyd_Kailash Nath (1008552) | B42: 00:38:04 | C42: 00:28:33 | D42: 00:00:00 | E42: 00:00:00 | F42: 00:00:00 | G42: 00:00:00 | H42: 00:00:00 | I42: 01:07:40
A43: Hyd_Kalpana Agrawal (1008553) | B43: 00:32:59 | C43: 00:32:50 | D43: 00:00:00 | E43: 00:00:00 | F43: 01:17:58 | G43: 00:00:00 | H43: 00:00:00 | I43: 02:24:54
A44: Hyd_Kamini Kumar (1008554) | B44: 00:00:00 | C44: 00:14:51 | D44: 00:00:00 | E44: 00:00:00 | F44: 00:00:00 | G44: 00:00:00 | H44: 00:00:00 | I44: 00:15:00
A45: Hyd_Kamini Tiwari (1008555) | B45: 00:36:12 | C45: 00:29:58 | D45: 00:00:00 | E45: 00:00:00 | F45: 00:00:00 | G45: 00:02:34 | H45: 00:00:00 | I45: 01:09:45
A46: Hyd_Kavita Sharma (1008556) | B46: 00:22:27 | C46: 00:32:36 | D46: 00:00:00 | E46: 00:00:00 | F46: 00:00:00 | G46: 00:00:00 | H46: 00:00:00 | I46: 00:56:19
A47: Hyd_Kiran Khubchandani (1008557) | B47: 00:39:52 | C47: 00:29:53 | D47: 01:00:11 | E47: 00:00:00 | F47: 00:00:00 | G47: 00:00:00 | H47: 00:00:00 | I47: 02:10:24
A48: Hyd_Kisun Sah (1008558) | B48: 00:39:19 | C48: 00:29:53 | D48: 00:00:00 | E48: 00:00:00 | F48: 00:00:00 | G48: 00:00:00 | H48: 00:00:00 | I48: 01:09:28
A49: Hyd_Krishana Kumar (1008559) | B49: 00:39:57 | C49: 00:29:39 | D49: 00:00:00 | E49: 00:00:00 | F49: 00:00:00 | G49: 00:00:00 | H49: 00:00:00 | I49: 01:09:45
A50: Hyd_Kunj Bihari (1008560) | B50: 00:40:00 | C50: 00:30:01 | D50: 00:00:00 | E50: 00:00:00 | F50: 00:00:00 | G50: 00:00:00 | H50: 00:00:00 | I50: 01:10:11
A51: Hyd_Leena George (1008561) | B51: 00:00:00 | C51: 00:15:12 | D51: 00:00:00 | E51: 00:00:00 | F51: 00:00:00 | G51: 00:02:41 | H51: 00:00:00 | I51: 00:18:10
A52: Hyd_Lilly Lucy (1008562) | B52: 00:20:52 | C52: 00:30:04 | D52: 00:00:00 | E52: 00:00:00 | F52: 00:00:00 | G52: 00:23:27 | H52: 00:00:00 | I52: 01:14:44
A53: Hyd_Mangal Singh (1008563) | B53: 00:39:59 | C53: 00:29:57 | D53: 00:00:00 | E53: 00:00:00 | F53: 00:00:00 | G53: 00:00:00 | H53: 00:00:00 | I53: 01:10:04
A54: Hyd_Manisha Shrivastava (1008564) | B54: 00:39:58 | C54: 00:29:58 | D54: 00:00:00 | E54: 00:00:00 | F54: 00:00:00 | G54: 00:00:00 | H54: 00:00:00 | I54: 01:10:09
A55: Hyd_Manjusha Sinha (1008565) | B55: 00:44:30 | C55: 00:25:13 | D55: 00:00:00 | E55: 00:00:00 | F55: 00:00:00 | G55: 00:00:00 | H55: 00:00:00 | I55: 01:10:39
A56: Hyd_ManjuTiwari Lab (1008566) | B56: 00:39:42 | C56: 00:30:06 | D56: 00:00:00 | E56: 00:00:00 | F56: 00:00:00 | G56: 00:00:00 | H56: 00:00:00 | I56: 01:10:46
A57: Hyd_Manoj Kumar (1008567) | B57: 00:39:54 | C57: 00:29:53 | D57: 00:00:00 | E57: 00:00:00 | F57: 00:00:00 | G57: 00:00:00 | H57: 00:00:00 | I57: 01:09:53
A58: Hyd_Manoj Kumar (1008568) | B58: 00:39:56 | C58: 00:29:53 | D58: 00:00:00 | E58: 00:00:00 | F58: 00:00:00 | G58: 00:00:00 | H58: 00:00:00 | I58: 01:15:59
A59: Hyd_Masroor Adil (1008569) | B59: 00:39:55 | C59: 00:29:46 | D59: 00:00:00 | E59: 00:00:00 | F59: 00:00:00 | G59: 00:00:00 | H59: 00:00:00 | I59: 01:11:39
A60: Hyd_Meena Zinjare (1008570) | B60: 00:41:13 | C60: 00:30:01 | D60: 00:00:00 | E60: 01:06:34 | F60: 01:16:39 | G60: 00:00:00 | H60: 00:00:00 | I60: 03:34:45
A61: Hyd_Mehnaz Khan (1008571) | B61: 00:39:57 | C61: 00:29:32 | D61: 00:00:00 | E61: 00:54:51 | F61: 00:00:00 | G61: 00:07:49 | H61: 00:00:00 | I61: 02:12:24
A62: Hyd_Mercy Thampi (1008572) | B62: 00:00:00 | C62: 00:14:48 | D62: 00:00:00 | E62: 00:00:00 | F62: 00:00:00 | G62: 00:00:00 | H62: 00:00:00 | I62: 00:15:35
A63: Hyd_Miny Mole (1008573) | B63: 00:40:00 | C63: 00:29:59 | D63: 01:02:58 | E63: 00:00:00 | F63: 00:00:00 | G63: 00:00:00 | H63: 00:00:00 | I63: 02:13:07
A64: Hyd_Mohd Rafi (1008574) | B64: 00:39:50 | C64: 00:30:06 | D64: 00:00:00 | E64: 00:57:24 | F64: 00:30:18 | G64: 00:00:00 | H64: 00:00:00 | I64: 02:38:29
A65: Hyd_Mubeen Khan (1008575) | B65: 00:22:13 | C65: 00:29:56 | D65: 00:00:00 | E65: 00:59:44 | F65: 00:30:05 | G65: 00:00:00 | H65: 00:00:00 | I65: 02:24:38
A66: Hyd_Mukesh Nagar (1008576) | B66: 00:00:00 | C66: 00:14:52 | D66: 00:00:00 | E66: 00:00:00 | F66: 00:00:00 | G66: 00:14:31 | H66: 00:00:00 | I66: 00:29:34
A67: Hyd_Nandu Kumar (1008577) | B67: 00:39:48 | C67: 00:21:10 | D67: 00:00:00 | E67: 00:00:00 | F67: 00:00:00 | G67: 00:00:00 | H67: 00:00:00 | I67: 01:14:03
A68: Hyd_Narayan Singh (1008578) | B68: 00:41:59 | C68: 00:24:59 | D68: 00:00:00 | E68: 00:00:00 | F68: 00:00:00 | G68: 00:00:00 | H68: 00:00:00 | I68: 01:08:27
A69: Hyd_Neeraj Saxena (1008579) | B69: 00:39:49 | C69: 00:28:46 | D69: 01:05:52 | E69: 00:00:00 | F69: 00:00:00 | G69: 00:00:00 | H69: 00:00:00 | I69: 02:15:18
A70: Hyd_Neeru Mehta (1008580) | B70: 00:39:59 | C70: 00:29:55 | D70: 00:00:00 | E70: 00:00:00 | F70: 00:00:00 | G70: 00:00:00 | H70: 00:00:00 | I70: 01:10:03
A71: Hyd_Nikita Panwalkar (1008581) | B71: 00:40:04 | C71: 00:29:41 | D71: 00:00:00 | E71: 00:00:00 | F71: 00:27:31 | G71: 00:00:00 | H71: 00:00:00 | I71: 01:37:25
A72: Hyd_Nitin Bhatia (1008582) | B72: 00:39:54 | C72: 00:29:50 | D72: 00:00:00 | E72: 00:00:00 | F72: 00:00:00 | G72: 00:00:00 | H72: 00:00:00 | I72: 01:09:53
A73: Hyd_Om Prakash (1008583) | B73: 00:39:48 | C73: 00:29:54 | D73: 00:00:00 | E73: 00:00:00 | F73: 00:25:43 | G73: 00:00:00 | H73: 00:00:00 | I73: 01:36:03
A74: Hyd_Omprakash O (1008584) | B74: 00:39:30 | C74: 00:28:52 | D74: 01:01:11 | E74: 00:00:00 | F74: 00:00:00 | G74: 00:00:00 | H74: 00:00:00 | I74: 02:11:54
A75: Hyd_Owais Mohd (1008585) | B75: 00:39:56 | C75: 00:30:00 | D75: 00:00:00 | E75: 00:00:00 | F75: 01:16:16 | G75: 00:00:00 | H75: 00:00:00 | I75: 02:26:26
A76: Hyd_Pankaj Shelkey (1008586) | B76: 00:39:59 | C76: 00:29:58 | D76: 00:00:00 | E76: 00:00:00 | F76: 00:00:00 | G76: 00:00:00 | H76: 00:45:18 | I76: 01:55:26
A77: Hyd_Partha Sarathi (1008587) | B77: 00:41:16 | C77: 00:29:14 | D77: 00:27:13 | E77: 00:00:00 | F77: 00:00:00 | G77: 00:00:00 | H77: 00:00:00 | I77: 01:38:42
A78: Hyd_Prabha Desikan (1008588) | B78: 00:39:03 | C78: 00:15:01 | D78: 00:00:00 | E78: 00:00:00 | F78: 02:36:37 | G78: 00:00:00 | H78: 00:40:39 | I78: 04:11:26
A79: Hyd_Pramod Tiwari (1008589) | B79: 00:39:59 | C79: 00:16:04 | D79: 01:06:00 | E79: 00:00:00 | F79: 02:18:51 | G79: 00:00:00 | H79: 00:00:00 | I79: 04:21:06
A80: Hyd_Prasannakumari S (1008590) | B80: 00:39:50 | C80: 00:30:15 | D80: 00:00:00 | E80: 00:00:00 | F80: 00:00:00 | G80: 00:00:00 | H80: 00:00:00 | I80: 01:10:25
A81: Hyd_Praveen Kumar (1008591) | B81: 00:41:26 | C81: 00:27:00 | D81: 01:28:47 | E81: 00:00:00 | F81: 00:00:00 | G81: 00:00:00 | H81: 00:00:00 | I81: 02:37:28
A82: Hyd_Rachel Mathew (1008592) | B82: 00:36:50 | C82: 00:15:31 | D82: 00:00:00 | E82: 00:00:00 | F82: 02:27:33 | G82: 00:00:00 | H82: 00:00:00 | I82: 03:20:01
A83: Hyd_Rachita Anupam (1008593) | B83: 00:43:23 | C83: 00:25:02 | D83: 00:00:00 | E83: 00:00:00 | F83: 00:00:00 | G83: 00:00:00 | H83: 00:00:00 | I83: 01:08:32
A84: Hyd_Rachna Chauhan (1008594) | B84: 00:00:00 | C84: 00:30:00 | D84: 00:00:00 | E84: 00:00:00 | F84: 00:00:00 | G84: 00:00:00 | H84: 00:00:00 | I84: 00:30:20
A85: Hyd_Raj Kumar (1008595) | B85: 00:39:14 | C85: 00:28:23 | D85: 00:00:00 | E85: 00:00:00 | F85: 00:00:00 | G85: 00:00:00 | H85: 00:00:00 | I85: 01:08:44
A86: Hyd_Rajeev Garg (1008596) | B86: 00:39:56 | C86: 00:25:04 | D86: 00:00:00 | E86: 00:00:00 | F86: 00:00:00 | G86: 00:00:00 | H86: 00:00:00 | I86: 01:08:24
A87: Hyd_Rajeev Kumar (1008597) | B87: 00:39:40 | C87: 00:30:17 | D87: 00:00:00 | E87: 00:00:00 | F87: 00:00:00 | G87: 00:00:00 | H87: 00:26:42 | I87: 01:37:06
A88: Hyd_Rajendra Gupta (1008598) | B88: 00:40:05 | C88: 00:29:50 | D88: 00:00:00 | E88: 00:00:00 | F88: 00:00:00 | G88: 00:00:00 | H88: 00:08:54 | I88: 01:19:08
A89: Hyd_Rajendra Kumar (1008599) | B89: 00:41:03 | C89: 00:18:31 | D89: 00:00:00 | E89: 00:51:05 | F89: 00:00:00 | G89: 00:00:00 | H89: 00:40:02 | I89: 02:34:16
A90: Hyd_Rajendra Prasad (1008600) | B90: 00:39:47 | C90: 00:15:10 | D90: 00:00:00 | E90: 03:11:33 | F90: 02:38:03 | G90: 00:00:00 | H90: 00:22:18 | I90: 07:08:19
A91: Hyd_Rajesh Kumar (1008601) | B91: 00:39:36 | C91: 00:29:57 | D91: 00:00:00 | E91: 00:00:00 | F91: 00:00:00 | G91: 00:00:00 | H91: 00:01:27 | I91: 01:12:04
A92: Hyd_Rajesh Kumar (1008602) | B92: 00:39:59 | C92: 00:29:59 | D92: 00:00:00 | E92: 00:52:20 | F92: 00:00:00 | G92: 00:00:00 | H92: 00:00:00 | I92: 02:06:35
A93: Hyd_Rajesh Sharma (1008603) | B93: 00:00:00 | C93: 00:15:03 | D93: 00:00:00 | E93: 00:00:00 | F93: 00:00:02 | G93: 00:08:32 | H93: 00:00:00 | I93: 00:24:27
A94: Hyd_Raji Abraham (1008604) | B94: 00:39:46 | C94: 00:29:34 | D94: 00:00:00 | E94: 00:00:00 | F94: 00:00:00 | G94: 00:00:00 | H94: 00:00:00 | I94: 01:09:28
A95: Hyd_Rajshree Dhabekar (1008605) | B95: 00:40:05 | C95: 00:27:28 | D95: 00:00:00 | E95: 00:00:00 | F95: 02:37:19 | G95: 00:00:00 | H95: 04:29:57 | I95: 08:15:09
A96: Hyd_Rakhi Jodhani (1008606) | B96: 00:39:17 | C96: 00:17:15 | D96: 00:00:00 | E96: 00:00:00 | F96: 02:37:45 | G96: 00:00:00 | H96: 03:05:19 | I96: 06:39:44
A97: Hyd_Ramji Prasad (1008607) | B97: 00:39:33 | C97: 00:29:13 | D97: 00:00:00 | E97: 00:00:00 | F97: 00:00:00 | G97: 00:03:52 | H97: 00:00:00 | I97: 01:13:46
A98: Del_Rashid (1008608) | B98: 00:39:52 | C98: 00:15:13 | D98: 00:00:00 | E98: 00:00:00 | F98: 00:00:00 | G98: 00:00:00 | H98: 04:49:55 | I98: 05:45:13
A99: Del_Rashmi Gajbe (1008609) | B99: 00:37:12 | C99: 00:28:12 | D99: 00:00:00 | E99: 00:57:50 | F99: 00:00:00 | G99: 00:00:00 | H99: 00:00:00 | I99: 02:04:58
A100: Del_Ravi Kumar (1008610) | B100: 00:39:42 | C100: 00:29:46 | D100: 00:00:00 | E100: 00:00:00 | F100: 00:00:00 | G100: 00:00:00 | H100: 00:00:00 | I100: 01:11:14
A101: Del_Ravinder Kaur (1008611) | B101: 00:38:25 | C101: 00:30:57 | D101: 00:00:00 | E101: 00:00:00 | F101: 00:00:00 | G101: 00:00:00 | H101: 00:00:00 | I101: 01:09:28
A102: Del_Rekha Agarwal (1008612) | B102: 00:21:26 | C102: 00:48:36 | D102: 00:00:00 | E102: 00:53:33 | F102: 00:00:00 | G102: 00:00:00 | H102: 00:31:25 | I102: 02:41:42
A103: Del_Rekha Gupta (1008613) | B103: 00:39:54 | C103: 00:29:13 | D103: 00:00:00 | E103: 00:00:00 | F103: 00:00:00 | G103: 00:00:00 | H103: 00:41:04 | I103: 01:50:37
A104: Del_Rekha Jain (1008614) | B104: 00:37:35 | C104: 00:38:20 | D104: 00:00:00 | E104: 00:00:00 | F104: 00:00:00 | G104: 00:00:00 | H104: 00:19:57 | I104: 01:36:57
A105: Del_Renu Pratap (1008615) | B105: 00:38:05 | C105: 00:30:03 | D105: 01:18:15 | E105: 00:00:00 | F105: 02:37:00 | G105: 00:00:00 | H105: 00:03:35 | I105: 05:07:55
A106: Del_Ritu Bhatnagar (1008616) | B106: 00:42:29 | C106: 00:29:37 | D106: 00:00:00 | E106: 00:00:00 | F106: 00:00:00 | G106: 00:00:00 | H106: 00:00:00 | I106: 01:13:20
A107: Del_Rohit Nishchal (1008617) | B107: 00:39:58 | C107: 00:29:27 | D107: 00:00:00 | E107: 00:00:00 | F107: 00:00:00 | G107: 00:00:00 | H107: 07:06:42 | I107: 08:17:00
A108: Del_Roli Bhatnagar (1008618) | B108: 00:39:45 | C108: 00:26:41 | D108: 01:03:42 | E108: 00:00:00 | F108: 00:00:00 | G108: 00:00:00 | H108: 00:00:00 | I108: 02:10:16
A109: Del_Roma Rastogi (1008619) | B109: 00:28:00 | C109: 00:25:27 | D109: 00:00:00 | E109: 00:00:00 | F109: 00:00:00 | G109: 00:00:00 | H109: 00:00:00 | I109: 00:53:47
A110: Del_Roohi Haider (1008620) | B110: 00:39:10 | C110: 00:29:57 | D110: 00:00:00 | E110: 00:00:00 | F110: 00:00:00 | G110: 00:00:00 | H110: 00:00:00 | I110: 01:09:24
A111: Del_Sajid Naqvi (1008621) | B111: 00:40:48 | C111: 00:27:41 | D111: 00:00:00 | E111: 00:00:00 | F111: 00:00:00 | G111: 00:00:00 | H111: 00:00:00 | I111: 01:08:40
A112: Del_Salim (1008622) | B112: 00:39:49 | C112: 00:29:18 | D112: 00:00:00 | E112: 00:00:00 | F112: 00:00:00 | G112: 00:00:00 | H112: 00:48:57 | I112: 01:59:29
A113: Del_Sanjay Hire (1008623) | B113: 00:39:16 | C113: 00:29:44 | D113: 00:00:00 | E113: 00:00:00 | F113: 00:00:00 | G113: 00:00:00 | H113: 00:00:00 | I113: 01:09:43
A114: Del_Sanjiv Subherwal (1008624) | B114: 00:40:08 | C114: 00:29:42 | D114: 00:00:00 | E114: 00:00:00 | F114: 00:00:00 | G114: 00:00:00 | H114: 00:00:00 | I114: 01:10:15
A115: Del_Sanju Ramdas (1008625) | B115: 00:39:47 | C115: 00:29:56 | D115: 00:00:00 | E115: 00:00:00 | F115: 00:00:00 | G115: 00:00:02 | H115: 00:04:02 | I115: 01:13:56
A116: Del_Santosh Kumar (1008626) | B116: 00:39:52 | C116: 00:29:34 | D116: 00:00:00 | E116: 00:00:00 | F116: 00:00:00 | G116: 00:00:00 | H116: 00:00:00 | I116: 01:09:48
A117: Del_Santosh Kumar (1008627) | B117: 00:40:01 | C117: 00:30:20 | D117: 00:00:00 | E117: 00:00:00 | F117: 00:00:00 | G117: 00:00:00 | H117: 00:00:00 | I117: 01:10:58
A118: Del_Santosh Kumar (1008628) | B118: 00:41:46 | C118: 00:28:09 | D118: 00:00:00 | E118: 00:00:00 | F118: 00:00:00 | G118: 00:00:00 | H118: 00:00:00 | I118: 01:12:01
A119: Del_Sapna Sharma (1008629) | B119: 00:38:46 | C119: 00:29:34 | D119: 00:00:00 | E119: 00:00:00 | F119: 00:00:00 | G119: 00:00:00 | H119: 00:23:22 | I119: 01:32:37
A120: Del_Saroj Parita (1008630) | B120: 00:42:28 | C120: 00:25:06 | D120: 00:00:00 | E120: 00:00:00 | F120: 00:00:00 | G120: 00:00:00 | H120: 00:31:53 | I120: 01:45:37
A121: Del_Shailaja Kamal (1008631) | B121: 00:38:40 | C121: 00:29:05 | D121: 00:00:00 | E121: 00:00:00 | F121: 00:00:00 | G121: 00:00:00 | H121: 00:00:00 | I121: 01:08:46
A122: Del_Shailendra Barge (1008632) | B122: 00:39:40 | C122: 00:29:48 | D122: 00:00:00 | E122: 00:00:00 | F122: 02:31:25 | G122: 00:00:00 | H122: 00:00:00 | I122: 03:43:06
A123: Del_Shankar Attendant (1008633) | B123: 00:39:24 | C123: 00:30:43 | D123: 01:23:39 | E123: 00:00:00 | F123: 00:00:00 | G123: 00:00:00 | H123: 00:40:50 | I123: 03:15:05
A124: Del_Shashikant Tiwari (1008634) | B124: 00:39:24 | C124: 00:29:29 | D124: 00:00:00 | E124: 00:00:00 | F124: 00:00:00 | G124: 00:00:00 | H124: 00:00:00 | I124: 01:09:59
A125: Del_Sheeba Joseph (1008635) | B125: 00:35:25 | C125: 00:15:56 | D125: 00:00:00 | E125: 00:00:00 | F125: 00:00:00 | G125: 00:00:00 | H125: 00:00:00 | I125: 00:55:39
A126: Del_Sheena Joseph (1008636) | B126: 00:41:10 | C126: 00:29:22 | D126: 00:00:00 | E126: 00:00:00 | F126: 00:00:00 | G126: 00:00:00 | H126: 00:29:57 | I126: 01:41:30
A127: Del_Shephali Jain (1008637) | B127: 00:39:39 | C127: 00:14:27 | D127: 00:00:00 | E127: 00:00:00 | F127: 02:28:42 | G127: 00:00:00 | H127: 00:00:00 | I127: 03:23:49
A128: Del_Shivji Prasad (1008638) | B128: 00:39:24 | C128: 00:31:02 | D128: 00:00:00 | E128: 01:05:37 | F128: 00:00:00 | G128: 00:00:00 | H128: 00:00:00 | I128: 02:17:48
A129: Del_Shubhanjali Joshi (1008639) | B129: 00:39:30 | C129: 00:29:45 | D129: 00:00:00 | E129: 00:00:00 | F129: 00:00:00 | G129: 00:09:13 | H129: 00:00:00 | I129: 01:19:32
A130: Del_Shyamal Malakar (1008640) | B130: 00:39:28 | C130: 00:29:21 | D130: 00:00:00 | E130: 00:52:47 | F130: 02:31:52 | G130: 00:00:00 | H130: 00:00:00 | I130: 04:35:37
A131: Del_Sneh Khan (1008641) | B131: 00:39:49 | C131: 00:29:51 | D131: 00:00:00 | E131: 00:00:00 | F131: 00:00:00 | G131: 00:00:00 | H131: 00:00:00 | I131: 01:09:51
A132: Del_Sonaram Munda (1008642) | B132: 00:39:48 | C132: 00:29:45 | D132: 00:00:00 | E132: 00:00:00 | F132: 00:00:00 | G132: 00:00:00 | H132: 00:47:26 | I132: 01:57:15
A133: Del_Sudama Kumar (1008643) | B133: 00:39:05 | C133: 00:15:16 | D133: 00:00:00 | E133: 00:00:00 | F133: 00:00:00 | G133: 00:00:00 | H133: 03:40:36 | I133: 04:36:20
A134: Del_Sudhir Kumar (1008644) | B134: 00:43:27 | C134: 00:28:35 | D134: 00:00:00 | E134: 00:00:00 | F134: 00:00:00 | G134: 00:00:00 | H134: 00:00:00 | I134: 01:14:24
A135: Del_Sunil Kumar (1008645) | B135: 00:40:09 | C135: 00:50:33 | D135: 00:00:02 | E135: 00:00:00 | F135: 00:00:00 | G135: 00:02:33 | H135: 02:22:56 | I135: 03:56:57
A136: Del_Sunil Kumar (1008646) | B136: 00:35:18 | C136: 00:28:46 | D136: 01:12:29 | E136: 00:00:00 | F136: 00:00:00 | G136: 00:00:00 | H136: 00:00:00 | I136: 02:16:51
A137: Del_Sunita Chawla (1008647) | B137: 00:40:03 | C137: 00:30:37 | D137: 00:00:00 | E137: 00:55:51 | F137: 00:00:00 | G137: 00:00:00 | H137: 00:00:00 | I137: 02:06:43
A138: Del_Sunita Madnani (1008648) | B138: 00:40:15 | C138: 00:27:30 | D138: 00:00:00 | E138: 00:00:00 | F138: 00:00:00 | G138: 00:00:00 | H138: 00:00:00 | I138: 01:08:15
A139: Del_Surendra Kumar (1008649) | B139: 00:00:00 | C139: 00:27:48 | D139: 00:00:00 | E139: 00:00:00 | F139: 03:18:17 | G139: 00:00:00 | H139: 00:00:00 | I139: 03:46:52
A140: Del_Surendranath Thakur (1008650) | B140: 00:39:42 | C140: 00:29:22 | D140: 01:05:59 | E140: 00:00:00 | F140: 00:00:00 | G140: 00:00:00 | H140: 00:00:00 | I140: 02:17:05
A141: Del_Sushma Khandelwal (1008651) | B141: 00:40:10 | C141: 00:30:01 | D141: 00:00:00 | E141: 00:00:00 | F141: 00:00:00 | G141: 00:00:00 | H141: 00:00:00 | I141: 01:10:21
A142: Del_Swarnlata Borse (1008652) | B142: 00:39:22 | C142: 00:28:37 | D142: 00:00:00 | E142: 00:54:22 | F142: 02:30:10 | G142: 00:00:00 | H142: 00:00:00 | I142: 04:32:37
A143: Del_Syed Naved (1008653) | B143: 00:34:44 | C143: 00:29:32 | D143: 00:00:00 | E143: 00:00:00 | F143: 00:00:00 | G143: 00:00:00 | H143: 00:00:00 | I143: 01:14:44
A144: Del_Syed Saqib (1008654) | B144: 00:37:49 | C144: 00:30:51 | D144: 00:00:00 | E144: 00:00:00 | F144: 00:00:00 | G144: 00:00:00 | H144: 03:54:15 | I144: 05:03:34
A145: Del_Syed Sohail (1008655) | B145: 00:39:45 | C145: 00:32:08 | D145: 00:00:00 | E145: 00:00:00 | F145: 00:00:00 | G145: 00:00:00 | H145: 00:00:00 | I145: 01:12:04
A146: Del_System Operator (1008656) | B146: 00:40:00 | C146: 00:14:57 | D146: 00:00:00 | E146: 00:00:00 | F146: 00:00:00 | G146: 00:00:00 | H146: 00:00:00 | I146: 00:56:05
A147: Del_Tahira Qureshi (1008657) | B147: 00:43:30 | C147: 00:22:35 | D147: 00:00:00 | E147: 01:06:22 | F147: 00:00:00 | G147: 00:00:00 | H147: 01:47:33 | I147: 04:02:30
A148: Del_Tapas Chakraborty (1008658) | B148: 00:34:07 | C148: 00:35:28 | D148: 00:00:00 | E148: 00:00:00 | F148: 00:00:00 | G148: 00:00:00 | H148: 00:00:00 | I148: 01:12:11
A149: Del_Tariq Akhlaq (1008659) | B149: 00:00:00 | C149: 00:14:54 | D149: 00:00:00 | E149: 00:00:00 | F149: 00:00:00 | G149: 00:00:00 | H149: 00:00:00 | I149: 00:15:03
A150: Del_Tasneem Khan (1008660) | B150: 00:40:06 | C150: 00:29:10 | D150: 01:06:50 | E150: 00:00:00 | F150: 00:00:00 | G150: 00:00:00 | H150: 00:00:00 | I150: 02:16:51

Sheet Efficiency
A1: Employee | B1: Total Working Hours | C1: Work Efficiency | D1: Attended Calls | E1: Efficiency in Percentage | F1: Active With Cust. | G1: Active Time | H1: Other | I1: Not Working % | J1: Call Keeping | K1: Break During Calls | L1: Non Break % | M1: % Other Work | N1: Long Time | O1: Short Time Holds | P1: Long Call Holds | Q1: No Hold
A2: Mum_Abdul Hamid (1008512) | B2: 08:15:43 | C2: 04:57:59 | D2: 98 | E2: 0.6954103462 | F2: 0.5569713882 | G2: 0.5784890562 | H2: 0.0001344854251 | I2: 0.2568335407 | J2: 0.02249268736 | K2: 0 | L2: 0.1385872306 | M2: 0.003462999697 | N2: 2 | O2: 3 | P2: 0 | Q2: 0
A3: Mum_Afzal Husain (1008513) | B3: 08:15:36 | C3: 04:58:34 | D3: 23 | E3: 0.7012722646 | F3: 0.5802730697 | G3: 0.5862590799 | H3: 3.362927092e-05 | I3: 0.2537328491 | J3: 0.01614205004 | K3: 0 | L3: 0.1412093086 | M3: 0.002623083132 | N3: 2 | O3: 1 | P3: 0 | Q3: 0
A4: Mum_Anamika Gupta (1008514) | B4: 08:16:57 | C4: 04:49:35 | D4: 28 | E4: 0.6776785366 | F4: 0.5170875675 | G4: 0.5403628802 | H4: 0.01965321796 | I4: 0.2645470705 | J4: 0.02270516819 | K4: 0 | L4: 0.1487071134 | M4: 0.004024549753 | N4: 6 | O4: 3 | P4: 4 | Q4: 1
A5: Mum_Anikuttan (1008515) | B5: 08:09:56 | C5: 04:17:32 | D5: 29 | E5: 0.7206753416 | F5: 0.4772077834 | G5: 0.4980269424 | H5: 6.803646755e-05 | I5: 0.1835623894 | J5: 0.02755476936 | K5: 0 | L5: 0.2837801061 | M5: 0.007007756157 | N5: 1 | O5: 2 | P5: 0 | Q5: 0
A6: Mum_Anil Kumar (1008516) | B6: 07:20:41 | C6: 03:19:44 | D6: 93 | E6: 0.7799036835 | F6: 0.4328883174 | G6: 0.4349684203 | H6: 0.0003782005219 | I6: 0.1136492568 | J6: 0.01788888469 | K6: 0 | L6: 0.4197269392 | M6: 0.01338829848 | N6: 0 | O6: 4 | P6: 0 | Q6: 0
A7: Mum_Anita Dixit (1008517) | B7: 05:00:09 | C7: 03:41:19 | D7: 92 | E7: 0.7759597966 | F7: 0.6549503026 | G7: 0.6576156366 | H7: 0.008551279916 | I7: 0.1626964296 | J7: 0.07118662891 | K7: 0 | L7: 0.09034371703 | M7: 0.009606307957 | N7: 2 | O7: 8 | P7: 2 | Q7: 0
A8: Mum_Anita Ghore (1008518) | B8: 08:16:38 | C8: 04:12:46 | D8: 26 | E8: 0.7543021983 | F8: 0.4947647493 | G8: 0.5007383046 | H8: 0 | I8: 0.1505470166 | J8: 0.008121350426 | K8: 0 | L8: 0.3255923216 | M8: 0.01500100678 | N8: 0 | O8: 0 | P8: 0 | Q8: 0
A9: Mum_Anjali Deoram (1008519) | B9: 09:16:31 | C9: 05:52:08 | D9: 90 | E9: 0.7235120882 | F9: 0.5512862747 | G9: 0.5818334282 | H9: 0.008684974993 | I9: 0.2279356713 | J9: 0.04222694738 | K9: 0 | L9: 0.1314725525 | M9: 0.007846425684 | N9: 0 | O9: 8 | P9: 3 | Q9: 1
A10: Mum_Anjali Sahay (1008520) | B10: 08:13:18 | C10: 04:52:29 | D10: 89 | E10: 0.6824686941 | F10: 0.5520643287 | G10: 0.5753091425 | H10: 0.0007095073991 | I10: 0.2655922697 | J10: 0.01689303331 | K10: 0 | L10: 0.1351104804 | M10: 0.006385566592 | N10: 4 | O10: 0 | P10: 0 | Q10: 0
A11: Mum_Annu Latika (1008521) | B11: 08:20:41 | C11: 04:58:07 | D11: 54 | E11: 0.6919268113 | F11: 0.5686894577 | G11: 0.5852002264 | H11: 0.0001664391998 | I11: 0.2612096801 | J11: 0.01005292767 | K11: 0 | L11: 0.1397090643 | M11: 0.003661662395 | N11: 2 | O11: 0 | P11: 0 | Q11: 0
A12: Mum_Anoop Narayan (1008522) | B12: 08:10:35 | C12: 04:55:28 | D12: 87 | E12: 0.7010162521 | F12: 0.5603533209 | G12: 0.569016477 | H12: 0.01066757262 | I12: 0.2498726006 | J12: 0.0225921522 | K12: 0 | L12: 0.1411584848 | M12: 0.006692712757 | N12: 2 | O12: 3 | P12: 3 | Q12: 0
A13: Mum_Anoop Raj (1008523) | B13: 08:04:10 | C13: 03:47:42 | D13: 65 | E13: 0.7123787673 | F13: 0.415524957 | G13: 0.4257831325 | H13: 0 | I13: 0.14616179 | J13: 0.04450946644 | K13: 0 | L13: 0.3744578313 | M13: 0.00908777969 | N13: 0 | O13: 8 | P13: 0 | Q13: 0
A14: Mum_Anubhuti Gupta (1008524) | B14: 08:14:38 | C14: 04:43:40 | D14: 85 | E14: 0.7696133846 | F14: 0.5002695599 | G14: 0.5162746816 | H14: 0.0001347799717 | I14: 0.1662847901 | J14: 0.05707931801 | K14: 0 | L14: 0.2561156412 | M14: 0.004110789137 | N14: 1 | O14: 9 | P14: 0 | Q14: 0
A15: Mum_Arun Kumar (1008525) | B15: 07:59:50 | C15: 04:40:27 | D15: 65 | E15: 0.6846645237 | F15: 0.5139631817 | G15: 0.5313650573 | H15: 0.008787773532 | I15: 0.2623133032 | J15: 0.04432094477 | K15: 0 | L15: 0.1470649531 | M15: 0.006147968044 | N15: 1 | O15: 8 | P15: 3 | Q15: 1
A16: Mum_Ashish Kumar (1008526) | B16: 08:16:59 | C16: 04:57:35 | D16: 83 | E16: 0.6927792651 | F16: 0.5105805024 | G16: 0.5389516751 | H16: 0.02806935176 | I16: 0.2366947248 | J16: 0.03175827493 | K16: 0 | L16: 0.1549012375 | M16: 0.009624735907 | N16: 2 | O16: 4 | P16: 7 | Q16: 0
A17: Mum_Ashok Kumar (1008527) | B17: 08:17:15 | C17: 04:10:25 | D17: 82 | E17: 0.7079917067 | F17: 0.4829227417 | G17: 0.4853695324 | H17: 0.0002011060835 | I17: 0.203251215 | J17: 0.01803251215 | K17: 0 | L17: 0.2902631138 | M17: 0.00288252053 | N17: 2 | O17: 1 | P17: 0 | Q17: 0
A18: Hyd_Ashok Kumar (1008528) | B18: 07:53:01 | C18: 04:44:12 | D18: 81 | E18: 0.6753802281 | F18: 0.5736231986 | G18: 0.5861315669 | H18: 0 | I18: 0.2737394736 | J18: 0.01469292837 | K18: 0 | L18: 0.1194108735 | M18: 0.006025157676 | N18: 1 | O18: 1 | P18: 0 | Q18: 1
A19: Hyd_Ashok Kumar (1008529) | B19: 08:16:43 | C19: 04:58:07 | D19: 80 | E19: 0.6984926585 | F19: 0.5643056068 | G19: 0.5916182935 | H19: 0 | I19: 0.2548065631 | J19: 0.008556185619 | K19: 0 | L19: 0.1411602859 | M19: 0.003858671946 | N19: 2 | O19: 0 | P19: 0 | Q19: 0
A20: Hyd_Ashok Kumar (1008530) | B20: 08:21:16 | C20: 04:23:03 | D20: 79 | E20: 0.7654590426 | F20: 0.4697433169 | G20: 0.4786208272 | H20: 0.02137917276 | I20: 0.1493882165 | J20: 0.02477058119 | K20: 0 | L20: 0.3195238729 | M20: 0.006317329432 | N20: 6 | O20: 5 | P20: 3 | Q20: 0
A21: Hyd_Ashok Mahto (1008531) | B21: 08:17:52 | C21: 04:58:14 | D21: 78 | E21: 0.6986296022 | F21: 0.5749531334 | G21: 0.5820500803 | H21: 0.003849758972 | I21: 0.2476901446 | J21: 0.01312265667 | K21: 0 | L21: 0.1496384574 | M21: 0.003648901982 | N21: 4 | O21: 1 | P21: 1 | Q21: 0
A22: Hyd_Atul Kumar (1008532) | B22: 08:13:41 | C22: 04:53:40 | D22: 77 | E22: 0.6875024386 | F22: 0.5794537659 | G22: 0.5862057324 | H22: 0.0001012794977 | I22: 0.2558657709 | J22: 0.008541237635 | K22: 0 | L22: 0.135680767 | M22: 0.01360521252 | N22: 2 | O22: 0 | P22: 0 | Q22: 0
A23: Hyd_Azam (1008533) | B23: 08:17:34 | C23: 04:59:50 | D23: 76 | E23: 0.69910232 | F23: 0.5882963757 | G23: 0.5899376968 | H23: 0.0001004890467 | I23: 0.2546727407 | J23: 0.01256113084 | K23: 0 | L23: 0.1402492128 | M23: 0.002478729818 | N23: 3 | O23: 1 | P23: 0 | Q23: 0
A24: Hyd_Bhagwat Singh (1008534) | B24: 07:41:44 | C24: 04:08:57 | D24: 75 | E24: 0.7489095011 | F24: 0.4626768698 | G24: 0.4652757725 | H24: 0.004439792088 | I24: 0.1762200404 | J24: 0.0694484551 | K24: 0 | L24: 0.2821975166 | M24: 0.002418423332 | N24: 1 | O24: 7 | P24: 1 | Q24: 0
A25: Hyd_Bindu Nair (1008535) | B25: 08:10:04 | C25: 04:14:05 | D25: 74 | E25: 0.7077530176 | F25: 0.4780302 | G25: 0.4966331111 | H25: 0.001156305265 | I25: 0.2100054414 | J25: 0.02067745885 | K25: 0 | L25: 0.2678887226 | M25: 0.003638960686 | N25: 1 | O25: 2 | P25: 0 | Q25: 1
A26: Hyd_Daleep Singh (1008536) | B26: 08:14:20 | C26: 05:26:56 | D26: 73 | E26: 0.7629716064 | F26: 0.5998314228 | G26: 0.6018206339 | H26: 0.01493594066 | I26: 0.171072151 | J26: 0.04460552933 | K26: 0 | L26: 0.1474713419 | M26: 0.02009440324 | N26: 1 | O26: 4 | P26: 1 | Q26: 1
A27: Hyd_Deepak Kumar (1008537) | B27: 07:35:57 | C27: 05:05:16 | D27: 72 | E27: 0.714687061 | F27: 0.650290602 | G27: 0.6509851226 | H27: 0 | I27: 0.2578864642 | J27: 0.01853273385 | K27: 0 | L27: 0.0668932997 | M27: 0.005702379647 | N27: 1 | O27: 3 | P27: 0 | Q27: 0
A28: Hyd_Deepika Nigam (1008538) | B28: 08:16:59 | C28: 04:56:45 | D28: 71 | E28: 0.6947479319 | F28: 0.5500184446 | G28: 0.5744324089 | H28: 0.01230758912 | I28: 0.2527918441 | J28: 0.01036252054 | K28: 0 | L28: 0.1442033603 | M28: 0.005902277072 | N28: 1 | O28: 0 | P28: 5 | Q28: 0
A29: Hyd_Dinesh Kumar (1008539) | B29: 08:13:53 | C29: 05:06:20 | D29: 70 | E29: 0.7220869019 | F29: 0.5133466068 | G29: 0.5438868829 | H29: 0.007930347923 | I29: 0.2320386056 | J29: 0.06843721527 | K29: 0 | L29: 0.1418351163 | M29: 0.005871832079 | N29: 0 | O29: 11 | P29: 1 | Q29: 1
A30: Hyd_Hari Kumar (1008540) | B30: 08:15:11 | C30: 04:11:43 | D30: 69 | E30: 0.7609714315 | F30: 0.4360337922 | G30: 0.449833395 | H30: 0.004274511124 | I30: 0.1568106089 | J30: 0.05422234189 | K30: 0 | L30: 0.3329406617 | M30: 0.001918481371 | N30: 1 | O30: 11 | P30: 2 | Q30: 0
A31: Hyd_Heeramani Choudhary (1008541) | B31: 07:27:24 | C31: 04:35:28 | D31: 68 | E31: 0.7036485163 | F31: 0.529541052 | G31: 0.541163761 | H31: 0.01814185665 | I31: 0.1987036209 | J31: 0.0563999404 | K31: 0 | L31: 0.1795559529 | M31: 0.006034868127 | N31: 5 | O31: 5 | P31: 3 | Q31: 1
A32: Hyd_Indra Pal (1008542) | B32: 07:59:57 | C32: 05:14:16 | D32: 67 | E32: 0.7649182589 | F32: 0.564468521 | G32: 0.5865888808 | H32: 0.003611487308 | I32: 0.1891863736 | J32: 0.06459006146 | K32: 0 | L32: 0.1442858631 | M32: 0.01173733375 | N32: 0 | O32: 9 | P32: 1 | Q32: 1
A33: Hyd_Indra Singh (1008543) | B33: 08:17:44 | C33: 05:05:03 | D33: 66 | E33: 0.826880506 | F33: 0.4978904366 | G33: 0.5135614787 | H33: 0.00334851326 | I33: 0.1236605947 | J33: 0.09596839003 | K33: 0 | L33: 0.2596437182 | M33: 0.003817305117 | N33: 1 | O33: 15 | P33: 1 | Q33: 0
A34: Hyd_Jagdish Chandra (1008544) | B34: 08:19:10 | C34: 04:59:15 | D34: 65 | E34: 0.6953103822 | F34: 0.5627045075 | G34: 0.5761602671 | H34: 0.001402337229 | I34: 0.2396661102 | J34: 0.02193656093 | K34: 0 | L34: 0.1383305509 | M34: 0.02250417362 | N34: 2 | O34: 1 | P34: 0 | Q34: 0
A35: Hyd_Jairaj Vatham (1008545) | B35: 08:16:23 | C35: 05:02:08 | D35: 64 | E35: 0.7056716883 | F35: 0.5768055602 | G35: 0.5859718631 | H35: 0.0001007286036 | I35: 0.2457442165 | J35: 0.0225967834 | K35: 0 | L35: 0.1408857402 | M35: 0.004700668166 | N35: 2 | O35: 2 | P35: 0 | Q35: 0
A36: Hyd_Janardan Mishra (1008546) | B36: 07:39:42 | C36: 04:32:56 | D36: 63 | E36: 0.7287615148 | F36: 0.5572837358 | G36: 0.5776230875 | H36: 0.0007251105794 | I36: 0.2037923283 | J36: 0.01537234428 | K36: 0 | L36: 0.1917554927 | M36: 0.01073163657 | N36: 2 | O36: 1 | P36: 0 | Q36: 0
A37: Hyd_Jitendra Kumar (1008547) | B37: 08:11:27 | C37: 04:07:41 | D37: 62 | E37: 0.7356930693 | F37: 0.4759046359 | G37: 0.4897073287 | H37: 0.0005765252484 | I37: 0.1760436803 | J37: 0.01370095296 | K37: 0 | L37: 0.3158001831 | M37: 0.004171329739 | N37: 1 | O37: 1 | P37: 0 | Q37: 0
A38: Hyd_John D'Costa (1008548) | B38: 08:09:47 | C38: 04:51:30 | D38: 61 | E38: 0.6934147405 | F38: 0.5563684622 | G38: 0.5710348113 | H38: 0 | I38: 0.2592302719 | J38: 0.02412631436 | K38: 0 | L38: 0.1421036513 | M38: 0.003504951169 | N38: 2 | O38: 3 | P38: 0 | Q38: 0
A39: Hyd_Julie S (1008549) | B39: 08:15:46 | C39: 04:56:12 | D39: 60 | E39: 0.6952779625 | F39: 0.5279701472 | G39: 0.5434007934 | H39: 0.003529886371 | I39: 0.2566731661 | J39: 0.05052780206 | K39: 0 | L39: 0.1426746453 | M39: 0.003193706717 | N39: 1 | O39: 11 | P39: 1 | Q39: 0
A40: Hyd_Jyoti Tulsani (1008550) | B40: 08:15:19 | C40: 04:56:56 | D40: 59 | E40: 0.6973812972 | F40: 0.5650257411 | G40: 0.5750866449 | H40: 6.729701538e-05 | I40: 0.2543827181 | J40: 0.02432787106 | K40: 0 | L40: 0.142232242 | M40: 0.003903226892 | N40: 1 | O40: 4 | P40: 0 | Q40: 0
A41: Hyd_Kahkasha Parveen (1008551) | B41: 08:17:24 | C41: 05:25:18 | D41: 58 | E41: 0.7612324493 | F41: 0.4857927892 | G41: 0.5160166198 | H41: 0.001005227181 | I41: 0.2015815574 | J41: 0.1369789572 | K41: 0 | L41: 0.1411338963 | M41: 0.003283742126 | N41: 1 | O41: 3 | P41: 0 | Q41: 1
A42: Hyd_Kailash Nath (1008552) | B42: 08:16:01 | C42: 04:58:27 | D42: 57 | E42: 0.6950395901 | F42: 0.5722589967 | G42: 0.5841873593 | H42: 3.360102147e-05 | I42: 0.2408185209 | J42: 0.01747253116 | K42: 0 | L42: 0.1364201472 | M42: 0.02106784046 | N42: 3 | O42: 1 | P42: 0 | Q42: 0
A43: Hyd_Kalpana Agrawal (1008553) | B43: 08:00:08 | C43: 03:54:19 | D43: 56 | E43: 0.6966453595 | F43: 0.4654262705 | G43: 0.4749028048 | H43: 0.003019994446 | I43: 0.2075812274 | J43: 0.01010136073 | K43: 0 | L43: 0.3017911691 | M43: 0.002603443488 | N43: 1 | O43: 1 | P43: 1 | Q43: 2
A44: Hyd_Kamini Kumar (1008554) | B44: 05:01:37 | C44: 03:21:30 | D44: 55 | E44: 0.7026618621 | F44: 0.643808366 | G44: 0.6560203349 | H44: 0.0002210311101 | I44: 0.2795490965 | J44: 0.01182516439 | K44: 0 | L44: 0.04973199978 | M44: 0.002652373322 | N44: 1 | O44: 0 | P44: 0 | Q44: 0
A45: Hyd_Kamini Tiwari (1008555) | B45: 08:26:46 | C45: 05:18:49 | D45: 54 | E45: 0.7235966107 | F45: 0.573472341 | G45: 0.587120963 | H45: 0.0008550943893 | I45: 0.2312372558 | J45: 0.04114319542 | K45: 0 | L45: 0.1376373084 | M45: 0.00200618299 | N45: 7 | O45: 6 | P45: 0 | Q45: 0
A46: Hyd_Kavita Sharma (1008556) | B46: 07:53:25 | C46: 05:26:19 | D46: 53 | E46: 0.779977691 | F46: 0.6471747932 | G46: 0.6710438303 | H46: 0.002112304172 | I46: 0.1780672417 | J46: 0.01605351171 | K46: 0 | L46: 0.1189579299 | M46: 0.01376518219 | N46: 3 | O46: 2 | P46: 1 | Q46: 2
A47: Hyd_Kiran Khubchandani (1008557) | B47: 08:01:28 | C47: 04:13:15 | D47: 52 | E47: 0.7204153233 | F47: 0.5044309056 | G47: 0.5112849626 | H47: 0.005988645804 | I47: 0.1977637773 | J47: 0.008723345334 | K47: 0 | L47: 0.2708391027 | M47: 0.005400166159 | N47: 3 | O47: 0 | P47: 1 | Q47: 0
A48: Hyd_Kisun Sah (1008558) | B48: 08:21:34 | C48: 05:08:41 | D48: 51 | E48: 0.7139387865 | F48: 0.5528012228 | G48: 0.5673223898 | H48: 0.005017611484 | I48: 0.2393168073 | J48: 0.04309829202 | K48: 0 | L48: 0.1384993686 | M48: 0.006745530671 | N48: 5 | O48: 8 | P48: 2 | Q48: 0
A49: Hyd_Krishana Kumar (1008559) | B49: 08:15:28 | C49: 04:45:06 | D49: 50 | E49: 0.6694583594 | F49: 0.5549313778 | G49: 0.5652919806 | H49: 0.0002354682454 | I49: 0.2808127018 | J49: 0.009889666308 | K49: 0 | L49: 0.1407763724 | M49: 0.002993810549 | N49: 3 | O49: 0 | P49: 0 | Q49: 0
A50: Hyd_Kunj Bihari (1008560) | B50: 07:59:19 | C50: 04:42:13 | D50: 49 | E50: 0.6895105465 | F50: 0.5521749713 | G50: 0.5566257519 | H50: 0 | I50: 0.2622483397 | J50: 0.03216384436 | K50: 0 | L50: 0.1464237282 | M50: 0.002538335825 | N50: 0 | O50: 3 | P50: 0 | Q50: 2
A51: Hyd_Leena George (1008561) | B51: 04:56:13 | C51: 03:10:50 | D51: 48 | E51: 0.679081905 | F51: 0.5881955776 | G51: 0.612051989 | H51: 0.01119675913 | I51: 0.2864457323 | J51: 0.02098689023 | K51: 0 | L51: 0.06132898216 | M51: 0.007989647218 | N51: 2 | O51: 2 | P51: 3 | Q51: 0
A52: Hyd_Lilly Lucy (1008562) | B52: 07:45:23 | C52: 04:39:06 | D52: 47 | E52: 0.6734226083 | F52: 0.5553486373 | G52: 0.5633348852 | H52: 0.0005013787917 | I52: 0.2352182788 | J52: 0.03588439638 | K52: 0 | L52: 0.1605844644 | M52: 0.004476596354 | N52: 1 | O52: 6 | P52: 0 | Q52: 0
A53: Hyd_Mangal Singh (1008563) | B53: 08:00:13 | C53: 04:46:25 | D53: 46 | E53: 0.6980948125 | F53: 0.5581508347 | G53: 0.5788706487 | H53: 0.0003817721168 | I53: 0.2535660986 | J53: 0.01717974525 | K53: 0 | L53: 0.1459063617 | M53: 0.004095373616 | N53: 2 | O53: 1 | P53: 0 | Q53: 0
A54: Hyd_Manisha Shrivastava (1008564) | B54: 08:09:49 | C54: 04:51:12 | D54: 45 | E54: 0.6935259794 | F54: 0.5300282419 | G54: 0.5651093947 | H54: 0.003776923339 | I54: 0.2559120759 | J54: 0.02500935724 | K54: 0 | L54: 0.1432168498 | M54: 0.006975398959 | N54: 1 | O54: 3 | P54: 1 | Q54: 1
A55: Hyd_Manjusha Sinha (1008565) | B55: 08:14:05 | C55: 05:04:01 | D55: 44 | E55: 0.7164009112 | F55: 0.5463990555 | G55: 0.5542249958 | H55: 6.746500253e-05 | I55: 0.238758644 | J55: 0.06102209479 | K55: 0 | L55: 0.1429920729 | M55: 0.00293472761 | N55: 1 | O55: 9 | P55: 0 | Q55: 0
A56: Hyd_ManjuTiwari Lab (1008566) | B56: 07:41:28 | C56: 04:26:11 | D56: 43 | E56: 0.6796170213 | F56: 0.5284960994 | G56: 0.5284960994 | H56: 0 | I56: 0.2682028316 | J56: 0.04832418376 | K56: 0 | L56: 0.1533516325 | M56: 0.001625252817 | N56: 0 | O56: 7 | P56: 0 | Q56: 0
A57: Hyd_Manoj Kumar (1008567) | B57: 08:00:44 | C57: 04:28:58 | D57: 42 | E57: 0.6544997364 | F57: 0.5327971155 | G57: 0.5442033005 | H57: 0.0001040077659 | I57: 0.2876854805 | J57: 0.01518513382 | K57: 0 | L57: 0.1453681875 | M57: 0.00745388989 | N57: 0 | O57: 1 | P57: 0 | Q57: 7
A58: Hyd_Manoj Kumar (1008568) | B58: 07:55:23 | C58: 04:29:51 | D58: 41 | E58: 0.6653653325 | F58: 0.531500894 | G58: 0.5378817095 | H58: 0.0008764856432 | I58: 0.268134488 | J58: 0.0288889668 | K58: 0 | L58: 0.1598359219 | M58: 0.004382428216 | N58: 0 | O58: 1 | P58: 0 | Q58: 0
A59: Hyd_Masroor Adil (1008569) | B59: 08:10:04 | C59: 05:04:35 | D59: 40 | E59: 0.7245371288 | F59: 0.58954564 | G59: 0.5975717589 | H59: 0.0002380628486 | I59: 0.2134063393 | J59: 0.02370425792 | K59: 0 | L59: 0.146204598 | M59: 0.018874983 | N59: 0 | O59: 3 | P59: 0 | Q59: 1
A60: Hyd_Meena Zinjare (1008570) | B60: 08:05:29 | C60: 03:09:32 | D60: 39 | E60: 0.6992989792 | F60: 0.3490336091 | G60: 0.3596415943 | H60: 0.01949946788 | I60: 0.164337945 | J60: 0.0112602561 | K60: 0 | L60: 0.4423426826 | M60: 0.002918054173 | N60: 2 | O60: 1 | P60: 4 | Q60: 0
A61: Hyd_Mehnaz Khan (1008571) | B61: 08:14:51 | C61: 04:08:21 | D61: 38 | E61: 0.6702802393 | F61: 0.4793371729 | G61: 0.4882961167 | H61: 0.0004378431174 | I61: 0.2268700953 | J61: 0.01313529352 | K61: 0 | L61: 0.267555825 | M61: 0.003704826378 | N61: 1 | O61: 1 | P61: 0 | Q61: 0
A62: Hyd_Mercy Thampi (1008572) | B62: 05:15:35 | C62: 03:38:44 | D62: 37 | E62: 0.727212279 | F62: 0.627620808 | G62: 0.664219699 | H62: 0 | I62: 0.2520728809 | J62: 0.02888830209 | K62: 0 | L62: 0.04937945603 | M62: 0.005439662002 | N62: 1 | O62: 3 | P62: 0 | Q62: 0
A63: Hyd_Miny Mole (1008573) | B63: 08:12:10 | C63: 04:14:06 | D63: 36 | E63: 0.7073725235 | F63: 0.4756180156 | G63: 0.4966474771 | H63: 0.001760921097 | I63: 0.2106671182 | J63: 0.01788012191 | K63: 0 | L63: 0.2704707078 | M63: 0.002573653911 | N63: 2 | O63: 1 | P63: 0 | Q63: 0
A64: Hyd_Mohd Rafi (1008574) | B64: 08:00:32 | C64: 03:55:15 | D64: 35 | E64: 0.7285537318 | F64: 0.4363554384 | G64: 0.4531076582 | H64: 0.003121531632 | I64: 0.1765052719 | J64: 0.03333102109 | K64: 0 | L64: 0.3298071587 | M64: 0.004127358491 | N64: 0 | O64: 6 | P64: 1 | Q64: 0
A65: Hyd_Mubeen Khan (1008575) | B65: 07:55:35 | C65: 03:50:43 | D65: 34 | E65: 0.6915621722 | F65: 0.4512703697 | G65: 0.487821973 | H65: 0.01433327493 | I65: 0.179288593 | J65: 0.01272121955 | K65: 0 | L65: 0.3041177501 | M65: 0.001717189417 | N65: 1 | O65: 1 | P65: 4 | Q65: 1
A66: Hyd_Mukesh Nagar (1008576) | B66: 05:01:07 | C66: 03:13:40 | D66: 33 | E66: 0.6765647744 | F66: 0.6124425749 | G66: 0.6307079205 | H66: 0 | I66: 0.2538329551 | J66: 0.01245364477 | K66: 0 | L66: 0.09819007029 | M66: 0.00481540931 | N66: 3 | O66: 0 | P66: 0 | Q66: 0
A67: Hyd_Nandu Kumar (1008577) | B67: 08:21:39 | C67: 04:43:39 | D67: 32 | E67: 0.6436594683 | F67: 0.5175587229 | G67: 0.5405162962 | H67: 3.322369514e-05 | I67: 0.2826339746 | J67: 0.02488454766 | K67: 0 | L67: 0.1476128775 | M67: 0.004319080368 | N67: 3 | O67: 4 | P67: 0 | Q67: 0
A68: Hyd_Narayan Singh (1008578) | B68: 08:19:29 | C68: 04:54:19 | D68: 31 | E68: 0.6804747409 | F68: 0.5555073576 | G68: 0.5704895058 | H68: 0.01031065434 | I68: 0.2638726684 | J68: 0.008141746471 | K68: 0 | L68: 0.1370416097 | M68: 0.01014381528 | N68: 3 | O68: 0 | P68: 5 | Q68: 1
A69: Hyd_Neeraj Saxena (1008579) | B69: 08:21:13 | C69: 04:36:09 | D69: 30 | E69: 0.7529310188 | F69: 0.4553586273 | G69: 0.4689256143 | H69: 0.04090047551 | I69: 0.1756725302 | J69: 0.04113324244 | K69: 0 | L69: 0.2699431384 | M69: 0.003424999169 | N69: 6 | O69: 8 | P69: 6 | Q69: 0
A70: Hyd_Neeru Mehta (1008580) | B70: 08:02:20 | C70: 04:44:15 | D70: 29 | E70: 0.6892022953 | F70: 0.5344505874 | G70: 0.5572563925 | H70: 0.01399447132 | I70: 0.258845888 | J70: 0.01807187284 | K70: 0 | L70: 0.1452315135 | M70: 0.006599861783 | N70: 1 | O70: 2 | P70: 2 | Q70: 1
A71: Hyd_Nikita Panwalkar (1008581) | B71: 08:16:46 | C71: 04:58:45 | D71: 28 | E71: 0.7478097622 | F71: 0.5591491646 | G71: 0.5749513521 | H71: 0.009226330269 | I71: 0.1967389116 | J71: 0.01576863719 | K71: 0 | L71: 0.1961014561 | M71: 0.007213312756 | N71: 3 | O71: 1 | P71: 2 | Q71: 2
A72: Hyd_Nitin Bhatia (1008582) | B72: 08:00:37 | C72: 04:44:56 | D72: 29 | E72: 0.6934652983 | F72: 0.5684710615 | G72: 0.5687138052 | H72: 0.007108922565 | I72: 0.258383327 | J72: 0.01702673648 | K72: 0 | L72: 0.1454034747 | M72: 0.003363734092 | N72: 1 | O72: 0 | P72: 1 | Q72: 0
A73: Hyd_Om Prakash (1008583) | B73: 07:55:44 | C73: 04:26:21 | D73: 30 | E73: 0.7003374381 | F73: 0.4750910874 | G73: 0.4895249439 | H73: 0.01366311659 | I73: 0.2358464126 | J73: 0.05668441704 | K73: 0 | L73: 0.2018988229 | M73: 0.002382286996 | N73: 1 | O73: 8 | P73: 4 | Q73: 0
A74: Hyd_Omprakash O (1008584) | B74: 08:09:43 | C74: 04:02:05 | D74: 31 | E74: 0.6721425266 | F74: 0.475785318 | G74: 0.4807201443 | H74: 0 | I74: 0.2344893306 | J74: 0.01361331382 | K74: 0 | L74: 0.2693394139 | M74: 0.001837797366 | N74: 0 | O74: 1 | P74: 0 | Q74: 0
A75: Hyd_Owais Mohd (1008585) | B75: 08:01:11 | C75: 04:02:50 | D75: 32 | E75: 0.7249116871 | F75: 0.4689827162 | G75: 0.4840497385 | H75: 0 | I75: 0.1878701812 | J75: 0.02060891552 | K75: 0 | L75: 0.3043192131 | M75: 0.003151951786 | N75: 0 | O75: 3 | P75: 0 | Q75: 1
A76: Hyd_Pankaj Shelkey (1008586) | B76: 08:15:54 | C76: 04:26:54 | D76: 33 | E76: 0.7011690529 | F76: 0.5136116152 | G76: 0.520602272 | H76: 0.002050144518 | I76: 0.2158365262 | J76: 0.02315655038 | K76: 0 | L76: 0.2327754252 | M76: 0.005579081804 | N76: 2 | O76: 1 | P76: 1 | Q76: 0
A77: Hyd_Partha Sarathi (1008587) | B77: 08:32:22 | C77: 05:11:39 | D77: 34 | E77: 0.751597733 | F77: 0.5251122243 | G77: 0.5512328411 | H77: 0.005432307592 | I77: 0.1966039945 | J77: 0.05159065773 | K77: 0 | L77: 0.1926354824 | M77: 0.002504716674 | N77: 3 | O77: 12 | P77: 2 | Q77: 0
A78: Hyd_Prabha Desikan (1008588) | B78: 08:21:49 | C78: 03:03:51 | D78: 35 | E78: 0.7339809701 | F78: 0.3486000864 | G78: 0.3486000864 | H78: 0 | I78: 0.1310903716 | J78: 0.01776877346 | K78: 0 | L78: 0.5010461988 | M78: 0.00149456973 | N78: 0 | O78: 3 | P78: 0 | Q78: 0
A79: Hyd_Pramod Tiwari (1008589) | B79: 08:25:20 | C79: 02:54:03 | D79: 36 | E79: 0.7120550934 | F79: 0.3147097625 | G79: 0.3237796834 | H79: 3.298153034e-05 | I79: 0.1375989446 | J79: 0.02061345646 | K79: 0 | L79: 0.5166886544 | M79: 0.001286279683 | N79: 1 | O79: 1 | P79: 0 | Q79: 1
A80: Hyd_Prasannakumari S (1008590) | B80: 08:08:02 | C80: 05:10:46 | D80: 37 | E80: 0.7435498664 | F80: 0.5560071033 | G80: 0.563349498 | H80: 6.830134554e-05 | I80: 0.2163786627 | J80: 0.07335564511 | K80: 0 | L80: 0.1442865924 | M80: 0.002561300458 | N80: 1 | O80: 12 | P80: 0 | Q80: 0
A81: Hyd_Praveen Kumar (1008591) | B81: 08:19:20 | C81: 04:08:46 | D81: 38 | E81: 0.7271398646 | F81: 0.4622162884 | G81: 0.4692923899 | H81: 0.0001001335113 | I81: 0.1752336449 | J81: 0.02880507343 | K81: 0 | L81: 0.3153538051 | M81: 0.01121495327 | N81: 2 | O81: 5 | P81: 0 | Q81: 1
A82: Hyd_Rachel Mathew (1008592) | B82: 08:25:36 | C82: 03:40:53 | D82: 39 | E82: 0.7225493403 | F82: 0.3907568565 | G82: 0.3948114451 | H82: 0.001813027426 | I82: 0.1656118143 | J82: 0.04024920886 | K82: 0 | L82: 0.3956025844 | M82: 0.001911919831 | N82: 3 | O82: 5 | P82: 1 | Q82: 0
A83: Hyd_Rachita Anupam (1008593) | B83: 08:16:26 | C83: 05:16:03 | D83: 40 | E83: 0.7384058253 | F83: 0.5471362385 | G83: 0.5588531525 | H83: 0.00305512657 | I83: 0.2196333848 | J83: 0.07473309609 | K83: 0 | L83: 0.1380514336 | M83: 0.005673806486 | N83: 0 | O83: 8 | P83: 1 | Q83: 0
A84: Hyd_Rachna Chauhan (1008594) | B84: 07:36:07 | C84: 05:07:23 | D84: 41 | E84: 0.7213595651 | F84: 0.6145722951 | G84: 0.6178609274 | H84: 0.0001461614353 | I84: 0.2562940768 | J84: 0.055906749 | K84: 0 | L84: 0.06650345306 | M84: 0.003288632294 | N84: 4 | O84: 6 | P84: 0 | Q84: 0
A85: Hyd_Raj Kumar (1008595) | B85: 08:09:57 | C85: 05:03:51 | D85: 42 | E85: 0.7194554065 | F85: 0.5533557846 | G85: 0.5663843249 | H85: 0.0002041024594 | I85: 0.2344456917 | J85: 0.0535768956 | K85: 0 | L85: 0.1402864238 | M85: 0.005102561486 | N85: 1 | O85: 7 | P85: 0 | Q85: 0
A86: Hyd_Rajeev Garg (1008596) | B86: 08:04:00 | C86: 05:05:29 | D86: 43 | E86: 0.7290771679 | F86: 0.6113636364 | G86: 0.619077135 | H86: 0 | I86: 0.2253443526 | J86: 0.01208677686 | K86: 0 | L86: 0.141322314 | M86: 0.002169421488 | N86: 2 | O86: 1 | P86: 0 | Q86: 0
A87: Hyd_Rajeev Kumar (1008597) | B87: 07:59:43 | C87: 04:28:51 | D87: 44 | E87: 0.7018360599 | F87: 0.5121773269 | G87: 0.5327102804 | H87: 0.002744675677 | I87: 0.2354862245 | J87: 0.02498002293 | K87: 0 | L87: 0.2024111455 | M87: 0.001667651044 | N87: 2 | O87: 4 | P87: 1 | Q87: 0
A88: Hyd_Rajendra Gupta (1008598) | B88: 08:25:57 | C88: 04:58:12 | D88: 45 | E88: 0.6981426565 | F88: 0.5602991073 | G88: 0.5755180024 | H88: 0.0005600026353 | I88: 0.2498929407 | J88: 0.01330829792 | K88: 0 | L88: 0.1564054419 | M88: 0.004315314425 | N88: 1 | O88: 1 | P88: 0 | Q88: 0
A89: Hyd_Rajendra Kumar (1008599) | B89: 08:14:44 | C89: 03:55:22 | D89: 46 | E89: 0.6841059923 | F89: 0.4289179356 | G89: 0.4444481876 | H89: 0.0002021290931 | I89: 0.2104837623 | J89: 0.03109419216 | K89: 0 | L89: 0.3118178143 | M89: 0.001953914567 | N89: 1 | O89: 4 | P89: 0 | Q89: 0
A90: Hyd_Rajendra Prasad (1008600) | B90: 08:22:34 | C90: 00:48:33 | D90: 47 | E90: 0.6412062514 | F90: 0.094547987 | G90: 0.094547987 | H90: 0 | I90: 0.04642833455 | J90: 0.002056111959 | K90: 0 | L90: 0.8522584068 | M90: 0.004709159647 | N90: 1 | O90: 0 | P90: 0 | Q90: 0
A91: Hyd_Rajesh Kumar (1008601) | B91: 08:00:39 | C91: 05:11:50 | D91: 48 | E91: 0.7612189267 | F91: 0.6102153334 | G91: 0.6177051909 | H91: 0.002011165436 | I91: 0.1942855161 | J91: 0.02905787302 | K91: 0 | L91: 0.1499358508 | M91: 0.007004403759 | N91: 1 | O91: 5 | P91: 1 | Q91: 0
A92: Hyd_Rajesh Kumar (1008602) | B92: 08:17:39 | C92: 04:49:40 | D92: 49 | E92: 0.7717241686 | F92: 0.5126092635 | G92: 0.5370909943 | H92: 0 | I92: 0.1559663753 | J92: 0.04497806357 | K92: 0 | L92: 0.2543621689 | M92: 0.007602397937 | N92: 3 | O92: 8 | P92: 0 | Q92: 1
A93: Hyd_Rajesh Sharma (1008603) | B93: 05:04:31 | C93: 03:24:21 | D93: 50 | E93: 0.7060347806 | F93: 0.6242679656 | G93: 0.6259646434 | H93: 0 | I93: 0.2438837502 | J93: 0.04509879043 | K93: 0 | L93: 0.0802911718 | M93: 0.004761644136 | N93: 1 | O93: 4 | P93: 0 | Q93: 0
A94: Hyd_Raji Abraham (1008604) | B94: 08:10:41 | C94: 04:44:35 | D94: 51 | E94: 0.6754084095 | F94: 0.5437315309 | G94: 0.557623722 | H94: 3.396623756e-05 | I94: 0.2759077477 | J94: 0.02231581808 | K94: 0 | L94: 0.1415712781 | M94: 0.002547467817 | N94: 2 | O94: 3 | P94: 0 | Q94: 0
A95: Hyd_Rajshree Dhabekar (1008605) | B95: 08:15:13 | C95: 0 | D95: 52 | G95: 0 | H95: 0 | I95: 0.0001346212096 | J95: 0 | K95: 0 | L95: 0.9998653788 | M95: 0 | N95: 0 | O95: 0 | P95: 0 | Q95: 0
A96: Hyd_Rakhi Jodhani (1008606) | B96: 08:02:52 | C96: 01:13:06 | D96: 53 | E96: 0.8779023219 | F96: 0.1443117493 | G96: 0.1489369046 | H96: 0 | I96: 0.01636062405 | J96: 0.002450641999 | K96: 0 | L96: 0.8278337705 | M96: 0.004418058815 | N96: 1 | O96: 0 | P96: 0 | Q96: 0
A97: Hyd_Ramji Prasad (1008607) | B97: 08:19:26 | C97: 04:53:04 | D97: 54 | E97: 0.680495356 | F97: 0.5525929387 | G97: 0.5651738637 | H97: 0.0005339384636 | I97: 0.2632650337 | J97: 0.02109056931 | K97: 0 | L97: 0.1477007275 | M97: 0.002235867316 | N97: 4 | O97: 4 | P97: 0 | Q97: 0
A98: Del_Rashid (1008608) | B98: 08:02:10 | C98: 01:36:08 | D98: 55 | E98: 0.7008505468 | F98: 0.1893881784 | G98: 0.1945039751 | H98: 0.0005184929139 | I98: 0.08396128586 | J98: 0.004355340477 | K98: 0 | L98: 0.7159695817 | M98: 0.0006913238852 | N98: 0 | O98: 0 | P98: 0 | Q98: 0
A99: Del_Rashmi Gajbe (1008609) | B99: 08:20:42 | C99: 04:16:57 | D99: 56 | E99: 0.6807223596 | F99: 0.4707742494 | G99: 0.4777644631 | H99: 0.002396644697 | I99: 0.232807403 | J99: 0.03302043805 | K99: 0 | L99: 0.2495839159 | M99: 0.004427135344 | N99: 0 | O99: 5 | P99: 1 | Q99: 1
A100: Del_Ravi Kumar (1008610) | B100: 08:00:44 | C100: 04:47:03 | D100: 57 | E100: 0.6979656346 | F100: 0.5386215504 | G100: 0.5450353626 | H100: 0.001976147552 | I100: 0.251768132 | J100: 0.05009707391 | K100: 0 | L100: 0.1481763972 | M100: 0.002946886701 | N100: 0 | O100: 6 | P100: 0 | Q100: 2
A101: Del_Ravinder Kaur (1008611) | B101: 08:01:53 | C101: 04:38:57 | D101: 58 | E101: 0.6762151024 | F101: 0.5329436586 | G101: 0.5414173555 | H101: 0.0007263168817 | I101: 0.2745477813 | J101: 0.0367308823 | K101: 0 | L101: 0.1441566078 | M101: 0.002421056272 | N101: 3 | O101: 8 | P101: 0 | Q101: 2
A102: Del_Rekha Agarwal (1008612) | B102: 05:53:52 | C102: 02:53:07 | D102: 59 | E102: 0.8705162588 | F102: 0.4131028636 | G102: 0.4221458176 | H102: 0.01874529013 | I102: 0.04950075358 | J102: 0.04832328561 | K102: 0 | L102: 0.4569517709 | M102: 0.00433308214 | N102: 0 | O102: 6 | P102: 2 | Q102: 0
A103: Del_Rekha Gupta (1008613) | B103: 08:16:02 | C103: 04:22:52 | D103: 60 | E103: 0.681266468 | F103: 0.5048383845 | G103: 0.5150191519 | H103: 0.0001343995699 | I103: 0.2442040185 | J103: 0.01478395269 | K103: 0 | L103: 0.2230024864 | M103: 0.002855990861 | N103: 2 | O103: 1 | P103: 0 | Q103: 0
A104: Del_Rekha Jain (1008614) | B104: 08:15:42 | C104: 04:25:29 | D104: 61 | E104: 0.6639849937 | F104: 0.5239055881 | G104: 0.5280075314 | H104: 0 | I104: 0.2660547374 | J104: 0.007565059512 | K104: 0 | L104: 0.1955820052 | M104: 0.002790666398 | N104: 5 | O104: 0 | P104: 0 | Q104: 0
A105: Del_Renu Pratap (1008615) | B105: 08:16:30 | C105: 02:30:29 | D105: 62 | E105: 0.7939676398 | F105: 0.2544478013 | G105: 0.2771064115 | H105: 0 | I105: 0.07512588117 | J105: 0.02598187311 | K105: 0 | L105: 0.6201745552 | M105: 0.001611278953 | N105: 1 | O105: 4 | P105: 0 | Q105: 1
A106: Del_Ritu Bhatnagar (1008616) | B106: 08:01:48 | C106: 04:52:13 | D106: 63 | E106: 0.7132454642 | F106: 0.5551750381 | G106: 0.5631659056 | H106: 0 | I106: 0.2393801024 | J106: 0.04334440293 | K106: 0 | L106: 0.1522070015 | M106: 0.001902587519 | N106: 3 | O106: 5 | P106: 0 | Q106: 1
A107: Del_Rohit Nishchal (1008617) | B107: 08:17:09 | D107: 64 | G107: 0 | H107: 0 | I107: 0.0003017198029 | J107: 0 | K107: 0 | L107: 0.9996982802 | M107: 0 | N107: 0 | O107: 0 | P107: 0 | Q107: 0
A108: Del_Roli Bhatnagar (1008618) | B108: 08:15:43 | C108: 04:08:30 | D108: 65 | E108: 0.6797355824 | F108: 0.477120667 | G108: 0.4796758901 | H108: 0.001075883401 | I108: 0.2333322126 | J108: 0.02054264869 | K108: 0 | L108: 0.2627845207 | M108: 0.002588844434 | N108: 3 | O108: 3 | P108: 1 | Q108: 0
A109: Del_Roma Rastogi (1008619) | B109: 08:31:02 | C109: 05:35:38 | D109: 66 | E109: 0.7334911674 | F109: 0.6191703085 | G109: 0.6272584959 | H109: 0.0008805687822 | I109: 0.2325679995 | J109: 0.02863479225 | K109: 0 | L109: 0.1052442763 | M109: 0.005413867328 | N109: 4 | O109: 4 | P109: 0 | Q109: 1
A110: Del_Roohi Haider (1008620) | B110: 08:00:11 | C110: 04:52:11 | D110: 67 | E110: 0.7107930587 | F110: 0.5530526535 | G110: 0.56457603 | H110: 3.470896533e-05 | I110: 0.2438304814 | J110: 0.04387213217 | K110: 0 | L110: 0.1445281316 | M110: 0.003158515845 | N110: 1 | O110: 7 | P110: 0 | Q110: 0
A111: Del_Sajid Naqvi (1008621) | B111: 08:15:48 | C111: 05:00:37 | D111: 68 | E111: 0.7034985764 | F111: 0.5619537448 | G111: 0.5659540137 | H111: 0.000134462821 | I111: 0.2524875622 | J111: 0.04023799919 | K111: 0 | L111: 0.1384967057 | M111: 0.002689256421 | N111: 3 | O111: 6 | P111: 0 | Q111: 0
A112: Del_Salim (1008622) | B112: 08:15:56 | C112: 04:37:42 | D112: 69 | E112: 0.734915314 | F112: 0.4878007797 | G112: 0.5046713268 | H112: 0.007796746875 | I112: 0.1961285119 | J112: 0.04748622127 | K112: 0 | L112: 0.2409261998 | M112: 0.002990993413 | N112: 2 | O112: 6 | P112: 1 | Q112: 2
A113: Del_Sanjay Hire (1008623) | B113: 08:15:52 | C113: 05:00:14 | D113: 70 | E113: 0.7033421834 | F113: 0.5541476203 | G113: 0.5633234741 | H113: 0.001109169131 | I113: 0.2458994353 | J113: 0.04103925787 | K113: 0 | L113: 0.1405955902 | M113: 0.008033073407 | N113: 3 | O113: 7 | P113: 1 | Q113: 0
A114: Del_Sanjiv Subherwal (1008624) | B114: 08:02:17 | C114: 05:06:07 | D114: 71 | E114: 0.7421909726 | F114: 0.5865155337 | G114: 0.596157169 | H114: 6.911566507e-05 | I114: 0.217506998 | J114: 0.03849742544 | K114: 0 | L114: 0.1456612641 | M114: 0.002108027784 | N114: 2 | O114: 6 | P114: 0 | Q114: 0
A115: Del_Sanju Ramdas (1008625) | B115: 08:15:58 | C115: 05:19:44 | D115: 72 | E115: 0.757273122 | F115: 0.5816587136 | G115: 0.5915720142 | H115: 0.0003024396801 | I115: 0.2036091135 | J115: 0.05279252638 | K115: 0 | L115: 0.1490691579 | M115: 0.002654748303 | N115: 3 | O115: 9 | P115: 0 | Q115: 4
A116: Del_Santosh Kumar (1008626) | B116: 08:00:32 | C116: 05:03:10 | D116: 73 | E116: 0.7374523636 | F116: 0.5907325194 | G116: 0.6047794118 | H116: 0.0001387347392 | I116: 0.2188540511 | J116: 0.02597807991 | K116: 0 | L116: 0.1452552719 | M116: 0.00499445061 | N116: 2 | O116: 4 | P116: 0 | Q116: 0
A117: Del_Santosh Kumar (1008627) | B117: 08:17:04 | C117: 05:09:57 | D117: 74 | E117: 0.7263601922 | F117: 0.5864069206 | G117: 0.5871781116 | H117: 0.001508851931 | I117: 0.2322626073 | J117: 0.03487124464 | K117: 0 | L117: 0.1427709227 | M117: 0.001408261803 | N117: 4 | O117: 4 | P117: 1 | Q117: 0
A118: Del_Santosh Kumar (1008628) | B118: 08:02:59 | C118: 04:44:19 | D118: 75 | E118: 0.6883069722 | F118: 0.5465336968 | G118: 0.5495703785 | H118: 0.0004831084578 | I118: 0.2606715208 | J118: 0.03861416888 | K118: 0 | L118: 0.1491079747 | M118: 0.001552848615 | N118: 2 | O118: 6 | P118: 0 | Q118: 2
A119: Del_Sapna Sharma (1008629) | B119: 08:04:14 | C119: 04:33:29 | D119: 76 | E119: 0.6967136549 | F119: 0.5323879672 | G119: 0.5558614993 | H119: 6.883733737e-05 | I119: 0.2419976595 | J119: 0.008845597852 | K119: 0 | L119: 0.1912645419 | M119: 0.001961864115 | N119: 1 | O119: 0 | P119: 0 | Q119: 0
A120: Del_Saroj Parita (1008630) | B120: 08:01:59 | C120: 04:31:42 | D120: 77 | E120: 0.7102649007 | F120: 0.4702098966 | G120: 0.4855631246 | H120: 0.01950274906 | I120: 0.2098274491 | J120: 0.05819703309 | K120: 0 | L120: 0.2191292922 | M120: 0.007780352018 | N120: 1 | O120: 7 | P120: 3 | Q120: 2
A121: Del_Shailaja Kamal (1008631) | B121: 08:09:14 | C121: 04:51:46 | D121: 78 | E121: 0.6922377318 | F121: 0.5463309941 | G121: 0.5684744839 | H121: 0 | I121: 0.2596239013 | J121: 0.02790079717 | K121: 0 | L121: 0.14056006 | M121: 0.003440757648 | N121: 0 | O121: 2 | P121: 0 | Q121: 0
A122: Del_Shailendra Barge (1008632) | B122: 08:17:38 | C122: 03:26:09 | D122: 79 | E122: 0.7448961156 | F122: 0.3882041664 | G122: 0.3891419385 | H122: 0 | I122: 0.1361444169 | J122: 0.02511889611 | K122: 0 | L122: 0.4483220577 | M122: 0.001272690736 | N122: 2 | O122: 3 | P122: 0 | Q122: 0
A123: Del_Shankar Attendant (1008633) | B123: 07:57:56 | C123: 03:27:15 | D123: 80 | E123: 0.7314705882 | F123: 0.4027758404 | G123: 0.4139698703 | H123: 0.00024410657 | I123: 0.1538568838 | J123: 0.01942390849 | K123: 0 | L123: 0.4081810573 | M123: 0.004324173525 | N123: 1 | O123: 1 | P123: 0 | Q123: 0
A124: Del_Shashikant Tiwari (1008634) | B124: 08:14:55 | C124: 05:19:10 | D124: 81 | E124: 0.7491589078 | F124: 0.5435258461 | G124: 0.5759555481 | H124: 6.735140596e-05 | I124: 0.2088230342 | J124: 0.06886681259 | K124: 0 | L124: 0.1414042768 | M124: 0.004882976932 | N124: 1 | O124: 10 | P124: 0 | Q124: 0
A125: Del_Sheeba Joseph (1008635) | B125: 08:30:57 | C125: 03:41:07 | D125: 82 | E125: 0.4811067595 | F125: 0.2837198682 | G125: 0.31046743 | H125: 0.001957138663 | I125: 0.4461297583 | J125: 0.1203314088 | K125: 0 | L125: 0.1089147666 | M125: 0.01219949767 | N125: 0 | O125: 13 | P125: 0 | Q125: 2
A126: Del_Sheena Joseph (1008636) | B126: 08:49:34 | C126: 05:10:26 | D126: 83 | E126: 0.7234802874 | F126: 0.5619689054 | G126: 0.564455215 | H126: 0.002926921382 | I126: 0.2173789891 | J126: 0.01882041921 | K126: 0 | L126: 0.1916661421 | M126: 0.004752313212 | N126: 1 | O126: 2 | P126: 1 | Q126: 0
A127: Del_Shephali Jain (1008637) | B127: 08:25:43 | C127: 03:41:29 | D127: 84 | E127: 0.7311691884 | F127: 0.4033220183 | G127: 0.4063210625 | H127: 3.295653034e-05 | I127: 0.1577299542 | J127: 0.03160531259 | K127: 0 | L127: 0.4030254095 | M127: 0.001285304683 | N127: 0 | O127: 5 | P127: 0 | Q127: 0
A128: Del_Shivji Prasad (1008638) | B128: 08:11:40 | C128: 04:12:39 | D128: 85 | E128: 0.7104560154 | F128: 0.4379661017 | G128: 0.466440678 | H128: 0.006508474576 | I128: 0.2018305085 | J128: 0.04091525424 | K128: 0 | L128: 0.2802711864 | M128: 0.004033898305 | N128: 0 | O128: 6 | P128: 1 | Q128: 1
A129: Del_Shubhanjali Joshi (1008639) | B129: 08:17:17 | C129: 04:54:52 | D129: 86 | E129: 0.6888871583 | F129: 0.5558199551 | G129: 0.5597077454 | H129: 0.0006032778094 | I129: 0.244729698 | J129: 0.03264403258 | K129: 0 | L129: 0.1599356504 | M129: 0.002379595804 | N129: 4 | O129: 4 | P129: 0 | Q129: 0
A130: Del_Shyamal Malakar (1008640) | B130: 08:15:36 | C130: 02:53:35 | D130: 87 | E130: 0.781437575 | F130: 0.3260357815 | G130: 0.3431530804 | H130: 0.001008878128 | I130: 0.08777239709 | J130: 0.006086898036 | K130: 0 | L130: 0.5561272532 | M130: 0.00585149314 | N130: 0 | O130: 0 | P130: 0 | Q130: 0
A131: Del_Sneh Khan (1008641) | B131: 08:09:15 | C131: 05:06:25 | D131: 88 | E131: 0.7302879841 | F131: 0.5740419009 | G131: 0.5828649293 | H131: 3.406574689e-05 | I131: 0.2290240164 | J131: 0.04339976154 | K131: 0 | L131: 0.1427695452 | M131: 0.001907681826 | N131: 4 | O131: 4 | P131: 0 | Q131: 2
A132: Del_Sonaram Munda (1008642) | B132: 08:00:41 | C132: 04:11:10 | D132: 89 | E132: 0.6905874805 | F132: 0.4535903748 | G132: 0.4835477272 | H132: 0.008252141049 | I132: 0.2302278007 | J132: 0.03072015533 | K132: 0 | L132: 0.243923581 | M132: 0.003328594709 | N132: 1 | O132: 6 | P132: 1 | Q132: 0
A133: Del_Sudama Kumar (1008643) | B133: 08:09:47 | C133: 02:38:49 | D133: 90 | E133: 0.7392552366 | F133: 0.2968999898 | G133: 0.3015959438 | H133: 0 | I133: 0.09099261578 | J133: 0.02266308232 | K133: 0 | L133: 0.5641950522 | M133: 0.02055330588 | N133: 1 | O133: 4 | P133: 0 | Q133: 1
A134: Del_Sudhir Kumar (1008644) | B134: 08:00:18 | C134: 04:35:36 | D134: 91 | E134: 0.6750489876 | F134: 0.5572905823 | G134: 0.5612811437 | H134: 3.470053439e-05 | I134: 0.268443334 | J134: 0.01249219238 | K134: 0 | L134: 0.1549031855 | M134: 0.00284544382 | N134: 1 | O134: 0 | P134: 0 | Q134: 0
A135: Del_Sunil Kumar (1008645) | B135: 08:03:26 | C135: 02:58:37 | D135: 92 | E135: 0.7151341252 | F135: 0.3327932152 | G135: 0.3376887541 | H135: 0.0003102806316 | I135: 0.134765221 | J135: 0.03147624629 | K135: 0 | L135: 0.490139971 | M135: 0.005619526994 | N135: 0 | O135: 5 | P135: 0 | Q135: 0
A136: Del_Sunil Kumar (1008646) | B136: 08:05:06 | C136: 04:05:03 | D136: 93 | E136: 0.7030555157 | F136: 0.4723081152 | G136: 0.4806912664 | H136: 0.005565862709 | I136: 0.2107125679 | J136: 0.01889644747 | K136: 0 | L136: 0.2821067821 | M136: 0.002027073456 | N136: 0 | O136: 2 | P136: 2 | Q136: 0
A137: Del_Sunita Chawla (1008647) | B137: 08:05:25 | C137: 04:31:57 | D137: 94 | E137: 0.7577319588 | F137: 0.5111072961 | G137: 0.5194506438 | H137: 0.001957081545 | I137: 0.1743862661 | J137: 0.03883261803 | K137: 0 | L137: 0.2610472103 | M137: 0.004326180258 | N137: 1 | O137: 5 | P137: 0 | Q137: 0
A138: Del_Sunita Madnani (1008648) | B138: 08:14:02 | C138: 05:19:12 | D138: 95 | E138: 0.748797748 | F138: 0.5888604008 | G138: 0.5986775521 | H138: 0.0001012077458 | I138: 0.2070373119 | J138: 0.0473314891 | K138: 0 | L138: 0.138148573 | M138: 0.008703866136 | N138: 2 | O138: 5 | P138: 0 | Q138: 0
A139: Del_Surendra Kumar (1008649) | B139: 07:29:10 | C139: 02:54:25 | D139: 96 | E139: 0.7818453493 | F139: 0.3428942486 | G139: 0.3459369202 | H139: 0 | I139: 0.1038218924 | J139: 0.04237476809 | K139: 0 | L139: 0.5050834879 | M139: 0.002782931354 | N139: 0 | O139: 5 | P139: 0 | Q139: 0
A140: Del_Surendranath Thakur (1008650) | B140: 08:33:53 | C140: 04:36:50 | D140: 97 | E140: 0.7307523097 | F140: 0.4974864593 | G140: 0.5000486492 | H140: 0.0002594622645 | I140: 0.1906398988 | J140: 0.03840041514 | K140: 0 | L140: 0.2667596406 | M140: 0.003891933967 | N140: 0 | O140: 6 | P140: 0 | Q140: 1
A141: Del_Sushma Khandelwal (1008651) | B141: 08:15:15 | C141: 04:50:07 | D141: 98 | E141: 0.682520389 | F141: 0.5243143194 | G141: 0.535756352 | H141: 0.01615345785 | I141: 0.2658589938 | J141: 0.03388860845 | K141: 0 | L141: 0.14204947 | M141: 0.006293117954 | N141: 2 | O141: 3 | P141: 1 | Q141: 0
A142: Del_Swarnlata Borse (1008652) | B142: 08:19:05 | C142: 02:59:39 | D142: 99 | E142: 0.7929233485 | F142: 0.3106695609 | G142: 0.3296376691 | H142: 0.01152112206 | I142: 0.09153447988 | J142: 0.01880113541 | K142: 0 | L142: 0.5462347637 | M142: 0.002270829855 | N142: 0 | O142: 2 | P142: 2 | Q142: 0
A143: Del_Syed Naved (1008653) | B143: 08:13:39 | C143: 05:24:05 | D143: 100 | E143: 0.7547645849 | F143: 0.5846247341 | G143: 0.5956987069 | H143: 6.752422432e-05 | I143: 0.1738411155 | J143: 0.05847597826 | K143: 0 | L143: 0.1513893109 | M143: 0.02052736419 | N143: 2 | O143: 10 | P143: 0 | Q143: 1
A144: Del_Syed Saqib (1008654) | B144: 08:24:48 | C144: 02:52:08 | D144: 101 | E144: 0.852637662 | F144: 0.3168581616 | G144: 0.3232303222 | H144: 0.008254094031 | I144: 0.05140649762 | J144: 0.009508716323 | K144: 0 | L144: 0.6013602747 | M144: 0.006240095087 | N144: 3 | O144: 1 | P144: 2 | Q144: 0
A145: Del_Syed Sohail (1008655) | B145: 08:17:53 | C145: 04:51:52 | D145: 102 | E145: 0.6851330203 | F145: 0.563753222 | G145: 0.5657951997 | H145: 0 | I145: 0.2646202256 | J145: 0.02041977706 | K145: 0 | L145: 0.1447460918 | M145: 0.004418705855 | N145: 0 | O145: 1 | P145: 0 | Q145: 0
A146: Del_System Operator (1008656) | B146: 08:30:54 | C146: 05:15:36 | D146: 103 | E146: 0.6921811602 | F146: 0.5477914791 | G146: 0.5557512886 | H146: 3.262217003e-05 | I146: 0.2686761923 | J146: 0.06194950088 | K146: 0 | L146: 0.1097736021 | M146: 0.003816793893 | N146: 0 | O146: 7 | P146: 0 | Q146: 0
A147: Del_Tahira Qureshi (1008657) | B147: 08:46:13 | C147: 03:36:51 | D147: 104 | E147: 0.7576428114 | F147: 0.3796598359 | G147: 0.3841573496 | H147: 6.334526336e-05 | I147: 0.124948532 | J147: 0.02787191588 | K147: 0 | L147: 0.4608367909 | M147: 0.002122066322 | N147: 2 | O147: 5 | P147: 0 | Q147: 0
A148: Del_Tapas Chakraborty (1008658) | B148: 08:14:56 | C148: 05:15:14 | D148: 105 | E148: 0.7411151601 | F148: 0.5652949892 | G148: 0.5740167026 | H148: 0.001481681034 | I148: 0.210466056 | J148: 0.06142241379 | K148: 0 | L148: 0.1458445582 | M148: 0.006768588362 | N148: 0 | O148: 12 | P148: 1 | Q148: 0
A149: Del_Tariq Akhlaq (1008659) | B149: 04:59:55 | C149: 03:08:41 | D149: 106 | E149: 0.6620080697 | F149: 0.6026118366 | G149: 0.6095582106 | H149: 0.0002222839678 | I149: 0.303417616 | J149: 0.01856071131 | K149: 0 | L149: 0.05018060572 | M149: 0.01806057238 | N149: 0 | O149: 1 | P149: 0 | Q149: 4
A150: Del_Tasneem Khan (1008660) | B150: 08:33:55 | C150: 04:38:49 | D150: 107 | E150: 0.7379681503 | F150: 0.4981352359 | G150: 0.5079617318 | H150: 0.002464731636 | I150: 0.1839468137 | J150: 0.03210637263 | K150: 0 | L150: 0.2662883087 | M150: 0.007232041511 | N150: 4 | O150: 5 | P150: 0 | Q150: 0

Sheet OverAll Performance
A1: Employee | B1: Attended Calls | C1: Transferred calls | D1: Call Conferenced | E1: Call Redirected | F1: Hold Calls | G1: % of Calls onHold | H1: Average Duration of Calls | I1: Avg. In Focus Hold Calls | J1: Calls Unattend Time'
A2: Mum_Abdul Hamid (1008512) | B2: 98 | C2: 0 | D2: 0 | E2: 0 | F2: 0.1029411765 | G2: 0 | H2: 00:04:13 | I2: 00:00:01 | J2: 00:00:09
A3: Mum_Afzal Husain (1008513) | B3: 23 | C3: 0 | D3: 0 | E3: 0 | F3: 0.1029411765 | G3: 0 | H3: 00:04:13 | I3: 00:00:01 | J3: 00:00:09
A4: Mum_Anamika Gupta (1008514) | B4: 28 | C4: 0.01470588235 | D4: 0 | E4: 0 | F4: 0.07352941176 | G4: 0 | H4: 00:04:10 | I4: 00:00:00 | J4: 00:00:07
A5: Mum_Anikuttan (1008515) | B5: 29 | C5: 0.01470588235 | D5: 0 | E5: 0 | F5: 0.07352941176 | G5: 0 | H5: 00:04:10 | I5: 00:00:00 | J5: 00:00:07
A6: Mum_Anil Kumar (1008516) | B6: 93 | C6: 0.08333333333 | D6: 0 | E6: 0 | F6: 0.1666666667 | G6: 0.1 | H6: 00:04:25 | I6: 00:00:59 | J6: 00:00:11
A7: Mum_Anita Dixit (1008517) | B7: 92 | C7: 0.08333333333 | D7: 0 | E7: 0 | F7: 0.1666666667 | G7: 0.1 | H7: 00:04:25 | I7: 00:00:59 | J7: 00:00:11
A8: Mum_Anita Ghore (1008518) | B8: 26 | C8: 0.05454545455 | D8: 0 | E8: 0.01785714286 | F8: 0.1090909091 | G8: 0 | H8: 00:04:26 | I8: 00:00:00 | J8: 00:00:14
A9: Mum_Anjali Deoram (1008519) | B9: 90 | C9: 0.05454545455 | D9: 0 | E9: 0.01785714286 | F9: 0.1090909091 | G9: 0 | H9: 00:04:26 | I9: 00:00:00 | J9: 00:00:14
A10: Mum_Anjali Sahay (1008520) | B10: 89 | C10: 0 | D10: 0 | E10: 0 | F10: 0.06818181818 | G10: 0 | H10: 00:03:26 | I10: 00:00:03 | J10: 00:00:10
A11: Mum_Annu Latika (1008521) | B11: 54 | C11: 0 | D11: 0 | E11: 0 | F11: 0.06818181818 | G11: 0 | H11: 00:03:26 | I11: 00:00:03 | J11: 00:00:10
A12: Mum_Anoop Narayan (1008522) | B12: 87 | C12: 0 | D12: 0 | E12: 0 | F12: 0.0652173913 | G12: 0 | H12: 00:03:54 | I12: 00:00:51 | J12: 00:00:27
A13: Mum_Anoop Raj (1008523) | B13: 65 | C13: 0 | D13: 0 | E13: 0 | F13: 0.0652173913 | G13: 0 | H13: 00:03:54 | I13: 00:00:51 | J13: 00:00:27
A14: Mum_Anubhuti Gupta (1008524) | B14: 85 | C14: 0 | D14: 0 | E14: 0 | F14: 0.07692307692 | G14: 0 | H14: 00:04:07 | I14: 00:00:00 | J14: 00:00:04
A15: Mum_Arun Kumar (1008525) | B15: 65 | C15: 0 | D15: 0 | E15: 0 | F15: 0.07692307692 | G15: 0 | H15: 00:04:07 | I15: 00:00:00 | J15: 00:00:04
A16: Mum_Ashish Kumar (1008526) | B16: 83 | C16: 0.09638554217 | D16: 0 | E16: 0.0119047619 | F16: 0.1325301205 | G16: 0.09090909091 | H16: 00:03:54 | I16: 00:00:26 | J16: 00:00:16
A17: Mum_Ashok Kumar (1008527) | B17: 82 | C17: 0.09638554217 | D17: 0 | E17: 0.0119047619 | F17: 0.1325301205 | G17: 0.09090909091 | H17: 00:03:54 | I17: 00:00:26 | J17: 00:00:16
A18: Hyd_Ashok Kumar (1008528) | B18: 81 | C18: 0.0303030303 | D18: 0 | E18: 0.02857142857 | F18: 0.07575757576 | G18: 0 | H18: 00:04:18 | I18: 00:00:04 | J18: 00:00:07
A19: Hyd_Ashok Kumar (1008529) | B19: 80 | C19: 0.0303030303 | D19: 0 | E19: 0.02857142857 | F19: 0.07575757576 | G19: 0 | H19: 00:04:18 | I19: 00:00:04 | J19: 00:00:07
A20: Hyd_Ashok Kumar (1008530) | B20: 79 | C20: 0.05970149254 | D20: 0 | E20: 0 | F20: 0.1044776119 | G20: 0 | H20: 00:04:22 | I20: 00:00:01 | J20: 00:00:04
A21: Hyd_Ashok Mahto (1008531) | B21: 78 | C21: 0.05970149254 | D21: 0 | E21: 0 | F21: 0.1044776119 | G21: 0 | H21: 00:04:22 | I21: 00:00:01 | J21: 00:00:04
A22: Hyd_Atul Kumar (1008532) | B22: 77 | C22: 0.02985074627 | D22: 0 | E22: 0 | F22: 0.1194029851 | G22: 0 | H22: 00:04:04 | I22: 00:00:39 | J22: 00:00:09
A23: Hyd_Azam (1008533) | B23: 76 | C23: 0.02985074627 | D23: 0 | E23: 0 | F23: 0.1194029851 | G23: 0 | H23: 00:04:04 | I23: 00:00:39 | J23: 00:00:09
A24: Hyd_Bhagwat Singh (1008534) | B24: 75 | C24: 0.07272727273 | D24: 0 | E24: 0.01754385965 | F24: 0.07272727273 | G24: 0 | H24: 00:03:45 | I24: 00:00:00 | J24: 00:00:23
A25: Hyd_Bindu Nair (1008535) | B25: 74 | C25: 0.07272727273 | D25: 0 | E25: 0.01754385965 | F25: 0.07272727273 | G25: 0 | H25: 00:03:45 | I25: 00:00:00 | J25: 00:00:23
A26: Hyd_Daleep Singh (1008536) | B26: 73 | C26: 0.09090909091 | D26: 0 | E26: 0 | F26: 0.1060606061 | G26: 0 | H26: 00:03:45 | I26: 00:00:01 | J26: 00:00:25
A27: Hyd_Deepak Kumar (1008537) | B27: 72 | C27: 0.09090909091 | D27: 0 | E27: 0 | F27: 0.1060606061 | G27: 0 | H27: 00:03:45 | I27: 00:00:01 | J27: 00:00:25
A28: Hyd_Deepika Nigam (1008538) | B28: 71 | C28: 0.08064516129 | D28: 0 | E28: 0 | F28: 0.1451612903 | G28: 0.1111111111 | H28: 00:04:07 | I28: 00:00:28 | J28: 00:00:20
A29: Hyd_Dinesh Kumar (1008539) | B29: 70 | C29: 0.08064516129 | D29: 0 | E29: 0 | F29: 0.1451612903 | G29: 0.1111111111 | H29: 00:04:07 | I29: 00:00:28 | J29: 00:00:20
A30: Hyd_Hari Kumar (1008540) | B30: 69 | C30: 0.1384615385 | D30: 0 | E30: 0.01492537313 | F30: 0.2153846154 | G30: 0 | H30: 00:04:07 | I30: 00:01:00 | J30: 00:00:14
A31: Hyd_Heeramani Choudhary (1008541) | B31: 68 | C31: 0.1384615385 | D31: 0 | E31: 0.01492537313 | F31: 0.2153846154 | G31: 0 | H31: 00:04:07 | I31: 00:01:00 | J31: 00:00:14
A32: Hyd_Indra Pal (1008542) | B32: 67 | C32: 0.01754385965 | D32: 0 | E32: 0 | F32: 0.05263157895 | G32: 0 | H32: 00:04:13 | I32: 00:00:02 | J32: 00:00:09
A33: Hyd_Indra Singh (1008543) | B33: 66 | C33: 0.01754385965 | D33: 0 | E33: 0 | F33: 0.05263157895 | G33: 0 | H33: 00:04:13 | I33: 00:00:02 | J33: 00:00:09
A34: Hyd_Jagdish Chandra (1008544) | B34: 65 | C34: 0.08955223881 | D34: 0 | E34: 0.01470588235 | F34: 0.1194029851 | G34: 0.125 | H34: 00:04:06 | I34: 00:00:00 | J34: 00:00:06
A35: Hyd_Jairaj Vatham (1008545) | B35: 64 | C35: 0.08955223881 | D35: 0 | E35: 0.01470588235 | F35: 0.1194029851 | G35: 0.125 | H35: 00:04:06 | I35: 00:00:00 | J35: 00:00:06
A36: Hyd_Janardan Mishra (1008546) | B36: 63 | C36: 0.140625 | D36: 0 | E36: 0 | F36: 0.171875 | G36: 0 | H36: 00:04:27 | I36: 00:00:00 | J36: 00:00:03
A37: Hyd_Jitendra Kumar (1008547) | B37: 62 | C37: 0.140625 | D37: 0 | E37: 0 | F37: 0.171875 | G37: 0 | H37: 00:04:27 | I37: 00:00:00 | J37: 00:00:03
A38: Hyd_John D'Costa (1008548) | B38: 61 | C38: 0.1034482759 | D38: 0 | E38: 0 | F38: 0.2413793103 | G38: 0 | H38: 00:07:56 | I38: 00:01:32 | J38: 00:00:25
A39: Hyd_Julie S (1008549) | B39: 60 | C39: 0.1034482759 | D39: 0 | E39: 0 | F39: 0.2413793103 | G39: 0 | H39: 00:07:56 | I39: 00:01:32 | J39: 00:00:25
A40: Hyd_Jyoti Tulsani (1008550) | B40: 59 | C40: 0.07352941176 | D40: 0 | E40: 0 | F40: 0.1176470588 | G40: 0 | H40: 00:04:08 | I40: 00:00:07 | J40: 00:00:05
A41: Hyd_Kahkasha Parveen (1008551) | B41: 58 | C41: 0.07352941176 | D41: 0 | E41: 0 | F41: 0.1176470588 | G41: 0 | H41: 00:04:08 | I41: 00:00:07 | J41: 00:00:05
A42: Hyd_Kailash Nath (1008552) | B42: 57 | C42: 0.04918032787 | D42: 0 | E42: 0 | F42: 0.09836065574 | G42: 0 | H42: 00:04:35 | I42: 00:00:00 | J42: 00:00:04
A43: Hyd_Kalpana Agrawal (1008553) | B43: 56 | C43: 0.04918032787 | D43: 0 | E43: 0 | F43: 0.09836065574 | G43: 0 | H43: 00:04:35 | I43: 00:00:00 | J43: 00:00:04
A44: Hyd_Kamini Kumar (1008554) | B44: 55 | C44: 0.015625 | D44: 0 | E44: 0 | F44: 0.015625 | G44: 0 | H44: 00:04:34 | I44: 00:00:03 | J44: 00:00:05
A45: Hyd_Kamini Tiwari (1008555) | B45: 54 | C45: 0.015625 | D45: 0 | E45: 0 | F45: 0.015625 | G45: 0 | H45: 00:04:34 | I45: 00:00:03 | J45: 00:00:05
A46: Hyd_Kavita Sharma (1008556) | B46: 53 | C46: 0.03571428571 | D46: 0 | E46: 0 | F46: 0.05357142857 | G46: 0 | H46: 00:03:50 | I46: 00:00:41 | J46: 00:00:34
A47: Hyd_Kiran Khubchandani (1008557) | B47: 52 | C47: 0.03571428571 | D47: 0 | E47: 0 | F47: 0.05357142857 | G47: 0 | H47: 00:03:50 | I47: 00:00:41 | J47: 00:00:34
A48: Hyd_Kisun Sah (1008558) | B48: 51 | C48: 0.03448275862 | D48: 0 | E48: 0 | F48: 0.1034482759 | G48: 0.1666666667 | H48: 00:04:05 | I48: 00:00:06 | J48: 00:00:10
A49: Hyd_Krishana Kumar (1008559) | B49: 50 | C49: 0.03448275862 | D49: 0 | E49: 0 | F49: 0.1034482759 | G49: 0.1666666667 | H49: 00:04:05 | I49: 00:00:06 | J49: 00:00:10
A50: Hyd_Kunj Bihari (1008560) | B50: 49 | C50: 0.04347826087 | D50: 0 | E50: 0.05479452055 | F50: 0.07246376812 | G50: 0.2 | H50: 00:03:57 | I50: 00:01:29 | J50: 00:00:19
A51: Hyd_Leena George (1008561) | B51: 48 | C51: 0.04347826087 | D51: 0 | E51: 0.05479452055 | F51: 0.07246376812 | G51: 0.2 | H51: 00:03:57 | I51: 00:01:29 | J51: 00:00:19
A52: Hyd_Lilly Lucy (1008562) | B52: 47 | C52: 0 | D52: 0 | E52: 0 | F52: 0 | G52: 0 | H52: 00:04:47 | J52: 00:00:08
A53: Hyd_Mangal Singh (1008563) | B53: 46 | C53: 0 | D53: 0 | E53: 0 | F53: 0 | G53: 0 | H53: 00:04:47 | J53: 00:00:08
A54: Hyd_Manisha Shrivastava (1008564) | B54: 45 | C54: 0.1111111111 | D54: 0 | E54: 0 | F54: 0.2222222222 | G54: 0 | H54: 00:03:54 | I54: 00:00:23 | J54: 00:00:04
A55: Hyd_Manjusha Sinha (1008565) | B55: 44 | C55: 0.1111111111 | D55: 0 | E55: 0 | F55: 0.2222222222 | G55: 0 | H55: 00:03:54 | I55: 00:00:23 | J55: 00:00:04
A56: Hyd_ManjuTiwari Lab (1008566) | B56: 43 | C56: 0.1449275362 | D56: 0 | E56: 0 | F56: 0.2028985507 | G56: 0.07142857143 | H56: 00:03:50 | I56: 00:00:17 | J56: 00:00:29
A57: Hyd_Manoj Kumar (1008567) | B57: 42 | C57: 0.1449275362 | D57: 0 | E57: 0 | F57: 0.2028985507 | G57: 0.07142857143 | H57: 00:03:50 | I57: 00:00:17 | J57: 00:00:29
A58: Hyd_Manoj Kumar (1008568) | B58: 41 | C58: 0.06779661017 | D58: 0 | E58: 0 | F58: 0.1186440678 | G58: 0 | H58: 00:03:47 | I58: 00:00:18 | J58: 00:00:27
A59: Hyd_Masroor Adil (1008569) | B59: 40 | C59: 0.06779661017 | D59: 0 | E59: 0 | F59: 0.1186440678 | G59: 0 | H59: 00:03:47 | I59: 00:00:18 | J59: 00:00:27
A60: Hyd_Meena Zinjare (1008570) | B60: 39 | C60: 0.02631578947 | D60: 0 | E60: 0.04938271605 | F60: 0.07894736842 | G60: 0.1666666667 | H60: 00:03:07 | I60: 00:01:21 | J60: 00:00:19
A61: Hyd_Mehnaz Khan (1008571) | B61: 38 | C61: 0.02631578947 | D61: 0 | E61: 0.04938271605 | F61: 0.07894736842 | G61: 0.1666666667 | H61: 00:03:07 | I61: 00:01:21 | J61: 00:00:19
A62: Hyd_Mercy Thampi (1008572) | B62: 37 | C62: 0.03797468354 | D62: 0 | E62: 0 | F62: 0.07594936709 | G62: 0.1666666667 | H62: 00:03:28 | I62: 00:00:17 | J62: 00:00:23
A63: Hyd_Miny Mole (1008573) | B63: 36 | C63: 0.03797468354 | D63: 0 | E63: 0 | F63: 0.07594936709 | G63: 0.1666666667 | H63: 00:03:28 | I63: 00:00:17 | J63: 00:00:23
A64: Hyd_Mohd Rafi (1008574) | B64: 35 | C64: 0.08771929825 | D64: 0 | E64: 0 | F64: 0.1052631579 | G64: 0 | H64: 00:04:29 | I64: 00:00:17 | J64: 00:00:50
A65: Hyd_Mubeen Khan (1008575) | B65: 34 | C65: 0.08771929825 | D65: 0 | E65: 0 | F65: 0.1052631579 | G65: 0 | H65: 00:04:29 | I65: 00:00:17 | J65: 00:00:50
A66: Hyd_Mukesh Nagar (1008576) | B66: 33 | C66: 0.1076923077 | D66: 0 | E66: 0 | F66: 0.1692307692 | G66: 0 | H66: 00:04:15 | I66: 00:00:03 | J66: 00:00:10
A67: Hyd_Nandu Kumar (1008577) | B67: 32 | C67: 0.1076923077 | D67: 0 | E67: 0 | F67: 0.1692307692 | G67: 0 | H67: 00:04:15 | I67: 00:00:03 | J67: 00:00:10
A68: Hyd_Narayan Singh (1008578) | B68: 31 | C68: 0.07352941176 | D68: 0 | E68: 0 | F68: 0.1323529412 | G68: 0 | H68: 00:04:17 | I68: 00:00:00 | J68: 00:00:09
A69: Hyd_Neeraj Saxena (1008579) | B69: 30 | C69: 0.07352941176 | D69: 0 | E69: 0 | F69: 0.1323529412 | G69: 0 | H69: 00:04:17 | I69: 00:00:00 | J69: 00:00:09
A70: Hyd_Neeru Mehta (1008580) | B70: 29 | C70: 0.05 | D70: 0 | E70: 0 | F70: 0.1 | G70: 0 | H70: 00:04:18 | I70: 00:00:01 | J70: 00:00:07
A71: Hyd_Nikita Panwalkar (1008581) | B71: 28 | C71: 0.05 | D71: 0 | E71: 0 | F71: 0.1 | G71: 0 | H71: 00:04:18 | I71: 00:00:01 | J71: 00:00:07
A72: Hyd_Nitin Bhatia (1008582) | B72: 29 | C72: 0.07142857143 | D72: 0 | E72: 0 | F72: 0.08928571429 | G72: 0 | H72: 00:04:10 | I72: 00:00:03 | J72: 00:00:07
A73: Hyd_Om Prakash (1008583) | B73: 30 | C73: 0.07142857143 | D73: 0 | E73: 0 | F73: 0.08928571429 | G73: 0 | H73: 00:04:10 | I73: 00:00:03 | J73: 00:00:07
A74: Hyd_Omprakash O (1008584) | B74: 31 | C74: 0.07692307692 | D74: 0 | E74: 0 | F74: 0.07692307692 | G74: 0 | H74: 00:03:33 | I74: 00:00:00 | J74: 00:00:09
A75: Hyd_Owais Mohd (1008585) | B75: 32 | C75: 0.07692307692 | D75: 0 | E75: 0 | F75: 0.07692307692 | G75: 0 | H75: 00:03:33 | I75: 00:00:00 | J75: 00:00:09
A76: Hyd_Pankaj Shelkey (1008586) | B76: 33 | C76: 0.05405405405 | D76: 0 | E76: 0 | F76: 0.08108108108 | G76: 0 | H76: 00:03:38 | I76: 00:00:18 | J76: 00:00:20
A77: Hyd_Partha Sarathi (1008587) | B77: 34 | C77: 0.05405405405 | D77: 0 | E77: 0 | F77: 0.08108108108 | G77: 0 | H77: 00:03:38 | I77: 00:00:18 | J77: 00:00:20
A78: Hyd_Prabha Desikan (1008588) | B78: 35 | C78: 0.05633802817 | D78: 0 | E78: 0 | F78: 0.0985915493 | G78: 0 | H78: 00:03:57 | I78: 00:00:00 | J78: 00:00:10
A79: Hyd_Pramod Tiwari (1008589) | B79: 36 | C79: 0.05633802817 | D79: 0 | E79: 0 | F79: 0.0985915493 | G79: 0 | H79: 00:03:57 | I79: 00:00:00 | J79: 00:00:10
A80: Hyd_Prasannakumari S (1008590) | B80: 37 | C80: 0.1363636364 | D80: 0 | E80: 0 | F80: 0.1818181818 | G80: 0.08333333333 | H80: 00:03:53 | I80: 00:00:03 | J80: 00:01:01
A81: Hyd_Praveen Kumar (1008591) | B81: 38 | C81: 0.1363636364 | D81: 0 | E81: 0 | F81: 0.1818181818 | G81: 0.08333333333 | H81: 00:03:53 | I81: 00:00:03 | J81: 00:01:01
A82: Hyd_Rachel Mathew (1008592) | B82: 39 | C82: 0.08823529412 | D82: 0 | E82: 0 | F82: 0.08823529412 | G82: 0 | H82: 00:04:14 | I82: 00:00:00 | J82: 00:00:07
A83: Hyd_Rachita Anupam (1008593) | B83: 40 | C83: 0.08823529412 | D83: 0 | E83: 0 | F83: 0.08823529412 | G83: 0 | H83: 00:04:14 | I83: 00:00:00 | J83: 00:00:07
A84: Hyd_Rachna Chauhan (1008594) | B84: 41 | C84: 0.03703703704 | D84: 0 | E84: 0 | F84: 0.1296296296 | G84: 0.2857142857 | H84: 00:04:09 | I84: 00:00:12 | J84: 00:00:05
A85: Hyd_Raj Kumar (1008595) | B85: 42 | C85: 0.03703703704 | D85: 0 | E85: 0 | F85: 0.1296296296 | G85: 0.2857142857 | H85: 00:04:09 | I85: 00:00:12 | J85: 00:00:05
A86: Hyd_Rajeev Garg (1008596) | B86: 43 | C86: 0.04081632653 | D86: 0 | E86: 0 | F86: 0.0612244898 | G86: 0 | H86: 00:04:02 | I86: 00:00:01 | J86: 00:00:04
A87: Hyd_Rajeev Kumar (1008597) | B87: 44 | C87: 0.04081632653 | D87: 0 | E87: 0 | F87: 0.0612244898 | G87: 0 | H87: 00:04:02 | I87: 00:00:01 | J87: 00:00:04
A88: Hyd_Rajendra Gupta (1008598) | B88: 45 | C88: 0.07547169811 | D88: 0 | E88: 0 | F88: 0.1132075472 | G88: 0 | H88: 00:05:37 | I88: 00:00:04 | J88: 00:00:23
A89: Hyd_Rajendra Kumar (1008599) | B89: 46 | C89: 0.07547169811 | D89: 0 | E89: 0 | F89: 0.1132075472 | G89: 0 | H89: 00:05:37 | I89: 00:00:04 | J89: 00:00:23
A90: Hyd_Rajendra Prasad (1008600) | B90: 47 | C90: 0.03076923077 | D90: 0.01538461538 | E90: 0 | F90: 0.07692307692 | G90: 0.4 | H90: 00:04:17 | I90: 00:00:12 | J90: 00:00:07
A91: Hyd_Rajesh Kumar (1008601) | B91: 48 | C91: 0.03076923077 | D91: 0.01538461538 | E91: 0 | F91: 0.07692307692 | G91: 0.4 | H91: 00:04:17 | I91: 00:00:12 | J91: 00:00:07
A92: Hyd_Rajesh Kumar (1008602) | B92: 49 | C92: 0.06779661017 | D92: 0 | E92: 0 | F92: 0.1016949153 | G92: 0 | H92: 00:04:10 | I92: 00:00:29 | J92: 00:00:04
A93: Hyd_Rajesh Sharma (1008603) | B93: 50 | C93: 0.06779661017 | D93: 0 | E93: 0 | F93: 0.1016949153 | G93: 0 | H93: 00:04:10 | I93: 00:00:29 | J93: 00:00:04
A94: Hyd_Raji Abraham (1008604) | B94: 51 | C94: 0.06060606061 | D94: 0 | E94: 0 | F94: 0.1060606061 | G94: 0 | H94: 00:04:13 | I94: 00:00:21 | J94: 00:00:19
A95: Hyd_Rajshree Dhabekar (1008605) | B95: 52 | C95: 0.06060606061 | D95: 0 | E95: 0 | F95: 0.1060606061 | G95: 0 | H95: 00:04:13 | I95: 00:00:21 | J95: 00:00:19
A96: Hyd_Rakhi Jodhani (1008606) | B96: 53 | C96: 0.05970149254 | D96: 0 | E96: 0 | F96: 0.05970149254 | G96: 0 | H96: 00:04:11 | I96: 00:00:02 | J96: 00:00:04
A97: Hyd_Ramji Prasad (1008607) | B97: 54 | C97: 0.05970149254 | D97: 0 | E97: 0 | F97: 0.05970149254 | G97: 0 | H97: 00:04:11 | I97: 00:00:02 | J97: 00:00:04
A98: Del_Rashid (1008608) | B98: 55 | C98: 0 | D98: 0 | E98: 0 | F98: 0.02857142857 | G98: 1 | H98: 00:03:49 | I98: 00:00:00 | J98: 00:00:13
A99: Del_Rashmi Gajbe (1008609) | B99: 56 | C99: 0 | D99: 0 | E99: 0 | F99: 0.02857142857 | G99: 1 | H99: 00:03:49 | I99: 00:00:00 | J99: 00:00:13
A100: Del_Ravi Kumar (1008610) | B100: 57 | C100: 0.04761904762 | D100: 0 | E100: 0 | F100: 0.119047619 | G100: 0 | H100: 00:04:15 | I100: 00:00:40 | J100: 00:00:08
A101: Del_Ravinder Kaur (1008611) | B101: 58 | C101: 0.04761904762 | D101: 0 | E101: 0 | F101: 0.119047619 | G101: 0 | H101: 00:04:15 | I101: 00:00:40 | J101: 00:00:08
A102: Del_Rekha Agarwal (1008612) | B102: 59 | C102: 0.02985074627 | D102: 0 | E102: 0 | F102: 0.1044776119 | G102: 0 | H102: 00:03:55 | I102: 00:00:02 | J102: 00:00:14
A103: Del_Rekha Gupta (1008613) | B103: 60 | C103: 0.02985074627 | D103: 0 | E103: 0 | F103: 0.1044776119 | G103: 0 | H103: 00:03:55 | I103: 00:00:02 | J103: 00:00:14
A104: Del_Rekha Jain (1008614) | B104: 61 | C104: 0.02777777778 | D104: 0 | E104: 0 | F104: 0.08333333333 | G104: 0 | H104: 00:03:48 | I104: 00:00:02 | J104: 00:00:06
A105: Del_Renu Pratap (1008615) | B105: 62 | C105: 0.02777777778 | D105: 0 | E105: 0 | F105: 0.08333333333 | G105: 0 | H105: 00:03:48 | I105: 00:00:02 | J105: 00:00:06
A106: Del_Ritu Bhatnagar (1008616) | B106: 63 | C106: 0.1081081081 | D106: 0 | E106: 0 | F106: 0.1621621622 | G106: 0.08333333333 | H106: 00:03:44 | I106: 00:00:11 | J106: 00:00:09
A107: Del_Rohit Nishchal (1008617) | B107: 64 | C107: 0.1081081081 | D107: 0 | E107: 0 | F107: 0.1621621622 | G107: 0.08333333333 | H107: 00:03:44 | I107: 00:00:11 | J107: 00:00:09
A108: Del_Roli Bhatnagar (1008618) | B108: 65 | C108: 0.04838709677 | D108: 0 | E108: 0 | F108: 0.09677419355 | G108: 0 | H108: 00:04:25 | I108: 00:00:00 | J108: 00:00:29
A109: Del_Roma Rastogi (1008619) | B109: 66 | C109: 0.04838709677 | D109: 0 | E109: 0 | F109: 0.09677419355 | G109: 0 | H109: 00:04:25 | I109: 00:00:00 | J109: 00:00:29
A110: Del_Roohi Haider (1008620) | B110: 67 | C110: 0 | D110: 0 | E110: 0 | F110: 0 | G110: 0 | H110: 00:03:32 | J110: 00:00:19
A111: Del_Sajid Naqvi (1008621) | B111: 68 | C111: 0 | D111: 0 | E111: 0 | F111: 0 | G111: 0 | H111: 00:03:32 | J111: 00:00:19
A112: Del_Salim (1008622) | B112: 69 | C112: 0.05263157895 | D112: 0 | E112: 0 | F112: 0.1447368421 | G112: 0.6363636364 | H112: 00:03:27 | I112: 00:00:00 | J112: 00:00:05
A113: Del_Sanjay Hire (1008623) | B113: 70 | C113: 0.05263157895 | D113: 0 | E113: 0 | F113: 0.1447368421 | G113: 0.6363636364 | H113: 00:03:27 | I113: 00:00:00 | J113: 00:00:05
A114: Del_Sanjiv Subherwal (1008624) | B114: 71 | C114: 0.02777777778 | D114: 0 | E114: 0.01369863014 | F114: 0.04166666667 | G114: 0 | H114: 00:03:31 | I114: 00:00:08 | J114: 00:00:11
A115: Del_Sanju Ramdas (1008625) | B115: 72 | C115: 0.02777777778 | D115: 0 | E115: 0.01369863014 | F115: 0.04166666667 | G115: 0 | H115: 00:03:31 | I115: 00:00:08 | J115: 00:00:11
A116: Del_Santosh Kumar (1008626) | B116: 73 | C116: 0.03076923077 | D116: 0 | E116: 0.02985074627 | F116: 0.07692307692 | G116: 0.2 | H116: 00:04:03 | I116: 00:00:01 | J116: 00:00:10
A117: Del_Santosh Kumar (1008627) | B117: 74 | C117: 0.03076923077 | D117: 0 | E117: 0.02985074627 | F117: 0.07692307692 | G117: 0.2 | H117: 00:04:03 | I117: 00:00:01 | J117: 00:00:10
A118: Del_Santosh Kumar (1008628) | B118: 75 | C118: 0.1363636364 | D118: 0 | E118: 0 | F118: 0.2045454545 | G118: 0 | H118: 00:03:58 | I118: 00:01:03 | J118: 00:00:07
A119: Del_Sapna Sharma (1008629) | B119: 76 | C119: 0.1363636364 | D119: 0 | E119: 0 | F119: 0.2045454545 | G119: 0 | H119: 00:03:58 | I119: 00:01:03 | J119: 00:00:07
A120: Del_Saroj Parita (1008630) | B120: 77 | C120: 0.01639344262 | D120: 0 | E120: 0 | F120: 0.08196721311 | G120: 0 | H120: 00:03:55 | I120: 00:00:03 | J120: 00:00:06
A121: Del_Shailaja Kamal (1008631) | B121: 78 | C121: 0.01639344262 | D121: 0 | E121: 0 | F121: 0.08196721311 | G121: 0 | H121: 00:03:55 | I121: 00:00:03 | J121: 00:00:06
A122: Del_Shailendra Barge (1008632) | B122: 79 | C122: 0.1304347826 | D122: 0 | E122: 0 | F122: 0.1956521739 | G122: 0 | H122: 00:04:20 | I122: 00:00:00 | J122: 00:00:11
A123: Del_Shankar Attendant (1008633) | B123: 80 | C123: 0.1304347826 | D123: 0 | E123: 0 | F123: 0.1956521739 | G123: 0 | H123: 00:04:20 | I123: 00:00:00 | J123: 00:00:11
A124: Del_Shashikant Tiwari (1008634) | B124: 81 | C124: 0.06557377049 | D124: 0 | E124: 0 | F124: 0.09836065574 | G124: 0 | H124: 00:04:00 | I124: 00:00:09 | J124: 00:00:08
A125: Del_Sheeba Joseph (1008635) | B125: 82 | C125: 0.06557377049 | D125: 0 | E125: 0 | F125: 0.09836065574 | G125: 0 | H125: 00:04:00 | I125: 00:00:09 | J125: 00:00:08
A126: Del_Sheena Joseph (1008636) | B126: 83 | C126: 0.1111111111 | D126: 0 | E126: 0 | F126: 0.126984127 | G126: 0 | H126: 00:03:27 | I126: 00:00:11 | J126: 00:00:15
A127: Del_Shephali Jain (1008637) | B127: 84 | C127: 0.1111111111 | D127: 0 | E127: 0 | F127: 0.126984127 | G127: 0 | H127: 00:03:27 | I127: 00:00:11 | J127: 00:00:15
A128: Del_Shivji Prasad (1008638) | B128: 85 | C128: 0.05454545455 | D128: 0 | E128: 0 | F128: 0.1454545455 | G128: 0.125 | H128: 00:03:46 | I128: 00:00:51 | J128: 00:00:06
A129: Del_Shubhanjali Joshi (1008639) | B129: 86 | C129: 0.05454545455 | D129: 0 | E129: 0 | F129: 0.1454545455 | G129: 0.125 | H129: 00:03:46 | I129: 00:00:51 | J129: 00:00:06
A130: Del_Shyamal Malakar (1008640) | B130: 87 | C130: 0.1020408163 | D130: 0 | E130: 0.02 | F130: 0.1020408163 | G130: 0 | H130: 00:03:53 | I130: 00:00:00 | J130: 00:00:04
A131: Del_Sneh Khan (1008641) | B131: 88 | C131: 0.1020408163 | D131: 0 | E131: 0.02 | F131: 0.1020408163 | G131: 0 | H131: 00:03:53 | I131: 00:00:00 | J131: 00:00:04
A132: Del_Sonaram Munda (1008642) | B132: 89 | C132: 0.1 | D132: 0 | E132: 0 | F132: 0.1 | G132: 0 | H132: 00:04:31 | I132: 00:00:00 | J132: 00:00:12
A133: Del_Sudama Kumar (1008643) | B133: 90 | C133: 0.1 | D133: 0 | E133: 0 | F133: 0.1 | G133: 0 | H133: 00:04:31 | I133: 00:00:00 | J133: 00:00:12
A134: Del_Sudhir Kumar (1008644) | B134: 91 | C134: 0.03389830508 | D134: 0 | E134: 0 | F134: 0.1525423729 | G134: 0.1111111111 | H134: 00:04:35 | I134: 00:00:32 | J134: 00:00:04
A135: Del_Sunil Kumar (1008645) | B135: 92 | C135: 0.03389830508 | D135: 0 | E135: 0 | F135: 0.1525423729 | G135: 0.1111111111 | H135: 00:04:35 | I135: 00:00:32 | J135: 00:00:04
A136: Del_Sunil Kumar (1008646) | B136: 93 | C136: 0.06382978723 | D136: 0 | E136: 0 | F136: 0.1914893617 | G136: 0 | H136: 00:05:00 | I136: 00:02:17 | J136: 00:00:26
A137: Del_Sunita Chawla (1008647) | B137: 94 | C137: 0.06382978723 | D137: 0 | E137: 0 | F137: 0.1914893617 | G137: 0 | H137: 00:05:00 | I137: 00:02:17 | J137: 00:00:26
A138: Del_Sunita Madnani (1008648) | B138: 95 | C138: 0.1184210526 | D138: 0 | E138: 0 | F138: 0.2368421053 | G138: 0.05555555556 | H138: 00:03:32 | I138: 00:00:23 | J138: 00:00:06
A139: Del_Surendra Kumar (1008649) | B139: 96 | C139: 0.1184210526 | D139: 0 | E139: 0 | F139: 0.2368421053 | G139: 0.05555555556 | H139: 00:03:32 | I139: 00:00:23 | J139: 00:00:06
A140: Del_Surendranath Thakur (1008650) | B140: 97 | C140: 0.07142857143 | D140: 0 | E140: 0 | F140: 0.1285714286 | G140: 0.2222222222 | H140: 00:04:04 | I140: 00:00:35 | J140: 00:00:06
A141: Del_Sushma Khandelwal (1008651) | B141: 98 | C141: 0.07142857143 | D141: 0 | E141: 0 | F141: 0.1285714286 | G141: 0.2222222222 | H141: 00:04:04 | I141: 00:00:35 | J141: 00:00:06
A142: Del_Swarnlata Borse (1008652) | B142: 99 | C142: 0 | D142: 0 | E142: 0 | F142: 0.04 | G142: 0 | H142: 00:03:28 | I142: 00:01:08 | J142: 00:00:06
A143: Del_Syed Naved (1008653) | B143: 100 | C143: 0 | D143: 0 | E143: 0 | F143: 0.04 | G143: 0 | H143: 00:03:28 | I143: 00:01:08 | J143: 00:00:06
A144: Del_Syed Saqib (1008654) | B144: 101 | C144: 0.03174603175 | D144: 0 | E144: 0 | F144: 0.126984127 | G144: 0 | H144: 00:03:42 | I144: 00:00:49 | J144: 00:00:25
A145: Del_Syed Sohail (1008655) | B145: 102 | C145: 0.03174603175 | D145: 0 | E145: 0 | F145: 0.126984127 | G145: 0 | H145: 00:03:42 | I145: 00:00:49 | J145: 00:00:25
A146: Del_System Operator (1008656) | B146: 103 | C146: 0 | D146: 0 | E146: 0 | F146: 0.04838709677 | G146: 0 | H146: 00:03:48 | I146: 00:00:00 | J146: 00:00:06
A147: Del_Tahira Qureshi (1008657) | B147: 104 | C147: 0 | D147: 0 | E147: 0 | F147: 0.04838709677 | G147: 0 | H147: 00:03:48 | I147: 00:00:00 | J147: 00:00:06
A148: Del_Tapas Chakraborty (1008658) | B148: 105 | C148: 0.03278688525 | D148: 0 | E148: 0 | F148: 0.06557377049 | G148: 0.25 | H148: 00:03:49 | I148: 00:00:00 | J148: 00:00:09
A149: Del_Tariq Akhlaq (1008659) | B149: 106 | C149: 0.03278688525 | D149: 0 | E149: 0 | F149: 0.06557377049 | G149: 0.25 | H149: 00:03:49 | I149: 00:00:00 | J149: 00:00:09
A150: Del_Tasneem Khan (1008660) | B150: 107 | C150: 0.03278688525 | D150: 0 | E150: 0 | F150: 0.09836065574 | G150: 0 | H150: 00:04:04 | I150: 00:00:10 | J150: 00:00:07

Sheet Summary
A1: =[1]Break!A1 -> Employee | B1: Emp Name | C1: Total Number of woking hours | D1: Work Efficiency | E1: Total Break Taken | F1: Attended Calls | G1: Active With Cust.
A2: =Break!A2 -> Mum_Abdul Hamid (1008512) | B2: =MID(A2,FIND("_",A2,1)+1,FIND("(",A2,1)-FIND("_",A2,1)-2) -> Abdul Hamid | C2: =TIMEVALUE(VLOOKUP(A2,EData,2,0)) -> 08:15:43 | D2: =TIMEVALUE(VLOOKUP(A2,EData,3,0)) -> 04:57:59 | E2: =TIMEVALUE(VLOOKUP(A2,BData,9,0)) -> 01:08:42 | F2: =VLOOKUP(A2,PData,2,0) -> 98 | G2: =VLOOKUP(A2,EData,6,0) -> 0.5569713882
A3: =Break!A3 -> Mum_Afzal Husain (1008513) | B3: =MID(A3,FIND("_",A3,1)+1,FIND("(",A3,1)-FIND("_",A3,1)-2) -> Afzal Husain | C3: =TIMEVALUE(VLOOKUP(A3,EData,2,0)) -> 08:15:36 | D3: =TIMEVALUE(VLOOKUP(A3,EData,3,0)) -> 04:58:34 | E3: =TIMEVALUE(VLOOKUP(A3,BData,9,0)) -> 01:09:59 | F3: =VLOOKUP(A3,PData,2,0) -> 23 | G3: =VLOOKUP(A3,EData,6,0) -> 0.5802730697
A4: =Break!A4 -> Mum_Anamika Gupta (1008514) | B4: Anamika Gupta | C4: =TIMEVALUE(VLOOKUP(A4,EData,2,0)) -> 08:16:57 | D4: =TIMEVALUE(VLOOKUP(A4,EData,3,0)) -> 04:49:35 | E4: =TIMEVALUE(VLOOKUP(A4,BData,9,0)) -> 01:13:54 | F4: =VLOOKUP(A4,PData,2,0) -> 28 | G4: =VLOOKUP(A4,EData,6,0) -> 0.5170875675
A5: =Break!A5 -> Mum_Anikuttan (1008515) | B5: Anikuttan | C5: =TIMEVALUE(VLOOKUP(A5,EData,2,0)) -> 08:09:56 | D5: =TIMEVALUE(VLOOKUP(A5,EData,3,0)) -> 04:17:32 | E5: =TIMEVALUE(VLOOKUP(A5,BData,9,0)) -> 02:19:02 | F5: =VLOOKUP(A5,PData,2,0) -> 29 | G5: =VLOOKUP(A5,EData,6,0) -> 0.4772077834
A6: =Break!A6 -> Mum_Anil Kumar (1008516) | B6: Anil Kumar | C6: =TIMEVALUE(VLOOKUP(A6,EData,2,0)) -> 07:20:41 | D6: =TIMEVALUE(VLOOKUP(A6,EData,3,0)) -> 03:19:44 | E6: =TIMEVALUE(VLOOKUP(A6,BData,9,0)) -> 03:04:58 | F6: =VLOOKUP(A6,PData,2,0) -> 93 | G6: =VLOOKUP(A6,EData,6,0) -> 0.4328883174
A7: =Break!A7 -> Mum_Anita Dixit (1008517) | B7: Anita Dixit | C7: =TIMEVALUE(VLOOKUP(A7,EData,2,0)) -> 05:00:09 | D7: =TIMEVALUE(VLOOKUP(A7,EData,3,0)) -> 03:41:19 | E7: =TIMEVALUE(VLOOKUP(A7,BData,9,0)) -> 00:27:07 | F7: =VLOOKUP(A7,PData,2,0) -> 92 | G7: =VLOOKUP(A7,EData,6,0) -> 0.6549503026
A8: =Break!A8 -> Mum_Anita Ghore (1008518) | B8: Anita Ghore | C8: =TIMEVALUE(VLOOKUP(A8,EData,2,0)) -> 08:16:38 | D8: =TIMEVALUE(VLOOKUP(A8,EData,3,0)) -> 04:12:46 | E8: =TIMEVALUE(VLOOKUP(A8,BData,9,0)) -> 02:41:42 | F8: =VLOOKUP(A8,PData,2,0) -> 26 | G8: =VLOOKUP(A8,EData,6,0) -> 0.4947647493
A9: =Break!A9 -> Mum_Anjali Deoram (1008519) | B9: Anjali Deoram | C9: =TIMEVALUE(VLOOKUP(A9,EData,2,0)) -> 09:16:31 | D9: =TIMEVALUE(VLOOKUP(A9,EData,3,0)) -> 05:52:08 | E9: =TIMEVALUE(VLOOKUP(A9,BData,9,0)) -> 01:13:10 | F9: =VLOOKUP(A9,PData,2,0) -> 90 | G9: =VLOOKUP(A9,EData,6,0) -> 0.5512862747
A10: =Break!A10 -> Mum_Anjali Sahay (1008520) | B10: Anjali Sahay | C10: =TIMEVALUE(VLOOKUP(A10,EData,2,0)) -> 08:13:18 | D10: =TIMEVALUE(VLOOKUP(A10,EData,3,0)) -> 04:52:29 | E10: =TIMEVALUE(VLOOKUP(A10,BData,9,0)) -> 01:06:39 | F10: =VLOOKUP(A10,PData,2,0) -> 89 | G10: =VLOOKUP(A10,EData,6,0) -> 0.5520643287
A11: =Break!A11 -> Mum_Annu Latika (1008521) | B11: Annu Latika | C11: =TIMEVALUE(VLOOKUP(A11,EData,2,0)) -> 08:20:41 | D11: =TIMEVALUE(VLOOKUP(A11,EData,3,0)) -> 04:58:07 | E11: =TIMEVALUE(VLOOKUP(A11,BData,9,0)) -> 01:09:57 | F11: =VLOOKUP(A11,PData,2,0) -> 54 | G11: =VLOOKUP(A11,EData,6,0) -> 0.5686894577
A12: =Break!A12 -> Mum_Anoop Narayan (1008522) | B12: Anoop Narayan | C12: =TIMEVALUE(VLOOKUP(A12,EData,2,0)) -> 08:10:35 | D12: =TIMEVALUE(VLOOKUP(A12,EData,3,0)) -> 04:55:28 | E12: =TIMEVALUE(VLOOKUP(A12,BData,9,0)) -> 01:09:15 | F12: =VLOOKUP(A12,PData,2,0) -> 87 | G12: =VLOOKUP(A12,EData,6,0) -> 0.5603533209
A13: =Break!A13 -> Mum_Anoop Raj (1008523) | B13: Anoop Raj | C13: =TIMEVALUE(VLOOKUP(A13,EData,2,0)) -> 08:04:10 | D13: =TIMEVALUE(VLOOKUP(A13,EData,3,0)) -> 03:47:42 | E13: =TIMEVALUE(VLOOKUP(A13,BData,9,0)) -> 03:01:18 | F13: =VLOOKUP(A13,PData,2,0) -> 65 | G13: =VLOOKUP(A13,EData,6,0) -> 0.415524957
A14: =Break!A14 -> Mum_Anubhuti Gupta (1008524) | B14: Anubhuti Gupta | C14: =TIMEVALUE(VLOOKUP(A14,EData,2,0)) -> 08:14:38 | D14: =TIMEVALUE(VLOOKUP(A14,EData,3,0)) -> 04:43:40 | E14: =TIMEVALUE(VLOOKUP(A14,BData,9,0)) -> 02:06:41 | F14: =VLOOKUP(A14,PData,2,0) -> 85 | G14: =VLOOKUP(A14,EData,6,0) -> 0.5002695599
A15: =Break!A15 -> Mum_Arun Kumar (1008525) | B15: Arun Kumar | C15: =TIMEVALUE(VLOOKUP(A15,EData,2,0)) -> 07:59:50 | D15: =TIMEVALUE(VLOOKUP(A15,EData,3,0)) -> 04:40:27 | E15: =TIMEVALUE(VLOOKUP(A15,BData,9,0)) -> 01:10:34 | F15: =VLOOKUP(A15,PData,2,0) -> 65 | G15: =VLOOKUP(A15,EData,6,0) -> 0.5139631817
A16: =Break!A16 -> Mum_Ashish Kumar (1008526) | B16: Ashish Kumar | C16: =TIMEVALUE(VLOOKUP(A16,EData,2,0)) -> 08:16:59 | D16: =TIMEVALUE(VLOOKUP(A16,EData,3,0)) -> 04:57:35 | E16: =TIMEVALUE(VLOOKUP(A16,BData,9,0)) -> 01:16:59 | F16: =VLOOKUP(A16,PData,2,0) -> 83 | G16: =VLOOKUP(A16,EData,6,0) -> 0.5105805024
A17: =Break!A17 -> Mum_Ashok Kumar (1008527) | B17: Ashok Kumar | C17: =TIMEVALUE(VLOOKUP(A17,EData,2,0)) -> 08:17:15 | D17: =TIMEVALUE(VLOOKUP(A17,EData,3,0)) -> 04:10:25 | E17: =TIMEVALUE(VLOOKUP(A17,BData,9,0)) -> 02:24:20 | F17: =VLOOKUP(A17,PData,2,0) -> 82 | G17: =VLOOKUP(A17,EData,6,0) -> 0.4829227417
A18: =Break!A18 -> Hyd_Ashok Kumar (1008528) | B18: Ashok Kumar | C18: =TIMEVALUE(VLOOKUP(A18,EData,2,0)) -> 07:53:01 | D18: =TIMEVALUE(VLOOKUP(A18,EData,3,0)) -> 04:44:12 | E18: =TIMEVALUE(VLOOKUP(A18,BData,9,0)) -> 00:56:29 | F18: =VLOOKUP(A18,PData,2,0) -> 81 | G18: =VLOOKUP(A18,EData,6,0) -> 0.5736231986
A19: =Break!A19 -> Hyd_Ashok Kumar (1008529) | B19: Ashok Kumar | C19: =TIMEVALUE(VLOOKUP(A19,EData,2,0)) -> 08:16:43 | D19: =TIMEVALUE(VLOOKUP(A19,EData,3,0)) -> 04:58:07 | E19: =TIMEVALUE(VLOOKUP(A19,BData,9,0)) -> 01:10:07 | F19: =VLOOKUP(A19,PData,2,0) -> 80 | G19: =VLOOKUP(A19,EData,6,0) -> 0.5643056068
A20: =Break!A20 -> Hyd_Ashok Kumar (1008530) | B20: Ashok Kumar | C20: =TIMEVALUE(VLOOKUP(A20,EData,2,0)) -> 08:21:16 | D20: =TIMEVALUE(VLOOKUP(A20,EData,3,0)) -> 04:23:03 | E20: =TIMEVALUE(VLOOKUP(A20,BData,9,0)) -> 02:40:10 | F20: =VLOOKUP(A20,PData,2,0) -> 79 | G20: =VLOOKUP(A20,EData,6,0) -> 0.4697433169
A21: =Break!A21 -> Hyd_Ashok Mahto (1008531) | B21: Ashok Mahto | C21: =TIMEVALUE(VLOOKUP(A21,EData,2,0)) -> 08:17:52 | D21: =TIMEVALUE(VLOOKUP(A21,EData,3,0)) -> 04:58:14 | E21: =TIMEVALUE(VLOOKUP(A21,BData,9,0)) -> 01:14:30 | F21: =VLOOKUP(A21,PData,2,0) -> 78 | G21: =VLOOKUP(A21,EData,6,0) -> 0.5749531334
A22: =Break!A22 -> Hyd_Atul Kumar (1008532) | B22: Atul Kumar | C22: =TIMEVALUE(VLOOKUP(A22,EData,2,0)) -> 08:13:41 | D22: =TIMEVALUE(VLOOKUP(A22,EData,3,0)) -> 04:53:40 | E22: =TIMEVALUE(VLOOKUP(A22,BData,9,0)) -> 01:06:59 | F22: =VLOOKUP(A22,PData,2,0) -> 77 | G22: =VLOOKUP(A22,EData,6,0) -> 0.5794537659
A23: =Break!A23 -> Hyd_Azam (1008533) | B23: Azam | C23: =TIMEVALUE(VLOOKUP(A23,EData,2,0)) -> 08:17:34 | D23: =TIMEVALUE(VLOOKUP(A23,EData,3,0)) -> 04:59:50 | E23: =TIMEVALUE(VLOOKUP(A23,BData,9,0)) -> 01:09:47 | F23: =VLOOKUP(A23,PData,2,0) -> 76 | G23: =VLOOKUP(A23,EData,6,0) -> 0.5882963757
A24: =Break!A24 -> Hyd_Bhagwat Singh (1008534) | B24: Bhagwat Singh | C24: =TIMEVALUE(VLOOKUP(A24,EData,2,0)) -> 07:41:44 | D24: =TIMEVALUE(VLOOKUP(A24,EData,3,0)) -> 04:08:57 | E24: =TIMEVALUE(VLOOKUP(A24,BData,9,0)) -> 02:10:18 | F24: =VLOOKUP(A24,PData,2,0) -> 75 | G24: =VLOOKUP(A24,EData,6,0) -> 0.4626768698
A25: =Break!A25 -> Hyd_Bindu Nair (1008535) | B25: Bindu Nair | C25: =TIMEVALUE(VLOOKUP(A25,EData,2,0)) -> 08:10:04 | D25: =TIMEVALUE(VLOOKUP(A25,EData,3,0)) -> 04:14:05 | E25: =TIMEVALUE(VLOOKUP(A25,BData,9,0)) -> 02:11:17 | F25: =VLOOKUP(A25,PData,2,0) -> 74 | G25: =VLOOKUP(A25,EData,6,0) -> 0.4780302
A26: =Break!A26 -> Hyd_Daleep Singh (1008536) | B26: Daleep Singh | C26: =TIMEVALUE(VLOOKUP(A26,EData,2,0)) -> 08:14:20 | D26: =TIMEVALUE(VLOOKUP(A26,EData,3,0)) -> 05:26:56 | E26: =TIMEVALUE(VLOOKUP(A26,BData,9,0)) -> 01:12:54 | F26: =VLOOKUP(A26,PData,2,0) -> 73 | G26: =VLOOKUP(A26,EData,6,0) -> 0.5998314228
A27: =Break!A27 -> Hyd_Deepak Kumar (1008537) | B27: Deepak Kumar | C27: =TIMEVALUE(VLOOKUP(A27,EData,2,0)) -> 07:35:57 | D27: =TIMEVALUE(VLOOKUP(A27,EData,3,0)) -> 05:05:16 | E27: =TIMEVALUE(VLOOKUP(A27,BData,9,0)) -> 00:30:30 | F27: =VLOOKUP(A27,PData,2,0) -> 72 | G27: =VLOOKUP(A27,EData,6,0) -> 0.650290602
A28: =Break!A28 -> Hyd_Deepika Nigam (1008538) | B28: Deepika Nigam | C28: =TIMEVALUE(VLOOKUP(A28,EData,2,0)) -> 08:16:59 | D28: =TIMEVALUE(VLOOKUP(A28,EData,3,0)) -> 04:56:45 | E28: =TIMEVALUE(VLOOKUP(A28,BData,9,0)) -> 01:11:40 | F28: =VLOOKUP(A28,PData,2,0) -> 71 | G28: =VLOOKUP(A28,EData,6,0) -> 0.5500184446
A29: =Break!A29 -> Hyd_Dinesh Kumar (1008539) | B29: Dinesh Kumar | C29: =TIMEVALUE(VLOOKUP(A29,EData,2,0)) -> 08:13:53 | D29: =TIMEVALUE(VLOOKUP(A29,EData,3,0)) -> 05:06:20 | E29: =TIMEVALUE(VLOOKUP(A29,BData,9,0)) -> 01:10:03 | F29: =VLOOKUP(A29,PData,2,0) -> 70 | G29: =VLOOKUP(A29,EData,6,0) -> 0.5133466068
A30: =Break!A30 -> Hyd_Hari Kumar (1008540) | B30: Hari Kumar | C30: =TIMEVALUE(VLOOKUP(A30,EData,2,0)) -> 08:15:11 | D30: =TIMEVALUE(VLOOKUP(A30,EData,3,0)) -> 04:11:43 | E30: =TIMEVALUE(VLOOKUP(A30,BData,9,0)) -> 02:44:52 | F30: =VLOOKUP(A30,PData,2,0) -> 69 | G30: =VLOOKUP(A30,EData,6,0) -> 0.4360337922
A31: =Break!A31 -> Hyd_Heeramani Choudhary (1008541) | B31: Heeramani Choudhary | C31: =TIMEVALUE(VLOOKUP(A31,EData,2,0)) -> 07:27:24 | D31: =TIMEVALUE(VLOOKUP(A31,EData,3,0)) -> 04:35:28 | E31: =TIMEVALUE(VLOOKUP(A31,BData,9,0)) -> 01:20:20 | F31: =VLOOKUP(A31,PData,2,0) -> 68 | G31: =VLOOKUP(A31,EData,6,0) -> 0.529541052
A32: =Break!A32 -> Hyd_Indra Pal (1008542) | B32: Indra Pal | C32: =TIMEVALUE(VLOOKUP(A32,EData,2,0)) -> 07:59:57 | D32: =TIMEVALUE(VLOOKUP(A32,EData,3,0)) -> 05:14:16 | E32: =TIMEVALUE(VLOOKUP(A32,BData,9,0)) -> 01:09:15 | F32: =VLOOKUP(A32,PData,2,0) -> 67 | G32: =VLOOKUP(A32,EData,6,0) -> 0.564468521
A33: =Break!A33 -> Hyd_Indra Singh (1008543) | B33: Indra Singh | C33: =TIMEVALUE(VLOOKUP(A33,EData,2,0)) -> 08:17:44 | D33: =TIMEVALUE(VLOOKUP(A33,EData,3,0)) -> 05:05:03 | E33: =TIMEVALUE(VLOOKUP(A33,BData,9,0)) -> 02:09:14 | F33: =VLOOKUP(A33,PData,2,0) -> 66 | G33: =VLOOKUP(A33,EData,6,0) -> 0.4978904366
A34: =Break!A34 -> Hyd_Jagdish Chandra (1008544) | B34: Jagdish Chandra | C34: =TIMEVALUE(VLOOKUP(A34,EData,2,0)) -> 08:19:10 | D34: =TIMEVALUE(VLOOKUP(A34,EData,3,0)) -> 04:59:15 | E34: =TIMEVALUE(VLOOKUP(A34,BData,9,0)) -> 01:09:03 | F34: =VLOOKUP(A34,PData,2,0) -> 65 | G34: =VLOOKUP(A34,EData,6,0) -> 0.5627045075
A35: =Break!A35 -> Hyd_Jairaj Vatham (1008545) | B35: Jairaj Vatham | C35: =TIMEVALUE(VLOOKUP(A35,EData,2,0)) -> 08:16:23 | D35: =TIMEVALUE(VLOOKUP(A35,EData,3,0)) -> 05:02:08 | E35: =TIMEVALUE(VLOOKUP(A35,BData,9,0)) -> 01:09:56 | F35: =VLOOKUP(A35,PData,2,0) -> 64 | G35: =VLOOKUP(A35,EData,6,0) -> 0.5768055602
A36: =Break!A36 -> Hyd_Janardan Mishra (1008546) | B36: Janardan Mishra | C36: =TIMEVALUE(VLOOKUP(A36,EData,2,0)) -> 07:39:42 | D36: =TIMEVALUE(VLOOKUP(A36,EData,3,0)) -> 04:32:56 | E36: =TIMEVALUE(VLOOKUP(A36,BData,9,0)) -> 01:28:09 | F36: =VLOOKUP(A36,PData,2,0) -> 63 | G36: =VLOOKUP(A36,EData,6,0) -> 0.5572837358
A37: =Break!A37 -> Hyd_Jitendra Kumar (1008547) | B37: Jitendra Kumar | C37: =TIMEVALUE(VLOOKUP(A37,EData,2,0)) -> 08:11:27 | D37: =TIMEVALUE(VLOOKUP(A37,EData,3,0)) -> 04:07:41 | E37: =TIMEVALUE(VLOOKUP(A37,BData,9,0)) -> 02:35:12 | F37: =VLOOKUP(A37,PData,2,0) -> 62 | G37: =VLOOKUP(A37,EData,6,0) -> 0.4759046359
A38: =Break!A38 -> Hyd_John D'Costa (1008548) | B38: John D'Costa | C38: =TIMEVALUE(VLOOKUP(A38,EData,2,0)) -> 08:09:47 | D38: =TIMEVALUE(VLOOKUP(A38,EData,3,0)) -> 04:51:30 | E38: =TIMEVALUE(VLOOKUP(A38,BData,9,0)) -> 01:09:36 | F38: =VLOOKUP(A38,PData,2,0) -> 61 | G38: =VLOOKUP(A38,EData,6,0) -> 0.5563684622
A39: =Break!A39 -> Hyd_Julie S (1008549) | B39: Julie S | C39: =TIMEVALUE(VLOOKUP(A39,EData,2,0)) -> 08:15:46 | D39: =TIMEVALUE(VLOOKUP(A39,EData,3,0)) -> 04:56:12 | E39: =TIMEVALUE(VLOOKUP(A39,BData,9,0)) -> 01:10:44 | F39: =VLOOKUP(A39,PData,2,0) -> 60 | G39: =VLOOKUP(A39,EData,6,0) -> 0.5279701472
A40: =Break!A40 -> Hyd_Jyoti Tulsani (1008550) | B40: Jyoti Tulsani | C40: =TIMEVALUE(VLOOKUP(A40,EData,2,0)) -> 08:15:19 | D40: =TIMEVALUE(VLOOKUP(A40,EData,3,0)) -> 04:56:56 | E40: =TIMEVALUE(VLOOKUP(A40,BData,9,0)) -> 01:10:27 | F40: =VLOOKUP(A40,PData,2,0) -> 59 | G40: =VLOOKUP(A40,EData,6,0) -> 0.5650257411
A41: =Break!A41 -> Hyd_Kahkasha Parveen (1008551) | B41: Kahkasha Parveen | C41: =TIMEVALUE(VLOOKUP(A41,EData,2,0)) -> 08:17:24 | D41: =TIMEVALUE(VLOOKUP(A41,EData,3,0)) -> 05:25:18 | E41: =TIMEVALUE(VLOOKUP(A41,BData,9,0)) -> 01:10:12 | F41: =VLOOKUP(A41,PData,2,0) -> 58 | G41: =VLOOKUP(A41,EData,6,0) -> 0.4857927892
A42: =Break!A42 -> Hyd_Kailash Nath (1008552) | B42: Kailash Nath | C42: =TIMEVALUE(VLOOKUP(A42,EData,2,0)) -> 08:16:01 | D42: =TIMEVALUE(VLOOKUP(A42,EData,3,0)) -> 04:58:27 | E42: =TIMEVALUE(VLOOKUP(A42,BData,9,0)) -> 01:07:40 | F42: =VLOOKUP(A42,PData,2,0) -> 57 | G42: =VLOOKUP(A42,EData,6,0) -> 0.5722589967
A43: =Break!A43 -> Hyd_Kalpana Agrawal (1008553) | B43: Kalpana Agrawal | C43: =TIMEVALUE(VLOOKUP(A43,EData,2,0)) -> 08:00:08 | D43: =TIMEVALUE(VLOOKUP(A43,EData,3,0)) -> 03:54:19 | E43: =TIMEVALUE(VLOOKUP(A43,BData,9,0)) -> 02:24:54 | F43: =VLOOKUP(A43,PData,2,0) -> 56 | G43: =VLOOKUP(A43,EData,6,0) -> 0.4654262705
A44: =Break!A44 -> Hyd_Kamini Kumar (1008554) | B44: Kamini Kumar | C44: =TIMEVALUE(VLOOKUP(A44,EData,2,0)) -> 05:01:37 | D44: =TIMEVALUE(VLOOKUP(A44,EData,3,0)) -> 03:21:30 | E44: =TIMEVALUE(VLOOKUP(A44,BData,9,0)) -> 00:15:00 | F44: =VLOOKUP(A44,PData,2,0) -> 55 | G44: =VLOOKUP(A44,EData,6,0) -> 0.643808366
A45: =Break!A45 -> Hyd_Kamini Tiwari (1008555) | B45: Kamini Tiwari | C45: =TIMEVALUE(VLOOKUP(A45,EData,2,0)) -> 08:26:46 | D45: =TIMEVALUE(VLOOKUP(A45,EData,3,0)) -> 05:18:49 | E45: =TIMEVALUE(VLOOKUP(A45,BData,9,0)) -> 01:09:45 | F45: =VLOOKUP(A45,PData,2,0) -> 54 | G45: =VLOOKUP(A45,EData,6,0) -> 0.573472341
A46: =Break!A46 -> Hyd_Kavita Sharma (1008556) | B46: Kavita Sharma | C46: =TIMEVALUE(VLOOKUP(A46,EData,2,0)) -> 07:53:25 | D46: =TIMEVALUE(VLOOKUP(A46,EData,3,0)) -> 05:26:19 | E46: =TIMEVALUE(VLOOKUP(A46,BData,9,0)) -> 00:56:19 | F46: =VLOOKUP(A46,PData,2,0) -> 53 | G46: =VLOOKUP(A46,EData,6,0) -> 0.6471747932
A47: =Break!A47 -> Hyd_Kiran Khubchandani (1008557) | B47: Kiran Khubchandani | C47: =TIMEVALUE(VLOOKUP(A47,EData,2,0)) -> 08:01:28 | D47: =TIMEVALUE(VLOOKUP(A47,EData,3,0)) -> 04:13:15 | E47: =TIMEVALUE(VLOOKUP(A47,BData,9,0)) -> 02:10:24 | F47: =VLOOKUP(A47,PData,2,0) -> 52 | G47: =VLOOKUP(A47,EData,6,0) -> 0.5044309056
A48: =Break!A48 -> Hyd_Kisun Sah (1008558) | B48: Kisun Sah | C48: =TIMEVALUE(VLOOKUP(A48,EData,2,0)) -> 08:21:34 | D48: =TIMEVALUE(VLOOKUP(A48,EData,3,0)) -> 05:08:41 | E48: =TIMEVALUE(VLOOKUP(A48,BData,9,0)) -> 01:09:28 | F48: =VLOOKUP(A48,PData,2,0) -> 51 | G48: =VLOOKUP(A48,EData,6,0) -> 0.5528012228
A49: =Break!A49 -> Hyd_Krishana Kumar (1008559) | B49: Krishana Kumar | C49: =TIMEVALUE(VLOOKUP(A49,EData,2,0)) -> 08:15:28 | D49: =TIMEVALUE(VLOOKUP(A49,EData,3,0)) -> 04:45:06 | E49: =TIMEVALUE(VLOOKUP(A49,BData,9,0)) -> 01:09:45 | F49: =VLOOKUP(A49,PData,2,0) -> 50 | G49: =VLOOKUP(A49,EData,6,0) -> 0.5549313778
A50: =Break!A50 -> Hyd_Kunj Bihari (1008560) | B50: Kunj Bihari | C50: =TIMEVALUE(VLOOKUP(A50,EData,2,0)) -> 07:59:19 | D50: =TIMEVALUE(VLOOKUP(A50,EData,3,0)) -> 04:42:13 | E50: =TIMEVALUE(VLOOKUP(A50,BData,9,0)) -> 01:10:11 | F50: =VLOOKUP(A50,PData,2,0) -> 49 | G50: =VLOOKUP(A50,EData,6,0) -> 0.5521749713
A51: =Break!A51 -> Hyd_Leena George (1008561) | B51: Leena George | C51: =TIMEVALUE(VLOOKUP(A51,EData,2,0)) -> 04:56:13 | D51: =TIMEVALUE(VLOOKUP(A51,EData,3,0)) -> 03:10:50 | E51: =TIMEVALUE(VLOOKUP(A51,BData,9,0)) -> 00:18:10 | F51: =VLOOKUP(A51,PData,2,0) -> 48 | G51: =VLOOKUP(A51,EData,6,0) -> 0.5881955776
A52: =Break!A52 -> Hyd_Lilly Lucy (1008562) | B52: Lilly Lucy | C52: =TIMEVALUE(VLOOKUP(A52,EData,2,0)) -> 07:45:23 | D52: =TIMEVALUE(VLOOKUP(A52,EData,3,0)) -> 04:39:06 | E52: =TIMEVALUE(VLOOKUP(A52,BData,9,0)) -> 01:14:44 | F52: =VLOOKUP(A52,PData,2,0) -> 47 | G52: =VLOOKUP(A52,EData,6,0) -> 0.5553486373
A53: =Break!A53 -> Hyd_Mangal Singh (1008563) | B53: Mangal Singh | C53: =TIMEVALUE(VLOOKUP(A53,EData,2,0)) -> 08:00:13 | D53: =TIMEVALUE(VLOOKUP(A53,EData,3,0)) -> 04:46:25 | E53: =TIMEVALUE(VLOOKUP(A53,BData,9,0)) -> 01:10:04 | F53: =VLOOKUP(A53,PData,2,0) -> 46 | G53: =VLOOKUP(A53,EData,6,0) -> 0.5581508347
A54: =Break!A54 -> Hyd_Manisha Shrivastava (1008564) | B54: Manisha Shrivastava | C54: =TIMEVALUE(VLOOKUP(A54,EData,2,0)) -> 08:09:49 | D54: =TIMEVALUE(VLOOKUP(A54,EData,3,0)) -> 04:51:12 | E54: =TIMEVALUE(VLOOKUP(A54,BData,9,0)) -> 01:10:09 | F54: =VLOOKUP(A54,PData,2,0) -> 45 | G54: =VLOOKUP(A54,EData,6,0) -> 0.5300282419
A55: =Break!A55 -> Hyd_Manjusha Sinha (1008565) | B55: Manjusha Sinha | C55: =TIMEVALUE(VLOOKUP(A55,EData,2,0)) -> 08:14:05 | D55: =TIMEVALUE(VLOOKUP(A55,EData,3,0)) -> 05:04:01 | E55: =TIMEVALUE(VLOOKUP(A55,BData,9,0)) -> 01:10:39 | F55: =VLOOKUP(A55,PData,2,0) -> 44 | G55: =VLOOKUP(A55,EData,6,0) -> 0.5463990555
A56: =Break!A56 -> Hyd_ManjuTiwari Lab (1008566) | B56: ManjuTiwari Lab | C56: =TIMEVALUE(VLOOKUP(A56,EData,2,0)) -> 07:41:28 | D56: =TIMEVALUE(VLOOKUP(A56,EData,3,0)) -> 04:26:11 | E56: =TIMEVALUE(VLOOKUP(A56,BData,9,0)) -> 01:10:46 | F56: =VLOOKUP(A56,PData,2,0) -> 43 | G56: =VLOOKUP(A56,EData,6,0) -> 0.5284960994
A57: =Break!A57 -> Hyd_Manoj Kumar (1008567) | B57: Manoj Kumar | C57: =TIMEVALUE(VLOOKUP(A57,EData,2,0)) -> 08:00:44 | D57: =TIMEVALUE(VLOOKUP(A57,EData,3,0)) -> 04:28:58 | E57: =TIMEVALUE(VLOOKUP(A57,BData,9,0)) -> 01:09:53 | F57: =VLOOKUP(A57,PData,2,0) -> 42 | G57: =VLOOKUP(A57,EData,6,0) -> 0.5327971155
A58: =Break!A58 -> Hyd_Manoj Kumar (1008568) | B58: Manoj Kumar | C58: =TIMEVALUE(VLOOKUP(A58,EData,2,0)) -> 07:55:23 | D58: =TIMEVALUE(VLOOKUP(A58,EData,3,0)) -> 04:29:51 | E58: =TIMEVALUE(VLOOKUP(A58,BData,9,0)) -> 01:15:59 | F58: =VLOOKUP(A58,PData,2,0) -> 41 | G58: =VLOOKUP(A58,EData,6,0) -> 0.531500894
A59: =Break!A59 -> Hyd_Masroor Adil (1008569) | B59: Masroor Adil | C59: =TIMEVALUE(VLOOKUP(A59,EData,2,0)) -> 08:10:04 | D59: =TIMEVALUE(VLOOKUP(A59,EData,3,0)) -> 05:04:35 | E59: =TIMEVALUE(VLOOKUP(A59,BData,9,0)) -> 01:11:39 | F59: =VLOOKUP(A59,PData,2,0) -> 40 | G59: =VLOOKUP(A59,EData,6,0) -> 0.58954564
A60: =Break!A60 -> Hyd_Meena Zinjare (1008570) | B60: Meena Zinjare | C60: =TIMEVALUE(VLOOKUP(A60,EData,2,0)) -> 08:05:29 | D60: =TIMEVALUE(VLOOKUP(A60,EData,3,0)) -> 03:09:32 | E60: =TIMEVALUE(VLOOKUP(A60,BData,9,0)) -> 03:34:45 | F60: =VLOOKUP(A60,PData,2,0) -> 39 | G60: =VLOOKUP(A60,EData,6,0) -> 0.3490336091
A61: =Break!A61 -> Hyd_Mehnaz Khan (1008571) | B61: Mehnaz Khan | C61: =TIMEVALUE(VLOOKUP(A61,EData,2,0)) -> 08:14:51 | D61: =TIMEVALUE(VLOOKUP(A61,EData,3,0)) -> 04:08:21 | E61: =TIMEVALUE(VLOOKUP(A61,BData,9,0)) -> 02:12:24 | F61: =VLOOKUP(A61,PData,2,0) -> 38 | G61: =VLOOKUP(A61,EData,6,0) -> 0.4793371729
A62: =Break!A62 -> Hyd_Mercy Thampi (1008572) | B62: Mercy Thampi | C62: =TIMEVALUE(VLOOKUP(A62,EData,2,0)) -> 05:15:35 | D62: =TIMEVALUE(VLOOKUP(A62,EData,3,0)) -> 03:38:44 | E62: =TIMEVALUE(VLOOKUP(A62,BData,9,0)) -> 00:15:35 | F62: =VLOOKUP(A62,PData,2,0) -> 37 | G62: =VLOOKUP(A62,EData,6,0) -> 0.627620808
A63: =Break!A63 -> Hyd_Miny Mole (1008573) | B63: Miny Mole | C63: =TIMEVALUE(VLOOKUP(A63,EData,2,0)) -> 08:12:10 | D63: =TIMEVALUE(VLOOKUP(A63,EData,3,0)) -> 04:14:06 | E63: =TIMEVALUE(VLOOKUP(A63,BData,9,0)) -> 02:13:07 | F63: =VLOOKUP(A63,PData,2,0) -> 36 | G63: =VLOOKUP(A63,EData,6,0) -> 0.4756180156
A64: =Break!A64 -> Hyd_Mohd Rafi (1008574) | B64: Mohd Rafi | C64: =TIMEVALUE(VLOOKUP(A64,EData,2,0)) -> 08:00:32 | D64: =TIMEVALUE(VLOOKUP(A64,EData,3,0)) -> 03:55:15 | E64: =TIMEVALUE(VLOOKUP(A64,BData,9,0)) -> 02:38:29 | F64: =VLOOKUP(A64,PData,2,0) -> 35 | G64: =VLOOKUP(A64,EData,6,0) -> 0.4363554384
A65: =Break!A65 -> Hyd_Mubeen Khan (1008575) | B65: Mubeen Khan | C65: =TIMEVALUE(VLOOKUP(A65,EData,2,0)) -> 07:55:35 | D65: =TIMEVALUE(VLOOKUP(A65,EData,3,0)) -> 03:50:43 | E65: =TIMEVALUE(VLOOKUP(A65,BData,9,0)) -> 02:24:38 | F65: =VLOOKUP(A65,PData,2,0) -> 34 | G65: =VLOOKUP(A65,EData,6,0) -> 0.4512703697
A66: =Break!A66 -> Hyd_Mukesh Nagar (1008576) | B66: Mukesh Nagar | C66: =TIMEVALUE(VLOOKUP(A66,EData,2,0)) -> 05:01:07 | D66: =TIMEVALUE(VLOOKUP(A66,EData,3,0)) -> 03:13:40 | E66: =TIMEVALUE(VLOOKUP(A66,BData,9,0)) -> 00:29:34 | F66: =VLOOKUP(A66,PData,2,0) -> 33 | G66: =VLOOKUP(A66,EData,6,0) -> 0.6124425749
A67: =Break!A67 -> Hyd_Nandu Kumar (1008577) | B67: =MID(A67,FIND("_",A67,1)+1,FIND("(",A67,1)-FIND("_",A67,1)-2) -> Nandu Kumar | C67: =TIMEVALUE(VLOOKUP(A67,EData,2,0)) -> 08:21:39 | D67: =TIMEVALUE(VLOOKUP(A67,EData,3,0)) -> 04:43:39 | E67: =TIMEVALUE(VLOOKUP(A67,BData,9,0)) -> 01:14:03 | F67: =VLOOKUP(A67,PData,2,0) -> 32 | G67: =VLOOKUP(A67,EData,6,0) -> 0.5175587229
A68: =Break!A68 -> Hyd_Narayan Singh (1008578) | B68: Narayan Singh | C68: =TIMEVALUE(VLOOKUP(A68,EData,2,0)) -> 08:19:29 | D68: =TIMEVALUE(VLOOKUP(A68,EData,3,0)) -> 04:54:19 | E68: =TIMEVALUE(VLOOKUP(A68,BData,9,0)) -> 01:08:27 | F68: =VLOOKUP(A68,PData,2,0) -> 31 | G68: =VLOOKUP(A68,EData,6,0) -> 0.5555073576
A69: =Break!A69 -> Hyd_Neeraj Saxena (1008579) | B69: Neeraj Saxena | C69: =TIMEVALUE(VLOOKUP(A69,EData,2,0)) -> 08:21:13 | D69: =TIMEVALUE(VLOOKUP(A69,EData,3,0)) -> 04:36:09 | E69: =TIMEVALUE(VLOOKUP(A69,BData,9,0)) -> 02:15:18 | F69: =VLOOKUP(A69,PData,2,0) -> 30 | G69: =VLOOKUP(A69,EData,6,0) -> 0.4553586273
A70: =Break!A70 -> Hyd_Neeru Mehta (1008580) | B70: Neeru Mehta | C70: =TIMEVALUE(VLOOKUP(A70,EData,2,0)) -> 08:02:20 | D70: =TIMEVALUE(VLOOKUP(A70,EData,3,0)) -> 04:44:15 | E70: =TIMEVALUE(VLOOKUP(A70,BData,9,0)) -> 01:10:03 | F70: =VLOOKUP(A70,PData,2,0) -> 29 | G70: =VLOOKUP(A70,EData,6,0) -> 0.5344505874
A71: =Break!A71 -> Hyd_Nikita Panwalkar (1008581) | B71: Nikita Panwalkar | C71: =TIMEVALUE(VLOOKUP(A71,EData,2,0)) -> 08:16:46 | D71: =TIMEVALUE(VLOOKUP(A71,EData,3,0)) -> 04:58:45 | E71: =TIMEVALUE(VLOOKUP(A71,BData,9,0)) -> 01:37:25 | F71: =VLOOKUP(A71,PData,2,0) -> 28 | G71: =VLOOKUP(A71,EData,6,0) -> 0.5591491646
A72: =Break!A72 -> Hyd_Nitin Bhatia (1008582) | B72: Nitin Bhatia | C72: =TIMEVALUE(VLOOKUP(A72,EData,2,0)) -> 08:00:37 | D72: =TIMEVALUE(VLOOKUP(A72,EData,3,0)) -> 04:44:56 | E72: =TIMEVALUE(VLOOKUP(A72,BData,9,0)) -> 01:09:53 | F72: =VLOOKUP(A72,PData,2,0) -> 29 | G72: =VLOOKUP(A72,EData,6,0) -> 0.5684710615
A73: =Break!A73 -> Hyd_Om Prakash (1008583) | B73: Om Prakash | C73: =TIMEVALUE(VLOOKUP(A73,EData,2,0)) -> 07:55:44 | D73: =TIMEVALUE(VLOOKUP(A73,EData,3,0)) -> 04:26:21 | E73: =TIMEVALUE(VLOOKUP(A73,BData,9,0)) -> 01:36:03 | F73: =VLOOKUP(A73,PData,2,0) -> 30 | G73: =VLOOKUP(A73,EData,6,0) -> 0.4750910874
A74: =Break!A74 -> Hyd_Omprakash O (1008584) | B74: Omprakash O | C74: =TIMEVALUE(VLOOKUP(A74,EData,2,0)) -> 08:09:43 | D74: =TIMEVALUE(VLOOKUP(A74,EData,3,0)) -> 04:02:05 | E74: =TIMEVALUE(VLOOKUP(A74,BData,9,0)) -> 02:11:54 | F74: =VLOOKUP(A74,PData,2,0) -> 31 | G74: =VLOOKUP(A74,EData,6,0) -> 0.475785318
A75: =Break!A75 -> Hyd_Owais Mohd (1008585) | B75: Owais Mohd | C75: =TIMEVALUE(VLOOKUP(A75,EData,2,0)) -> 08:01:11 | D75: =TIMEVALUE(VLOOKUP(A75,EData,3,0)) -> 04:02:50 | E75: =TIMEVALUE(VLOOKUP(A75,BData,9,0)) -> 02:26:26 | F75: =VLOOKUP(A75,PData,2,0) -> 32 | G75: =VLOOKUP(A75,EData,6,0) -> 0.4689827162
A76: =Break!A76 -> Hyd_Pankaj Shelkey (1008586) | B76: Pankaj Shelkey | C76: =TIMEVALUE(VLOOKUP(A76,EData,2,0)) -> 08:15:54 | D76: =TIMEVALUE(VLOOKUP(A76,EData,3,0)) -> 04:26:54 | E76: =TIMEVALUE(VLOOKUP(A76,BData,9,0)) -> 01:55:26 | F76: =VLOOKUP(A76,PData,2,0) -> 33 | G76: =VLOOKUP(A76,EData,6,0) -> 0.5136116152
A77: =Break!A77 -> Hyd_Partha Sarathi (1008587) | B77: Partha Sarathi | C77: =TIMEVALUE(VLOOKUP(A77,EData,2,0)) -> 08:32:22 | D77: =TIMEVALUE(VLOOKUP(A77,EData,3,0)) -> 05:11:39 | E77: =TIMEVALUE(VLOOKUP(A77,BData,9,0)) -> 01:38:42 | F77: =VLOOKUP(A77,PData,2,0) -> 34 | G77: =VLOOKUP(A77,EData,6,0) -> 0.5251122243
A78: =Break!A78 -> Hyd_Prabha Desikan (1008588) | B78: Prabha Desikan | C78: =TIMEVALUE(VLOOKUP(A78,EData,2,0)) -> 08:21:49 | D78: =TIMEVALUE(VLOOKUP(A78,EData,3,0)) -> 03:03:51 | E78: =TIMEVALUE(VLOOKUP(A78,BData,9,0)) -> 04:11:26 | F78: =VLOOKUP(A78,PData,2,0) -> 35 | G78: =VLOOKUP(A78,EData,6,0) -> 0.3486000864
A79: =Break!A79 -> Hyd_Pramod Tiwari (1008589) | B79: Pramod Tiwari | C79: =TIMEVALUE(VLOOKUP(A79,EData,2,0)) -> 08:25:20 | D79: =TIMEVALUE(VLOOKUP(A79,EData,3,0)) -> 02:54:03 | E79: =TIMEVALUE(VLOOKUP(A79,BData,9,0)) -> 04:21:06 | F79: =VLOOKUP(A79,PData,2,0) -> 36 | G79: =VLOOKUP(A79,EData,6,0) -> 0.3147097625
A80: =Break!A80 -> Hyd_Prasannakumari S (1008590) | B80: Prasannakumari S | C80: =TIMEVALUE(VLOOKUP(A80,EData,2,0)) -> 08:08:02 | D80: =TIMEVALUE(VLOOKUP(A80,EData,3,0)) -> 05:10:46 | E80: =TIMEVALUE(VLOOKUP(A80,BData,9,0)) -> 01:10:25 | F80: =VLOOKUP(A80,PData,2,0) -> 37 | G80: =VLOOKUP(A80,EData,6,0) -> 0.5560071033
A81: =Break!A81 -> Hyd_Praveen Kumar (1008591) | B81: Praveen Kumar | C81: =TIMEVALUE(VLOOKUP(A81,EData,2,0)) -> 08:19:20 | D81: =TIMEVALUE(VLOOKUP(A81,EData,3,0)) -> 04:08:46 | E81: =TIMEVALUE(VLOOKUP(A81,BData,9,0)) -> 02:37:28 | F81: =VLOOKUP(A81,PData,2,0) -> 38 | G81: =VLOOKUP(A81,EData,6,0) -> 0.4622162884
A82: =Break!A82 -> Hyd_Rachel Mathew (1008592) | B82: Rachel Mathew | C82: =TIMEVALUE(VLOOKUP(A82,EData,2,0)) -> 08:25:36 | D82: =TIMEVALUE(VLOOKUP(A82,EData,3,0)) -> 03:40:53 | E82: =TIMEVALUE(VLOOKUP(A82,BData,9,0)) -> 03:20:01 | F82: =VLOOKUP(A82,PData,2,0) -> 39 | G82: =VLOOKUP(A82,EData,6,0) -> 0.3907568565
A83: =Break!A83 -> Hyd_Rachita Anupam (1008593) | B83: Rachita Anupam | C83: =TIMEVALUE(VLOOKUP(A83,EData,2,0)) -> 08:16:26 | D83: =TIMEVALUE(VLOOKUP(A83,EData,3,0)) -> 05:16:03 | E83: =TIMEVALUE(VLOOKUP(A83,BData,9,0)) -> 01:08:32 | F83: =VLOOKUP(A83,PData,2,0) -> 40 | G83: =VLOOKUP(A83,EData,6,0) -> 0.5471362385
A84: =Break!A84 -> Hyd_Rachna Chauhan (1008594) | B84: Rachna Chauhan | C84: =TIMEVALUE(VLOOKUP(A84,EData,2,0)) -> 07:36:07 | D84: =TIMEVALUE(VLOOKUP(A84,EData,3,0)) -> 05:07:23 | E84: =TIMEVALUE(VLOOKUP(A84,BData,9,0)) -> 00:30:20 | F84: =VLOOKUP(A84,PData,2,0) -> 41 | G84: =VLOOKUP(A84,EData,6,0) -> 0.6145722951
A85: =Break!A85 -> Hyd_Raj Kumar (1008595) | B85: Raj Kumar | C85: =TIMEVALUE(VLOOKUP(A85,EData,2,0)) -> 08:09:57 | D85: =TIMEVALUE(VLOOKUP(A85,EData,3,0)) -> 05:03:51 | E85: =TIMEVALUE(VLOOKUP(A85,BData,9,0)) -> 01:08:44 | F85: =VLOOKUP(A85,PData,2,0) -> 42 | G85: =VLOOKUP(A85,EData,6,0) -> 0.5533557846
A86: =Break!A86 -> Hyd_Rajeev Garg (1008596) | B86: Rajeev Garg | C86: =TIMEVALUE(VLOOKUP(A86,EData,2,0)) -> 08:04:00 | D86: =TIMEVALUE(VLOOKUP(A86,EData,3,0)) -> 05:05:29 | E86: =TIMEVALUE(VLOOKUP(A86,BData,9,0)) -> 01:08:24 | F86: =VLOOKUP(A86,PData,2,0) -> 43 | G86: =VLOOKUP(A86,EData,6,0) -> 0.6113636364
A87: =Break!A87 -> Hyd_Rajeev Kumar (1008597) | B87: Rajeev Kumar | C87: =TIMEVALUE(VLOOKUP(A87,EData,2,0)) -> 07:59:43 | D87: =TIMEVALUE(VLOOKUP(A87,EData,3,0)) -> 04:28:51 | E87: =TIMEVALUE(VLOOKUP(A87,BData,9,0)) -> 01:37:06 | F87: =VLOOKUP(A87,PData,2,0) -> 44 | G87: =VLOOKUP(A87,EData,6,0) -> 0.5121773269
A88: =Break!A88 -> Hyd_Rajendra Gupta (1008598) | B88: Rajendra Gupta | C88: =TIMEVALUE(VLOOKUP(A88,EData,2,0)) -> 08:25:57 | D88: =TIMEVALUE(VLOOKUP(A88,EData,3,0)) -> 04:58:12 | E88: =TIMEVALUE(VLOOKUP(A88,BData,9,0)) -> 01:19:08 | F88: =VLOOKUP(A88,PData,2,0) -> 45 | G88: =VLOOKUP(A88,EData,6,0) -> 0.5602991073
A89: =Break!A89 -> Hyd_Rajendra Kumar (1008599) | B89: Rajendra Kumar | C89: =TIMEVALUE(VLOOKUP(A89,EData,2,0)) -> 08:14:44 | D89: =TIMEVALUE(VLOOKUP(A89,EData,3,0)) -> 03:55:22 | E89: =TIMEVALUE(VLOOKUP(A89,BData,9,0)) -> 02:34:16 | F89: =VLOOKUP(A89,PData,2,0) -> 46 | G89: =VLOOKUP(A89,EData,6,0) -> 0.4289179356
A90: =Break!A90 -> Hyd_Rajendra Prasad (1008600) | B90: Rajendra Prasad | C90: =TIMEVALUE(VLOOKUP(A90,EData,2,0)) -> 08:22:34 | D90: =TIMEVALUE(VLOOKUP(A90,EData,3,0)) -> 00:48:33 | E90: =TIMEVALUE(VLOOKUP(A90,BData,9,0)) -> 07:08:19 | F90: =VLOOKUP(A90,PData,2,0) -> 47 | G90: =VLOOKUP(A90,EData,6,0) -> 0.094547987
A91: =Break!A91 -> Hyd_Rajesh Kumar (1008601) | B91: Rajesh Kumar | C91: =TIMEVALUE(VLOOKUP(A91,EData,2,0)) -> 08:00:39 | D91: =TIMEVALUE(VLOOKUP(A91,EData,3,0)) -> 05:11:50 | E91: =TIMEVALUE(VLOOKUP(A91,BData,9,0)) -> 01:12:04 | F91: =VLOOKUP(A91,PData,2,0) -> 48 | G91: =VLOOKUP(A91,EData,6,0) -> 0.6102153334
A92: =Break!A92 -> Hyd_Rajesh Kumar (1008602) | B92: Rajesh Kumar | C92: =TIMEVALUE(VLOOKUP(A92,EData,2,0)) -> 08:17:39 | D92: =TIMEVALUE(VLOOKUP(A92,EData,3,0)) -> 04:49:40 | E92: =TIMEVALUE(VLOOKUP(A92,BData,9,0)) -> 02:06:35 | F92: =VLOOKUP(A92,PData,2,0) -> 49 | G92: =VLOOKUP(A92,EData,6,0) -> 0.5126092635
A93: =Break!A93 -> Hyd_Rajesh Sharma (1008603) | B93: Rajesh Sharma | C93: =TIMEVALUE(VLOOKUP(A93,EData,2,0)) -> 05:04:31 | D93: =TIMEVALUE(VLOOKUP(A93,EData,3,0)) -> 03:24:21 | E93: =TIMEVALUE(VLOOKUP(A93,BData,9,0)) -> 00:24:27 | F93: =VLOOKUP(A93,PData,2,0) -> 50 | G93: =VLOOKUP(A93,EData,6,0) -> 0.6242679656
A94: =Break!A94 -> Hyd_Raji Abraham (1008604) | B94: Raji Abraham | C94: =TIMEVALUE(VLOOKUP(A94,EData,2,0)) -> 08:10:41 | D94: =TIMEVALUE(VLOOKUP(A94,EData,3,0)) -> 04:44:35 | E94: =TIMEVALUE(VLOOKUP(A94,BData,9,0)) -> 01:09:28 | F94: =VLOOKUP(A94,PData,2,0) -> 51 | G94: =VLOOKUP(A94,EData,6,0) -> 0.5437315309
A95: =Break!A95 -> Hyd_Rajshree Dhabekar (1008605) | B95: Rajshree Dhabekar | C95: =TIMEVALUE(VLOOKUP(A95,EData,2,0)) -> 08:15:13 | D95: =TIMEVALUE(VLOOKUP(A95,EData,3,0)) ->  | E95: =TIMEVALUE(VLOOKUP(A95,BData,9,0)) -> 08:15:09 | F95: =VLOOKUP(A95,PData,2,0) -> 52 | G95: =VLOOKUP(A95,EData,6,0) -> 0
A96: =Break!A96 -> Hyd_Rakhi Jodhani (1008606) | B96: Rakhi Jodhani | C96: =TIMEVALUE(VLOOKUP(A96,EData,2,0)) -> 08:02:52 | D96: =TIMEVALUE(VLOOKUP(A96,EData,3,0)) -> 01:13:06 | E96: =TIMEVALUE(VLOOKUP(A96,BData,9,0)) -> 06:39:44 | F96: =VLOOKUP(A96,PData,2,0) -> 53 | G96: =VLOOKUP(A96,EData,6,0) -> 0.1443117493
A97: =Break!A97 -> Hyd_Ramji Prasad (1008607) | B97: Ramji Prasad | C97: =TIMEVALUE(VLOOKUP(A97,EData,2,0)) -> 08:19:26 | D97: =TIMEVALUE(VLOOKUP(A97,EData,3,0)) -> 04:53:04 | E97: =TIMEVALUE(VLOOKUP(A97,BData,9,0)) -> 01:13:46 | F97: =VLOOKUP(A97,PData,2,0) -> 54 | G97: =VLOOKUP(A97,EData,6,0) -> 0.5525929387
A98: =Break!A98 -> Del_Rashid (1008608) | B98: Rashid | C98: =TIMEVALUE(VLOOKUP(A98,EData,2,0)) -> 08:02:10 | D98: =TIMEVALUE(VLOOKUP(A98,EData,3,0)) -> 01:36:08 | E98: =TIMEVALUE(VLOOKUP(A98,BData,9,0)) -> 05:45:13 | F98: =VLOOKUP(A98,PData,2,0) -> 55 | G98: =VLOOKUP(A98,EData,6,0) -> 0.1893881784
A99: =Break!A99 -> Del_Rashmi Gajbe (1008609) | B99: Rashmi Gajbe | C99: =TIMEVALUE(VLOOKUP(A99,EData,2,0)) -> 08:20:42 | D99: =TIMEVALUE(VLOOKUP(A99,EData,3,0)) -> 04:16:57 | E99: =TIMEVALUE(VLOOKUP(A99,BData,9,0)) -> 02:04:58 | F99: =VLOOKUP(A99,PData,2,0) -> 56 | G99: =VLOOKUP(A99,EData,6,0) -> 0.4707742494
A100: =Break!A100 -> Del_Ravi Kumar (1008610) | B100: Ravi Kumar | C100: =TIMEVALUE(VLOOKUP(A100,EData,2,0)) -> 08:00:44 | D100: =TIMEVALUE(VLOOKUP(A100,EData,3,0)) -> 04:47:03 | E100: =TIMEVALUE(VLOOKUP(A100,BData,9,0)) -> 01:11:14 | F100: =VLOOKUP(A100,PData,2,0) -> 57 | G100: =VLOOKUP(A100,EData,6,0) -> 0.5386215504
A101: =Break!A101 -> Del_Ravinder Kaur (1008611) | B101: Ravinder Kaur | C101: =TIMEVALUE(VLOOKUP(A101,EData,2,0)) -> 08:01:53 | D101: =TIMEVALUE(VLOOKUP(A101,EData,3,0)) -> 04:38:57 | E101: =TIMEVALUE(VLOOKUP(A101,BData,9,0)) -> 01:09:28 | F101: =VLOOKUP(A101,PData,2,0) -> 58 | G101: =VLOOKUP(A101,EData,6,0) -> 0.5329436586
A102: =Break!A102 -> Del_Rekha Agarwal (1008612) | B102: Rekha Agarwal | C102: =TIMEVALUE(VLOOKUP(A102,EData,2,0)) -> 05:53:52 | D102: =TIMEVALUE(VLOOKUP(A102,EData,3,0)) -> 02:53:07 | E102: =TIMEVALUE(VLOOKUP(A102,BData,9,0)) -> 02:41:42 | F102: =VLOOKUP(A102,PData,2,0) -> 59 | G102: =VLOOKUP(A102,EData,6,0) -> 0.4131028636
A103: =Break!A103 -> Del_Rekha Gupta (1008613) | B103: Rekha Gupta | C103: =TIMEVALUE(VLOOKUP(A103,EData,2,0)) -> 08:16:02 | D103: =TIMEVALUE(VLOOKUP(A103,EData,3,0)) -> 04:22:52 | E103: =TIMEVALUE(VLOOKUP(A103,BData,9,0)) -> 01:50:37 | F103: =VLOOKUP(A103,PData,2,0) -> 60 | G103: =VLOOKUP(A103,EData,6,0) -> 0.5048383845
A104: =Break!A104 -> Del_Rekha Jain (1008614) | B104: Rekha Jain | C104: =TIMEVALUE(VLOOKUP(A104,EData,2,0)) -> 08:15:42 | D104: =TIMEVALUE(VLOOKUP(A104,EData,3,0)) -> 04:25:29 | E104: =TIMEVALUE(VLOOKUP(A104,BData,9,0)) -> 01:36:57 | F104: =VLOOKUP(A104,PData,2,0) -> 61 | G104: =VLOOKUP(A104,EData,6,0) -> 0.5239055881
A105: =Break!A105 -> Del_Renu Pratap (1008615) | B105: Renu Pratap | C105: =TIMEVALUE(VLOOKUP(A105,EData,2,0)) -> 08:16:30 | D105: =TIMEVALUE(VLOOKUP(A105,EData,3,0)) -> 02:30:29 | E105: =TIMEVALUE(VLOOKUP(A105,BData,9,0)) -> 05:07:55 | F105: =VLOOKUP(A105,PData,2,0) -> 62 | G105: =VLOOKUP(A105,EData,6,0) -> 0.2544478013
A106: =Break!A106 -> Del_Ritu Bhatnagar (1008616) | B106: Ritu Bhatnagar | C106: =TIMEVALUE(VLOOKUP(A106,EData,2,0)) -> 08:01:48 | D106: =TIMEVALUE(VLOOKUP(A106,EData,3,0)) -> 04:52:13 | E106: =TIMEVALUE(VLOOKUP(A106,BData,9,0)) -> 01:13:20 | F106: =VLOOKUP(A106,PData,2,0) -> 63 | G106: =VLOOKUP(A106,EData,6,0) -> 0.5551750381
A107: =Break!A107 -> Del_Rohit Nishchal (1008617) | B107: Rohit Nishchal | C107: =TIMEVALUE(VLOOKUP(A107,EData,2,0)) -> 08:17:09 | D107: =TIMEVALUE(VLOOKUP(A107,EData,3,0)) ->  | E107: =TIMEVALUE(VLOOKUP(A107,BData,9,0)) -> 08:17:00 | F107: =VLOOKUP(A107,PData,2,0) -> 64 | G107: =VLOOKUP(A107,EData,6,0) -> 0
A108: =Break!A108 -> Del_Roli Bhatnagar (1008618) | B108: Roli Bhatnagar | C108: =TIMEVALUE(VLOOKUP(A108,EData,2,0)) -> 08:15:43 | D108: =TIMEVALUE(VLOOKUP(A108,EData,3,0)) -> 04:08:30 | E108: =TIMEVALUE(VLOOKUP(A108,BData,9,0)) -> 02:10:16 | F108: =VLOOKUP(A108,PData,2,0) -> 65 | G108: =VLOOKUP(A108,EData,6,0) -> 0.477120667
A109: =Break!A109 -> Del_Roma Rastogi (1008619) | B109: Roma Rastogi | C109: =TIMEVALUE(VLOOKUP(A109,EData,2,0)) -> 08:31:02 | D109: =TIMEVALUE(VLOOKUP(A109,EData,3,0)) -> 05:35:38 | E109: =TIMEVALUE(VLOOKUP(A109,BData,9,0)) -> 00:53:47 | F109: =VLOOKUP(A109,PData,2,0) -> 66 | G109: =VLOOKUP(A109,EData,6,0) -> 0.6191703085
A110: =Break!A110 -> Del_Roohi Haider (1008620) | B110: Roohi Haider | C110: =TIMEVALUE(VLOOKUP(A110,EData,2,0)) -> 08:00:11 | D110: =TIMEVALUE(VLOOKUP(A110,EData,3,0)) -> 04:52:11 | E110: =TIMEVALUE(VLOOKUP(A110,BData,9,0)) -> 01:09:24 | F110: =VLOOKUP(A110,PData,2,0) -> 67 | G110: =VLOOKUP(A110,EData,6,0) -> 0.5530526535
A111: =Break!A111 -> Del_Sajid Naqvi (1008621) | B111: Sajid Naqvi | C111: =TIMEVALUE(VLOOKUP(A111,EData,2,0)) -> 08:15:48 | D111: =TIMEVALUE(VLOOKUP(A111,EData,3,0)) -> 05:00:37 | E111: =TIMEVALUE(VLOOKUP(A111,BData,9,0)) -> 01:08:40 | F111: =VLOOKUP(A111,PData,2,0) -> 68 | G111: =VLOOKUP(A111,EData,6,0) -> 0.5619537448
A112: =Break!A112 -> Del_Salim (1008622) | B112: Salim | C112: =TIMEVALUE(VLOOKUP(A112,EData,2,0)) -> 08:15:56 | D112: =TIMEVALUE(VLOOKUP(A112,EData,3,0)) -> 04:37:42 | E112: =TIMEVALUE(VLOOKUP(A112,BData,9,0)) -> 01:59:29 | F112: =VLOOKUP(A112,PData,2,0) -> 69 | G112: =VLOOKUP(A112,EData,6,0) -> 0.4878007797
A113: =Break!A113 -> Del_Sanjay Hire (1008623) | B113: Sanjay Hire | C113: =TIMEVALUE(VLOOKUP(A113,EData,2,0)) -> 08:15:52 | D113: =TIMEVALUE(VLOOKUP(A113,EData,3,0)) -> 05:00:14 | E113: =TIMEVALUE(VLOOKUP(A113,BData,9,0)) -> 01:09:43 | F113: =VLOOKUP(A113,PData,2,0) -> 70 | G113: =VLOOKUP(A113,EData,6,0) -> 0.5541476203
A114: =Break!A114 -> Del_Sanjiv Subherwal (1008624) | B114: Sanjiv Subherwal | C114: =TIMEVALUE(VLOOKUP(A114,EData,2,0)) -> 08:02:17 | D114: =TIMEVALUE(VLOOKUP(A114,EData,3,0)) -> 05:06:07 | E114: =TIMEVALUE(VLOOKUP(A114,BData,9,0)) -> 01:10:15 | F114: =VLOOKUP(A114,PData,2,0) -> 71 | G114: =VLOOKUP(A114,EData,6,0) -> 0.5865155337
A115: =Break!A115 -> Del_Sanju Ramdas (1008625) | B115: Sanju Ramdas | C115: =TIMEVALUE(VLOOKUP(A115,EData,2,0)) -> 08:15:58 | D115: =TIMEVALUE(VLOOKUP(A115,EData,3,0)) -> 05:19:44 | E115: =TIMEVALUE(VLOOKUP(A115,BData,9,0)) -> 01:13:56 | F115: =VLOOKUP(A115,PData,2,0) -> 72 | G115: =VLOOKUP(A115,EData,6,0) -> 0.5816587136
A116: =Break!A116 -> Del_Santosh Kumar (1008626) | B116: Santosh Kumar | C116: =TIMEVALUE(VLOOKUP(A116,EData,2,0)) -> 08:00:32 | D116: =TIMEVALUE(VLOOKUP(A116,EData,3,0)) -> 05:03:10 | E116: =TIMEVALUE(VLOOKUP(A116,BData,9,0)) -> 01:09:48 | F116: =VLOOKUP(A116,PData,2,0) -> 73 | G116: =VLOOKUP(A116,EData,6,0) -> 0.5907325194
A117: =Break!A117 -> Del_Santosh Kumar (1008627) | B117: Santosh Kumar | C117: =TIMEVALUE(VLOOKUP(A117,EData,2,0)) -> 08:17:04 | D117: =TIMEVALUE(VLOOKUP(A117,EData,3,0)) -> 05:09:57 | E117: =TIMEVALUE(VLOOKUP(A117,BData,9,0)) -> 01:10:58 | F117: =VLOOKUP(A117,PData,2,0) -> 74 | G117: =VLOOKUP(A117,EData,6,0) -> 0.5864069206
A118: =Break!A118 -> Del_Santosh Kumar (1008628) | B118: Santosh Kumar | C118: =TIMEVALUE(VLOOKUP(A118,EData,2,0)) -> 08:02:59 | D118: =TIMEVALUE(VLOOKUP(A118,EData,3,0)) -> 04:44:19 | E118: =TIMEVALUE(VLOOKUP(A118,BData,9,0)) -> 01:12:01 | F118: =VLOOKUP(A118,PData,2,0) -> 75 | G118: =VLOOKUP(A118,EData,6,0) -> 0.5465336968
A119: =Break!A119 -> Del_Sapna Sharma (1008629) | B119: Sapna Sharma | C119: =TIMEVALUE(VLOOKUP(A119,EData,2,0)) -> 08:04:14 | D119: =TIMEVALUE(VLOOKUP(A119,EData,3,0)) -> 04:33:29 | E119: =TIMEVALUE(VLOOKUP(A119,BData,9,0)) -> 01:32:37 | F119: =VLOOKUP(A119,PData,2,0) -> 76 | G119: =VLOOKUP(A119,EData,6,0) -> 0.5323879672
A120: =Break!A120 -> Del_Saroj Parita (1008630) | B120: Saroj Parita | C120: =TIMEVALUE(VLOOKUP(A120,EData,2,0)) -> 08:01:59 | D120: =TIMEVALUE(VLOOKUP(A120,EData,3,0)) -> 04:31:42 | E120: =TIMEVALUE(VLOOKUP(A120,BData,9,0)) -> 01:45:37 | F120: =VLOOKUP(A120,PData,2,0) -> 77 | G120: =VLOOKUP(A120,EData,6,0) -> 0.4702098966
A121: =Break!A121 -> Del_Shailaja Kamal (1008631) | B121: Shailaja Kamal | C121: =TIMEVALUE(VLOOKUP(A121,EData,2,0)) -> 08:09:14 | D121: =TIMEVALUE(VLOOKUP(A121,EData,3,0)) -> 04:51:46 | E121: =TIMEVALUE(VLOOKUP(A121,BData,9,0)) -> 01:08:46 | F121: =VLOOKUP(A121,PData,2,0) -> 78 | G121: =VLOOKUP(A121,EData,6,0) -> 0.5463309941
A122: =Break!A122 -> Del_Shailendra Barge (1008632) | B122: Shailendra Barge | C122: =TIMEVALUE(VLOOKUP(A122,EData,2,0)) -> 08:17:38 | D122: =TIMEVALUE(VLOOKUP(A122,EData,3,0)) -> 03:26:09 | E122: =TIMEVALUE(VLOOKUP(A122,BData,9,0)) -> 03:43:06 | F122: =VLOOKUP(A122,PData,2,0) -> 79 | G122: =VLOOKUP(A122,EData,6,0) -> 0.3882041664
A123: =Break!A123 -> Del_Shankar Attendant (1008633) | B123: Shankar Attendant | C123: =TIMEVALUE(VLOOKUP(A123,EData,2,0)) -> 07:57:56 | D123: =TIMEVALUE(VLOOKUP(A123,EData,3,0)) -> 03:27:15 | E123: =TIMEVALUE(VLOOKUP(A123,BData,9,0)) -> 03:15:05 | F123: =VLOOKUP(A123,PData,2,0) -> 80 | G123: =VLOOKUP(A123,EData,6,0) -> 0.4027758404
A124: =Break!A124 -> Del_Shashikant Tiwari (1008634) | B124: Shashikant Tiwari | C124: =TIMEVALUE(VLOOKUP(A124,EData,2,0)) -> 08:14:55 | D124: =TIMEVALUE(VLOOKUP(A124,EData,3,0)) -> 05:19:10 | E124: =TIMEVALUE(VLOOKUP(A124,BData,9,0)) -> 01:09:59 | F124: =VLOOKUP(A124,PData,2,0) -> 81 | G124: =VLOOKUP(A124,EData,6,0) -> 0.5435258461
A125: =Break!A125 -> Del_Sheeba Joseph (1008635) | B125: Sheeba Joseph | C125: =TIMEVALUE(VLOOKUP(A125,EData,2,0)) -> 08:30:57 | D125: =TIMEVALUE(VLOOKUP(A125,EData,3,0)) -> 03:41:07 | E125: =TIMEVALUE(VLOOKUP(A125,BData,9,0)) -> 00:55:39 | F125: =VLOOKUP(A125,PData,2,0) -> 82 | G125: =VLOOKUP(A125,EData,6,0) -> 0.2837198682
A126: =Break!A126 -> Del_Sheena Joseph (1008636) | B126: Sheena Joseph | C126: =TIMEVALUE(VLOOKUP(A126,EData,2,0)) -> 08:49:34 | D126: =TIMEVALUE(VLOOKUP(A126,EData,3,0)) -> 05:10:26 | E126: =TIMEVALUE(VLOOKUP(A126,BData,9,0)) -> 01:41:30 | F126: =VLOOKUP(A126,PData,2,0) -> 83 | G126: =VLOOKUP(A126,EData,6,0) -> 0.5619689054
A127: =Break!A127 -> Del_Shephali Jain (1008637) | B127: Shephali Jain | C127: =TIMEVALUE(VLOOKUP(A127,EData,2,0)) -> 08:25:43 | D127: =TIMEVALUE(VLOOKUP(A127,EData,3,0)) -> 03:41:29 | E127: =TIMEVALUE(VLOOKUP(A127,BData,9,0)) -> 03:23:49 | F127: =VLOOKUP(A127,PData,2,0) -> 84 | G127: =VLOOKUP(A127,EData,6,0) -> 0.4033220183
A128: =Break!A128 -> Del_Shivji Prasad (1008638) | B128: Shivji Prasad | C128: =TIMEVALUE(VLOOKUP(A128,EData,2,0)) -> 08:11:40 | D128: =TIMEVALUE(VLOOKUP(A128,EData,3,0)) -> 04:12:39 | E128: =TIMEVALUE(VLOOKUP(A128,BData,9,0)) -> 02:17:48 | F128: =VLOOKUP(A128,PData,2,0) -> 85 | G128: =VLOOKUP(A128,EData,6,0) -> 0.4379661017
A129: =Break!A129 -> Del_Shubhanjali Joshi (1008639) | B129: Shubhanjali Joshi | C129: =TIMEVALUE(VLOOKUP(A129,EData,2,0)) -> 08:17:17 | D129: =TIMEVALUE(VLOOKUP(A129,EData,3,0)) -> 04:54:52 | E129: =TIMEVALUE(VLOOKUP(A129,BData,9,0)) -> 01:19:32 | F129: =VLOOKUP(A129,PData,2,0) -> 86 | G129: =VLOOKUP(A129,EData,6,0) -> 0.5558199551
A130: =Break!A130 -> Del_Shyamal Malakar (1008640) | B130: Shyamal Malakar | C130: =TIMEVALUE(VLOOKUP(A130,EData,2,0)) -> 08:15:36 | D130: =TIMEVALUE(VLOOKUP(A130,EData,3,0)) -> 02:53:35 | E130: =TIMEVALUE(VLOOKUP(A130,BData,9,0)) -> 04:35:37 | F130: =VLOOKUP(A130,PData,2,0) -> 87 | G130: =VLOOKUP(A130,EData,6,0) -> 0.3260357815
A131: =Break!A131 -> Del_Sneh Khan (1008641) | B131: =MID(A131,FIND("_",A131,1)+1,FIND("(",A131,1)-FIND("_",A131,1)-2) -> Sneh Khan | C131: =TIMEVALUE(VLOOKUP(A131,EData,2,0)) -> 08:09:15 | D131: =TIMEVALUE(VLOOKUP(A131,EData,3,0)) -> 05:06:25 | E131: =TIMEVALUE(VLOOKUP(A131,BData,9,0)) -> 01:09:51 | F131: =VLOOKUP(A131,PData,2,0) -> 88 | G131: =VLOOKUP(A131,EData,6,0) -> 0.5740419009
A132: =Break!A132 -> Del_Sonaram Munda (1008642) | B132: Sonaram Munda | C132: =TIMEVALUE(VLOOKUP(A132,EData,2,0)) -> 08:00:41 | D132: =TIMEVALUE(VLOOKUP(A132,EData,3,0)) -> 04:11:10 | E132: =TIMEVALUE(VLOOKUP(A132,BData,9,0)) -> 01:57:15 | F132: =VLOOKUP(A132,PData,2,0) -> 89 | G132: =VLOOKUP(A132,EData,6,0) -> 0.4535903748
A133: =Break!A133 -> Del_Sudama Kumar (1008643) | B133: Sudama Kumar | C133: =TIMEVALUE(VLOOKUP(A133,EData,2,0)) -> 08:09:47 | D133: =TIMEVALUE(VLOOKUP(A133,EData,3,0)) -> 02:38:49 | E133: =TIMEVALUE(VLOOKUP(A133,BData,9,0)) -> 04:36:20 | F133: =VLOOKUP(A133,PData,2,0) -> 90 | G133: =VLOOKUP(A133,EData,6,0) -> 0.2968999898
A134: =Break!A134 -> Del_Sudhir Kumar (1008644) | B134: Sudhir Kumar | C134: =TIMEVALUE(VLOOKUP(A134,EData,2,0)) -> 08:00:18 | D134: =TIMEVALUE(VLOOKUP(A134,EData,3,0)) -> 04:35:36 | E134: =TIMEVALUE(VLOOKUP(A134,BData,9,0)) -> 01:14:24 | F134: =VLOOKUP(A134,PData,2,0) -> 91 | G134: =VLOOKUP(A134,EData,6,0) -> 0.5572905823
A135: =Break!A135 -> Del_Sunil Kumar (1008645) | B135: Sunil Kumar | C135: =TIMEVALUE(VLOOKUP(A135,EData,2,0)) -> 08:03:26 | D135: =TIMEVALUE(VLOOKUP(A135,EData,3,0)) -> 02:58:37 | E135: =TIMEVALUE(VLOOKUP(A135,BData,9,0)) -> 03:56:57 | F135: =VLOOKUP(A135,PData,2,0) -> 92 | G135: =VLOOKUP(A135,EData,6,0) -> 0.3327932152
A136: =Break!A136 -> Del_Sunil Kumar (1008646) | B136: Sunil Kumar | C136: =TIMEVALUE(VLOOKUP(A136,EData,2,0)) -> 08:05:06 | D136: =TIMEVALUE(VLOOKUP(A136,EData,3,0)) -> 04:05:03 | E136: =TIMEVALUE(VLOOKUP(A136,BData,9,0)) -> 02:16:51 | F136: =VLOOKUP(A136,PData,2,0) -> 93 | G136: =VLOOKUP(A136,EData,6,0) -> 0.4723081152
A137: =Break!A137 -> Del_Sunita Chawla (1008647) | B137: Sunita Chawla | C137: =TIMEVALUE(VLOOKUP(A137,EData,2,0)) -> 08:05:25 | D137: =TIMEVALUE(VLOOKUP(A137,EData,3,0)) -> 04:31:57 | E137: =TIMEVALUE(VLOOKUP(A137,BData,9,0)) -> 02:06:43 | F137: =VLOOKUP(A137,PData,2,0) -> 94 | G137: =VLOOKUP(A137,EData,6,0) -> 0.5111072961
A138: =Break!A138 -> Del_Sunita Madnani (1008648) | B138: Sunita Madnani | C138: =TIMEVALUE(VLOOKUP(A138,EData,2,0)) -> 08:14:02 | D138: =TIMEVALUE(VLOOKUP(A138,EData,3,0)) -> 05:19:12 | E138: =TIMEVALUE(VLOOKUP(A138,BData,9,0)) -> 01:08:15 | F138: =VLOOKUP(A138,PData,2,0) -> 95 | G138: =VLOOKUP(A138,EData,6,0) -> 0.5888604008
A139: =Break!A139 -> Del_Surendra Kumar (1008649) | B139: Surendra Kumar | C139: =TIMEVALUE(VLOOKUP(A139,EData,2,0)) -> 07:29:10 | D139: =TIMEVALUE(VLOOKUP(A139,EData,3,0)) -> 02:54:25 | E139: =TIMEVALUE(VLOOKUP(A139,BData,9,0)) -> 03:46:52 | F139: =VLOOKUP(A139,PData,2,0) -> 96 | G139: =VLOOKUP(A139,EData,6,0) -> 0.3428942486
A140: =Break!A140 -> Del_Surendranath Thakur (1008650) | B140: Surendranath Thakur | C140: =TIMEVALUE(VLOOKUP(A140,EData,2,0)) -> 08:33:53 | D140: =TIMEVALUE(VLOOKUP(A140,EData,3,0)) -> 04:36:50 | E140: =TIMEVALUE(VLOOKUP(A140,BData,9,0)) -> 02:17:05 | F140: =VLOOKUP(A140,PData,2,0) -> 97 | G140: =VLOOKUP(A140,EData,6,0) -> 0.4974864593
A141: =Break!A141 -> Del_Sushma Khandelwal (1008651) | B141: Sushma Khandelwal | C141: =TIMEVALUE(VLOOKUP(A141,EData,2,0)) -> 08:15:15 | D141: =TIMEVALUE(VLOOKUP(A141,EData,3,0)) -> 04:50:07 | E141: =TIMEVALUE(VLOOKUP(A141,BData,9,0)) -> 01:10:21 | F141: =VLOOKUP(A141,PData,2,0) -> 98 | G141: =VLOOKUP(A141,EData,6,0) -> 0.5243143194
A142: =Break!A142 -> Del_Swarnlata Borse (1008652) | B142: Swarnlata Borse | C142: =TIMEVALUE(VLOOKUP(A142,EData,2,0)) -> 08:19:05 | D142: =TIMEVALUE(VLOOKUP(A142,EData,3,0)) -> 02:59:39 | E142: =TIMEVALUE(VLOOKUP(A142,BData,9,0)) -> 04:32:37 | F142: =VLOOKUP(A142,PData,2,0) -> 99 | G142: =VLOOKUP(A142,EData,6,0) -> 0.3106695609
A143: =Break!A143 -> Del_Syed Naved (1008653) | B143: Syed Naved | C143: =TIMEVALUE(VLOOKUP(A143,EData,2,0)) -> 08:13:39 | D143: =TIMEVALUE(VLOOKUP(A143,EData,3,0)) -> 05:24:05 | E143: =TIMEVALUE(VLOOKUP(A143,BData,9,0)) -> 01:14:44 | F143: =VLOOKUP(A143,PData,2,0) -> 100 | G143: =VLOOKUP(A143,EData,6,0) -> 0.5846247341
A144: =Break!A144 -> Del_Syed Saqib (1008654) | B144: Syed Saqib | C144: =TIMEVALUE(VLOOKUP(A144,EData,2,0)) -> 08:24:48 | D144: =TIMEVALUE(VLOOKUP(A144,EData,3,0)) -> 02:52:08 | E144: =TIMEVALUE(VLOOKUP(A144,BData,9,0)) -> 05:03:34 | F144: =VLOOKUP(A144,PData,2,0) -> 101 | G144: =VLOOKUP(A144,EData,6,0) -> 0.3168581616
A145: =Break!A145 -> Del_Syed Sohail (1008655) | B145: Syed Sohail | C145: =TIMEVALUE(VLOOKUP(A145,EData,2,0)) -> 08:17:53 | D145: =TIMEVALUE(VLOOKUP(A145,EData,3,0)) -> 04:51:52 | E145: =TIMEVALUE(VLOOKUP(A145,BData,9,0)) -> 01:12:04 | F145: =VLOOKUP(A145,PData,2,0) -> 102 | G145: =VLOOKUP(A145,EData,6,0) -> 0.563753222
A146: =Break!A146 -> Del_System Operator (1008656) | B146: System Operator | C146: =TIMEVALUE(VLOOKUP(A146,EData,2,0)) -> 08:30:54 | D146: =TIMEVALUE(VLOOKUP(A146,EData,3,0)) -> 05:15:36 | E146: =TIMEVALUE(VLOOKUP(A146,BData,9,0)) -> 00:56:05 | F146: =VLOOKUP(A146,PData,2,0) -> 103 | G146: =VLOOKUP(A146,EData,6,0) -> 0.5477914791
A147: =Break!A147 -> Del_Tahira Qureshi (1008657) | B147: Tahira Qureshi | C147: =TIMEVALUE(VLOOKUP(A147,EData,2,0)) -> 08:46:13 | D147: =TIMEVALUE(VLOOKUP(A147,EData,3,0)) -> 03:36:51 | E147: =TIMEVALUE(VLOOKUP(A147,BData,9,0)) -> 04:02:30 | F147: =VLOOKUP(A147,PData,2,0) -> 104 | G147: =VLOOKUP(A147,EData,6,0) -> 0.3796598359
A148: =Break!A148 -> Del_Tapas Chakraborty (1008658) | B148: Tapas Chakraborty | C148: =TIMEVALUE(VLOOKUP(A148,EData,2,0)) -> 08:14:56 | D148: =TIMEVALUE(VLOOKUP(A148,EData,3,0)) -> 05:15:14 | E148: =TIMEVALUE(VLOOKUP(A148,BData,9,0)) -> 01:12:11 | F148: =VLOOKUP(A148,PData,2,0) -> 105 | G148: =VLOOKUP(A148,EData,6,0) -> 0.5652949892
A149: =Break!A149 -> Del_Tariq Akhlaq (1008659) | B149: Tariq Akhlaq | C149: =TIMEVALUE(VLOOKUP(A149,EData,2,0)) -> 04:59:55 | D149: =TIMEVALUE(VLOOKUP(A149,EData,3,0)) -> 03:08:41 | E149: =TIMEVALUE(VLOOKUP(A149,BData,9,0)) -> 00:15:03 | F149: =VLOOKUP(A149,PData,2,0) -> 106 | G149: =VLOOKUP(A149,EData,6,0) -> 0.6026118366
A150: =Break!A150 -> Del_Tasneem Khan (1008660) | B150: Tasneem Khan | C150: =TIMEVALUE(VLOOKUP(A150,EData,2,0)) -> 08:33:55 | D150: =TIMEVALUE(VLOOKUP(A150,EData,3,0)) -> 04:38:49 | E150: =TIMEVALUE(VLOOKUP(A150,BData,9,0)) -> 02:16:51 | F150: =VLOOKUP(A150,PData,2,0) -> 107 | G150: =VLOOKUP(A150,EData,6,0) -> 0.4981352359

Sheet Dashboard
C1: 5
C2: 4
A3: Report 1 : Working Hours | D3: Report 1 : Working Hours
A4: Row Labels | B4: Emp Total Number of woking hours. | D4: Row Labels | E4: Sum of Active With Cust.
A5: Ashok Kumar | B5: 1.366840278 | D5: Ashok Kumar | E5: 2.090594864
A6: Manoj Kumar | B6: 15:56:07 | D6: Manoj Kumar | E6: 1.06429801
A7: Rajesh Kumar | B7: 16:18:18 | D7: Rajesh Kumar | E7: 1.122824597
A8: Santosh Kumar | B8: 1.014293981 | E8: 1.723673137
A9: Sunil Kumar | B9: 16:08:32
